Department Family,Entity,Date,Expense Type,Expense Area,Supplier,Transaction Number,Amount,Description
Department for Education,Core,13/10/2020,"Marketing, Media and Comms",COMMUNICATIONS DIRECTORATE,THE TEACHING AWARDS COMPANY LTD,CORE-PINV-009019,25000,"Publicity, advertising, media advertising campaigns (excluding recruitment adverts)"
Department for Education,Core,27/10/2020,"Marketing, Media and Comms",COMMUNICATIONS DIRECTORATE,OMD GROUP TA MANNING GOTTLIEB OMD LTD,CORE-PINV-009753,31.92,"Publicity, advertising, media advertising campaigns (excluding recruitment adverts)"
Department for Education,Core,27/10/2020,"Marketing, Media and Comms",COMMUNICATIONS DIRECTORATE,OMD GROUP TA MANNING GOTTLIEB OMD LTD,CORE-PINV-009753,32238.2,"Publicity, advertising, media advertising campaigns (excluding recruitment adverts)"
Department for Education,Core,13/10/2020,Grants expenditure,CHILDRENS SOCIAL CARE,EARLY INTERVENTION FOUNDATION,CORE-MAIN-007349,133372,Grants to educational establishments or not for profit organisations including other businesses
Department for Education,Core,13/10/2020,Grants expenditure,CHILDRENS SOCIAL CARE,What Works for Children's Social Care,CORE-MAIN-007350,260793,Grants to educational establishments or not for profit organisations including other businesses
Department for Education,Core,13/10/2020,Grants expenditure,CHILDRENS SOCIAL CARE,CAMDEN LONDON BOROUGH COUNCIL,CORE-MAIN-007351,236768,Grants to local authorities
Department for Education,Core,13/10/2020,Grants expenditure,CHILDRENS SOCIAL CARE,ESSEX COUNTY COUNCIL,CORE-MAIN-007352,597500,Grants to local authorities
Department for Education,Core,13/10/2020,Grants expenditure,CHILDRENS SOCIAL CARE,EALING LONDON BOROUGH COUNCIL,CORE-MAIN-007353,424579,Grants to local authorities
Department for Education,Core,13/10/2020,Grants expenditure,CHILDRENS SOCIAL CARE,BRADFORD CITY COUNCIL,CORE-MAIN-007354,550000,Grants to local authorities
Department for Education,Core,13/10/2020,Grants expenditure,CHILDRENS SOCIAL CARE,BRISTOL CITY COUNCIL,CORE-MAIN-007355,331083,Grants to local authorities
Department for Education,Core,13/10/2020,Grants expenditure,CHILDRENS SOCIAL CARE,CALDERDALE METRO BOROUGH COUNCIL,CORE-MAIN-007356,135000,Grants to local authorities
Department for Education,Core,13/10/2020,Grants expenditure,CHILDRENS SOCIAL CARE,DERBY CITY COUNCIL,CORE-MAIN-007357,125000,Grants to local authorities
Department for Education,Core,13/10/2020,Grants expenditure,CHILDRENS SOCIAL CARE,GREENWICH LONDON BOROUGH COUNCIL,CORE-MAIN-007358,213500,Grants to local authorities
Department for Education,Core,13/10/2020,Grants expenditure,CHILDRENS SOCIAL CARE,HACKNEY LONDON BOROUGH COUNCIL,CORE-MAIN-007359,378243,Grants to local authorities
Department for Education,Core,13/10/2020,Grants expenditure,CHILDRENS SOCIAL CARE,HAVERING LONDON BOROUGH COUNCIL,CORE-MAIN-007360,114813,Grants to local authorities
Department for Education,Core,13/10/2020,Grants expenditure,CHILDRENS SOCIAL CARE,LEWISHAM LONDON BOROUGH COUNCIL,CORE-MAIN-007361,314699,Grants to local authorities
Department for Education,Core,13/10/2020,Grants expenditure,CHILDRENS SOCIAL CARE,NEWHAM LONDON BOROUGH COUNCIL,CORE-MAIN-007362,125000,Grants to local authorities
Department for Education,Core,13/10/2020,Grants expenditure,CHILDRENS SOCIAL CARE,SHEFFIELD CITY COUNCIL,CORE-MAIN-007363,101000,Grants to local authorities
Department for Education,Core,30/10/2020,Grants expenditure,CHILDRENS SOCIAL CARE,PAUSE CREATING SPACE FOR CHANGE,CORE-MAIN-007783,166666.66,Grants to educational establishments or not for profit organisations including other businesses
Department for Education,Core,22/10/2020,Other Goods & Services,CHILDRENS SOCIAL CARE,What Works for Children's Social Care,CORE-PINV-009030,45406.49,Research and Development
Department for Education,Core,22/10/2020,Other Goods & Services,CHILDRENS SOCIAL CARE,What Works for Children's Social Care,CORE-PINV-009030,22595.45,Research and Development
Department for Education,Core,27/10/2020,Other Goods & Services,CHILDRENS SOCIAL CARE,MUTUAL VENTURES LTD,CORE-PINV-009751,96940.8,Other Professional Services
Department for Education,Core,06/10/2020,Other Goods & Services,CHILDRENS SOCIAL CARE,BARNARDOS,CORE-PINV-008617,1550176,Other Professional Services
Department for Education,Core,07/10/2020,Grants expenditure,CHILDRENS SOCIAL CARE,CORAM,CORE-PINV-008694,69581.33,Grants to educational establishments or not for profit organisations including other businesses
Department for Education,Core,05/10/2020,Grants expenditure,CHILDRENS SOCIAL CARE,TOGETHER FOR CHILDREN SUNDERLAND,CORE-MAIN-007141,29249,Grants to educational establishments or not for profit organisations including other businesses
Department for Education,Core,05/10/2020,Grants expenditure,CHILDRENS SOCIAL CARE,SLOUGH CHILDRENS SERVICES TRUST LTD,CORE-MAIN-007142,184836.49,Grants to educational establishments or not for profit organisations including other businesses
Department for Education,Core,13/10/2020,Grants expenditure,CHILDRENS SOCIAL CARE,NORTHAMPTONSHIRE COUNTY COUNCIL,CORE-MAIN-007364,226788.7,Grants to local authorities
Department for Education,Core,30/10/2020,Grants expenditure,CHILDRENS SOCIAL CARE,TOGETHER FOR CHILDREN SUNDERLAND,CORE-MAIN-007784,64629,Grants to educational establishments or not for profit organisations including other businesses
Department for Education,Core,30/10/2020,Grants expenditure,CHILDRENS SOCIAL CARE,SLOUGH CHILDRENS SERVICES TRUST LTD,CORE-MAIN-007785,161812.57,Grants to educational establishments or not for profit organisations including other businesses
Department for Education,Core,30/10/2020,Grants expenditure,CHILDRENS SOCIAL CARE,SANDWELL CHILDRENS TRUST,CORE-MAIN-007787,312187,Grants to educational establishments or not for profit organisations including other businesses
Department for Education,Core,30/10/2020,Grants expenditure,CHILDRENS SOCIAL CARE,LUTON BOROUGH COUNCIL,CORE-MAIN-007788,200000,Grants to local authorities
Department for Education,Core,09/10/2020,Other Goods & Services,CHILDRENS SOCIAL CARE,Brighter Futures for Children Ltd,CORE-PINV-008914,25165.8,Other Professional Services
Department for Education,Core,13/10/2020,Other Goods & Services,CHILDRENS SOCIAL CARE,MUTUAL VENTURES LTD,CORE-PINV-009052,84181.99,Other Professional Services
Department for Education,Core,26/10/2020,Other Goods & Services,CHILDRENS SOCIAL CARE,MUTUAL VENTURES LTD,CORE-PINV-009681,73137.9,Other Professional Services
Department for Education,Core,26/10/2020,Other Goods & Services,CHILDRENS SOCIAL CARE,BURGES SALMON COMPANY LTD,CORE-PINV-009694,27000,Other Professional Services
Department for Education,Core,05/10/2020,Grants expenditure,CHILDRENS SOCIAL CARE,SOUTHWARK LONDON BOROUGH COUNCIL,CORE-MAIN-007143,248267.04,Grants to local authorities
Department for Education,Core,05/10/2020,Grants expenditure,CHILDRENS SOCIAL CARE,LEEDS CITY COUNCIL,CORE-MAIN-007144,62066.76,Grants to local authorities
Department for Education,Core,13/10/2020,Grants expenditure,CHILDRENS SOCIAL CARE,Improvement/Development Agency,CORE-MAIN-007365,33890.4,Grants to educational establishments or not for profit organisations including other businesses
Department for Education,Core,16/10/2020,Professional Services,CHILDRENS SOCIAL CARE,ALPHA PLUS CONSULTANCY LTD,CORE-PINV-008267,37759,EDUCATIONAL SERVICES
Department for Education,Core,02/10/2020,Professional Services,CHILDRENS SOCIAL CARE,ALPHA PLUS CONSULTANCY LTD,CORE-PINV-008515,26847,EDUCATIONAL SERVICES
Department for Education,Core,07/10/2020,Other Goods & Services,CHILDRENS SOCIAL CARE,SKILLS FOR CARE LTD,CORE-PINV-008781,79323.6,Other Professional Services
Department for Education,Core,07/10/2020,Other Goods & Services,CHILDRENS SOCIAL CARE,SKILLS FOR CARE LTD,CORE-PINV-008786,377000,Other Professional Services
Department for Education,Core,07/10/2020,Professional Services,CHILDRENS SOCIAL CARE,THE FRONTLINE ORGANISATION,CORE-PINV-008814,108860,EDUCATIONAL SERVICES
Department for Education,Core,07/10/2020,Other Goods & Services,CHILDRENS SOCIAL CARE,THE FRONTLINE ORGANISATION,CORE-PINV-008815,1149543.63,Other Professional Services
Department for Education,Core,07/10/2020,Other Goods & Services,CHILDRENS SOCIAL CARE,THE FRONTLINE ORGANISATION,CORE-PINV-008815,112241.2,Other Professional Services
Department for Education,Core,13/10/2020,Other Goods & Services,CHILDRENS SOCIAL CARE,VSC Plus Limited,CORE-PINV-009089,134782.8,Other Professional Services
Department for Education,Core,15/10/2020,Other Goods & Services,CHILDRENS SOCIAL CARE,Mott MacDonald,CORE-PINV-009253,267890.4,Other Professional Services
Department for Education,Core,30/10/2020,Grants expenditure,CHILDRENS SOCIAL CARE,THE FRONTLINE ORGANISATION,CUPS0012500,248267.04,Grants to educational establishments or not for profit organisations including other businesses
Department for Education,Core,30/10/2020,Grants expenditure,CHILDRENS SOCIAL CARE,BC TRUST GENERAL FUND,CUPS0012501,63550,Grants to local authorities
Department for Education,Core,30/10/2020,Grants expenditure,CHILDRENS SOCIAL CARE,KENT COUNTY COUNCIL,CUPS0012502,44333.4,Grants to local authorities
Department for Education,Core,30/10/2020,Grants expenditure,CHILDRENS SOCIAL CARE,BROMLEY LONDON BOROUGH COUNCIL,CUPS0012503,46803.53,Grants to local authorities
Department for Education,Core,30/10/2020,Grants expenditure,CHILDRENS SOCIAL CARE,Buckinghamshire Council,CUPS0012504,48766.74,Grants to local authorities
Department for Education,Core,30/10/2020,Grants expenditure,CHILDRENS SOCIAL CARE,SOMERSET COUNTY COUNCIL,CUPS0012505,113050.17,Grants to local authorities
Department for Education,Core,30/10/2020,Grants expenditure,CHILDRENS SOCIAL CARE,STOKE ON TRENT CITY COUNCIL,CUPS0012506,144083.55,Grants to local authorities
Department for Education,Core,30/10/2020,Grants expenditure,CHILDRENS SOCIAL CARE,BRIGHTON & HOVE CITY COUNCIL,CUPS0012507,33250.05,Grants to local authorities
Department for Education,Core,30/10/2020,Grants expenditure,CHILDRENS SOCIAL CARE,BRACKNELL FOREST BOROUGH COUNCIL,CUPS0012508,44333.4,Grants to local authorities
Department for Education,Core,30/10/2020,Grants expenditure,CHILDRENS SOCIAL CARE,LANCASHIRE COUNTY COUNCIL,CUPS0012509,33250.05,Grants to local authorities
Department for Education,Core,30/10/2020,Grants expenditure,CHILDRENS SOCIAL CARE,DERBY CITY COUNCIL,CUPS0012510,95316.81,Grants to local authorities
Department for Education,Core,30/10/2020,Grants expenditure,CHILDRENS SOCIAL CARE,HAMMERSMITH & FULHAM LONDON BOROUGH COUNCIL,CUPS0012511,90883.47,Grants to local authorities
Department for Education,Core,30/10/2020,Grants expenditure,CHILDRENS SOCIAL CARE,ESSEX COUNTY COUNCIL,CUPS0012512,86450.13,Grants to local authorities
Department for Education,Core,30/10/2020,Grants expenditure,CHILDRENS SOCIAL CARE,Salford City Council,CUPS0012513,57964.15,Grants to local authorities
Department for Education,Core,30/10/2020,Grants expenditure,CHILDRENS SOCIAL CARE,SHEFFIELD CITY COUNCIL,CUPS0012514,104183.49,Grants to local authorities
Department for Education,Core,30/10/2020,Grants expenditure,CHILDRENS SOCIAL CARE,"Bournemouth, Christchurch and Poole Council",CUPS0012515,35466.72,Grants to local authorities
Department for Education,Core,30/10/2020,Grants expenditure,CHILDRENS SOCIAL CARE,LONDON BOROUGH OF REDBRIDGE COUNCIL,CUPS0012516,50983.33,Grants to local authorities
Department for Education,Core,30/10/2020,Grants expenditure,CHILDRENS SOCIAL CARE,NORTH TYNESIDE METRO BOROUGH COUNCIL,CUPS0012517,86450.13,Grants to local authorities
Department for Education,Core,30/10/2020,Grants expenditure,CHILDRENS SOCIAL CARE,HAMPSHIRE COUNTY COUNCIL,CUPS0012518,68716.77,Grants to local authorities
Department for Education,Core,30/10/2020,Grants expenditure,CHILDRENS SOCIAL CARE,ISLINGTON LONDON BOROUGH COUNCIL,CUPS0012519,62066.76,Grants to local authorities
Department for Education,Core,30/10/2020,Grants expenditure,CHILDRENS SOCIAL CARE,SOUTHWARK LONDON BOROUGH COUNCIL,CUPS0012520,62066.76,Grants to local authorities
Department for Education,Core,30/10/2020,Grants expenditure,CHILDRENS SOCIAL CARE,HERTFORDSHIRE COUNTY COUNCIL,CUPS0012521,46550.07,Grants to local authorities
Department for Education,Core,30/10/2020,Grants expenditure,CHILDRENS SOCIAL CARE,LEEDS CITY COUNCIL,CUPS0012522,62066.76,Grants to local authorities
Department for Education,Core,27/10/2020,Consultancy,COMMUNICATIONS DIRECTORATE,THE GOVERNMENT LEGAL DEPARTMENT,CORE-PINV-009728,26359.2,"Advisory services including fees, travel and expenses"
Department for Education,Core,05/10/2020,Grants expenditure,Adoption and Children in Care Division,Become,CORE-MAIN-007145,37500,Grants to educational establishments or not for profit organisations including other businesses
Department for Education,Core,13/10/2020,Grants expenditure,Adoption and Children in Care Division,CAMBRIDGE EDUCATION,CORE-MAIN-007366,2335589.2,Grants to educational establishments or not for profit organisations including other businesses
Department for Education,Core,30/10/2020,Grants expenditure,Adoption and Children in Care Division,ADOPTION UK,CORE-MAIN-007791,70059.78,Grants to educational establishments or not for profit organisations including other businesses
Department for Education,Core,30/10/2020,Grants expenditure,Adoption and Children in Care Division,BREAK CHARITY,CORE-MAIN-007792,66627.6,Grants to educational establishments or not for profit organisations including other businesses
Department for Education,Core,30/10/2020,Grants expenditure,Adoption and Children in Care Division,PORTSMOUTH CITY COUNCIL,CORE-MAIN-007795,167608,Grants to local authorities
Department for Education,Core,30/10/2020,Grants expenditure,Adoption and Children in Care Division,NORTH TYNESIDE METRO BOROUGH COUNCIL,CORE-MAIN-007796,242841.5,Grants to local authorities
Department for Education,Core,30/10/2020,Grants expenditure,Adoption and Children in Care Division,North East Lincolnshire Council,CORE-MAIN-007797,137985,Grants to local authorities
Department for Education,Core,30/10/2020,Grants expenditure,Adoption and Children in Care Division,SUFFOLK COUNTY COUNCIL,CORE-MAIN-007798,248575.5,Grants to local authorities
Department for Education,Core,30/10/2020,Grants expenditure,Adoption and Children in Care Division,BRISTOL CITY COUNCIL,CORE-MAIN-007799,203658.5,Grants to local authorities
Department for Education,Core,02/10/2020,Consultancy,Adoption and Children in Care Division,FAMILY LIVES,CORE-PINV-008373,74787.62,IS/IT Services - Consultancy
Department for Education,Core,01/10/2020,Grants expenditure,Adoption and Children in Care Division,FAMILY RIGHTS GROUP LTD,CORE-PINV-008502,46659,Grants to educational establishments or not for profit organisations including other businesses
Department for Education,Core,07/10/2020,Other Goods & Services,Adoption and Children in Care Division,Mott MacDonald,CORE-PINV-008536,137140.45,Other Professional Services
Department for Education,Core,05/10/2020,Grants expenditure,Adoption and Children in Care Division,THE SHARE FOUNDATION 3RD PARTY TRUST,CORE-PINV-008603,94400,Grants to educational establishments or not for profit organisations including other businesses
Department for Education,Core,09/10/2020,Other Goods & Services,Adoption and Children in Care Division,FosterTalk Limited,CORE-PINV-008632,25000,Other Professional Services
Department for Education,Core,09/10/2020,Consultancy,Adoption and Children in Care Division,THE SHARE FOUNDATION,CORE-PINV-008928,60391,"Advisory services including fees, travel and expenses"
Department for Education,Core,19/10/2020,Other Goods & Services,Adoption and Children in Care Division,ECORYS UK LTD,CORE-PINV-009114,33600,Research and Development
Department for Education,Core,16/10/2020,Staff - Other,Adoption and Children in Care Division,MINISTRY FOR HOUSING COMMUNITIES & LOCAL GOVERNMENT,CORE-PINV-009172,64089.81,Recruitment costs
Department for Education,Core,26/10/2020,Other Goods & Services,Adoption and Children in Care Division,CORAM,CORE-PINV-009175,27000,Other Professional Services
Department for Education,Core,23/10/2020,Grants expenditure,Adoption and Children in Care Division,THE SHARE FOUNDATION 3RD PARTY TRUST,CORE-PINV-009332,117800,Grants to educational establishments or not for profit organisations including other businesses
Department for Education,Core,23/10/2020,Grants expenditure,Adoption and Children in Care Division,FAMILY RIGHTS GROUP LTD,CORE-PINV-009380,64158,Grants to educational establishments or not for profit organisations including other businesses
Department for Education,Core,30/10/2020,Grants expenditure,Adoption and Children in Care Division,ADOPTERS FOR ADOPTION LTD,CUPS0012541,70499,Grants to educational establishments or not for profit organisations including other businesses
Department for Education,Core,30/10/2020,Grants expenditure,Adoption and Children in Care Division,Adoption Matters,CUPS0012542,250000,Grants to educational establishments or not for profit organisations including other businesses
Department for Education,Core,30/10/2020,Grants expenditure,Adoption and Children in Care Division,AdoptionPlus Ltd,CUPS0012543,58502,Grants to educational establishments or not for profit organisations including other businesses
Department for Education,Core,30/10/2020,Grants expenditure,Adoption and Children in Care Division,ARC Adoption North East Limited,CUPS0012544,89008,Grants to educational establishments or not for profit organisations including other businesses
Department for Education,Core,30/10/2020,Grants expenditure,Adoption and Children in Care Division,BARNARDOS,CUPS0012545,250000,Grants to educational establishments or not for profit organisations including other businesses
Department for Education,Core,30/10/2020,Grants expenditure,Adoption and Children in Care Division,CARITAS CARE LTD,CUPS0012546,196796,Grants to educational establishments or not for profit organisations including other businesses
Department for Education,Core,30/10/2020,Grants expenditure,Adoption and Children in Care Division,CLIFTON CHILDRENS SOCIETY,CUPS0012547,190899,Grants to educational establishments or not for profit organisations including other businesses
Department for Education,Core,30/10/2020,Grants expenditure,Adoption and Children in Care Division,CORAM,CUPS0012548,123483,Grants to educational establishments or not for profit organisations including other businesses
Department for Education,Core,30/10/2020,Grants expenditure,Adoption and Children in Care Division,DIAGRAMA CHILDREN SERVICES LTD,CUPS0012549,67178,Grants to educational establishments or not for profit organisations including other businesses
Department for Education,Core,30/10/2020,Grants expenditure,Adoption and Children in Care Division,FAITH IN FAMILIES,CUPS0012550,98951,Grants to educational establishments or not for profit organisations including other businesses
Department for Education,Core,30/10/2020,Grants expenditure,Adoption and Children in Care Division,FAMILIES FOR CHILDREN,CUPS0012551,67780,Grants to educational establishments or not for profit organisations including other businesses
Department for Education,Core,30/10/2020,Grants expenditure,Adoption and Children in Care Division,Family Futures CIC,CUPS0012552,181769,Grants to educational establishments or not for profit organisations including other businesses
Department for Education,Core,30/10/2020,Grants expenditure,Adoption and Children in Care Division,Intercountry Adoption Centre,CUPS0012553,141979,Grants to educational establishments or not for profit organisations including other businesses
Department for Education,Core,30/10/2020,Grants expenditure,Adoption and Children in Care Division,NUGENT CARE,CUPS0012554,57387,Grants to educational establishments or not for profit organisations including other businesses
Department for Education,Core,30/10/2020,Grants expenditure,Adoption and Children in Care Division,PACT CHARITY,CUPS0012555,250000,Grants to educational establishments or not for profit organisations including other businesses
Department for Education,Core,30/10/2020,Grants expenditure,Adoption and Children in Care Division,SSAFA Forces Help,CUPS0012556,42479,Grants to educational establishments or not for profit organisations including other businesses
Department for Education,Core,30/10/2020,Grants expenditure,Adoption and Children in Care Division,St Francis' Children's Society,CUPS0012557,68285,Grants to educational establishments or not for profit organisations including other businesses
Department for Education,Core,30/10/2020,Grants expenditure,Adoption and Children in Care Division,Yorkshire Adoption Agency Ltd ,CUPS0012558,66546,Grants to educational establishments or not for profit organisations including other businesses
Department for Education,Core,30/10/2020,Grants expenditure,Adoption and Children in Care Division,Family Society,CUPS0013947,132048,Grants to educational establishments or not for profit organisations including other businesses
Department for Education,Core,13/10/2020,"Marketing, Media and Comms",CHILDRENS SOCIAL CARE,SCROLL PROJECTS LTD,CORE-PINV-009074,86957.81,"Publicity, advertising, media advertising campaigns (excluding recruitment adverts)"
Department for Education,Core,30/10/2020,Grants expenditure,STRATEGY SOCIAL MOBILITY OPPOTUNITY AREAS,BLACKPOOL BOROUGH COUNCIL,CORE-MAIN-007801,1182000,Grants to local authorities
Department for Education,Core,30/10/2020,Grants expenditure,STRATEGY SOCIAL MOBILITY OPPOTUNITY AREAS,BRADFORD CITY COUNCIL,CORE-MAIN-007802,1038000,Grants to local authorities
Department for Education,Core,30/10/2020,Grants expenditure,STRATEGY SOCIAL MOBILITY OPPOTUNITY AREAS,DERBY CITY COUNCIL,CORE-MAIN-007803,572000,Grants to local authorities
Department for Education,Core,30/10/2020,Grants expenditure,STRATEGY SOCIAL MOBILITY OPPOTUNITY AREAS,DONCASTER METRO BOROUGH COUNCIL,CORE-MAIN-007804,576000,Grants to local authorities
Department for Education,Core,30/10/2020,Grants expenditure,STRATEGY SOCIAL MOBILITY OPPOTUNITY AREAS,CAMBRIDGESHIRE COUNTY COUNCIL,CORE-MAIN-007805,572000,Grants to local authorities
Department for Education,Core,30/10/2020,Grants expenditure,STRATEGY SOCIAL MOBILITY OPPOTUNITY AREAS,EAST SUSSEX COUNTY COUNCIL,CORE-MAIN-007806,625000,Grants to local authorities
Department for Education,Core,30/10/2020,Grants expenditure,STRATEGY SOCIAL MOBILITY OPPOTUNITY AREAS,SUFFOLK COUNTY COUNCIL,CORE-MAIN-007807,725000,Grants to local authorities
Department for Education,Core,30/10/2020,Grants expenditure,STRATEGY SOCIAL MOBILITY OPPOTUNITY AREAS,NORTH YORKSHIRE COUNTY COUNCIL,CORE-MAIN-007808,480000,Grants to local authorities
Department for Education,Core,30/10/2020,Grants expenditure,STRATEGY SOCIAL MOBILITY OPPOTUNITY AREAS,NORFOLK COUNTY COUNCIL,CORE-MAIN-007809,730000,Grants to local authorities
Department for Education,Core,30/10/2020,Grants expenditure,STRATEGY SOCIAL MOBILITY OPPOTUNITY AREAS,OLDHAM METRO BOROUGH COUNCIL,CORE-MAIN-007810,1106000,Grants to local authorities
Department for Education,Core,30/10/2020,Grants expenditure,STRATEGY SOCIAL MOBILITY OPPOTUNITY AREAS,STOKE ON TRENT CITY COUNCIL,CORE-MAIN-007811,668000,Grants to local authorities
Department for Education,Core,30/10/2020,Grants expenditure,STRATEGY SOCIAL MOBILITY OPPOTUNITY AREAS,SOMERSET COUNTY COUNCIL,CORE-MAIN-007812,392000,Grants to local authorities
Department for Education,Core,26/10/2020,Professional Services Consultancy and Contingent Labour,STRATEGY SOCIAL MOBILITY OPPOTUNITY AREAS,Alexander Mann Solutions Ltd,CORE-PINV-007854,28961.5,Costs related to temporary workers
Department for Education,Core,07/10/2020,Other Goods & Services,STRATEGY SOCIAL MOBILITY OPPOTUNITY AREAS,Kantar UK Ltd,CORE-PINV-008760,26627.1,Research and Development
Department for Education,Core,30/10/2020,Grants expenditure,Children's Social Care - Practice,HAMPSHIRE COUNTY COUNCIL,CORE-MAIN-007813,62534,Grants to local authorities
Department for Education,Core,19/10/2020,Other Goods & Services,Children's Social Care - Practice,FARSIGHT CONSULTING LIMITED,CORE-PINV-009251,143721,Other Professional Services
Department for Education,Core,19/10/2020,Other Goods & Services,STRATEGY SOCIAL MOBILITY OPPOTUNITY AREAS,CONTACT,CORE-PINV-008678,166226.32,Other Professional Services
Department for Education,Core,12/10/2020,Other Goods & Services,STRATEGY SOCIAL MOBILITY OPPOTUNITY AREAS,NASEN,CORE-PINV-008986,280368,Other Professional Services
Department for Education,Core,21/10/2020,Other Goods & Services,STRATEGY SOCIAL MOBILITY OPPOTUNITY AREAS,Mott MacDonald,CORE-PINV-009557,150565.21,Other Professional Services
Department for Education,Core,21/10/2020,Other Goods & Services,STRATEGY SOCIAL MOBILITY OPPOTUNITY AREAS,Mott MacDonald,CORE-PINV-009558,227924.64,Other Professional Services
Department for Education,Core,27/10/2020,Other Goods & Services,STRATEGY SOCIAL MOBILITY OPPOTUNITY AREAS,NASEN,CORE-PINV-009655,79421.59,Other Professional Services
Department for Education,Core,26/10/2020,Other Goods & Services,STRATEGY SOCIAL MOBILITY OPPOTUNITY AREAS,COUNCIL FOR DISABLED CHILDREN,CORE-PINV-009696,77314.8,Other Professional Services
Department for Education,Core,26/10/2020,Other Goods & Services,STRATEGY SOCIAL MOBILITY OPPOTUNITY AREAS,COUNCIL FOR DISABLED CHILDREN,CORE-PINV-009697,66918.3,Other Professional Services
Department for Education,Core,27/10/2020,Other Goods & Services,STRATEGY SOCIAL MOBILITY OPPOTUNITY AREAS,NASEN,CORE-PINV-009819,52470.36,Other Professional Services
Department for Education,Core,28/10/2020,Other Goods & Services,STRATEGY SOCIAL MOBILITY OPPOTUNITY AREAS,NATIONAL CHILDRENS BUREAU,CORE-PINV-009943,74073.28,Other Professional Services
Department for Education,Core,29/10/2020,Other Goods & Services,STRATEGY SOCIAL MOBILITY OPPOTUNITY AREAS,NATIONAL AUTISTIC SOCIETY,CORE-PINV-009981,69652,Other Professional Services
Department for Education,Core,27/10/2020,Other Goods & Services,STRATEGY SOCIAL MOBILITY OPPOTUNITY AREAS,HMCTS HM COURTS & TRIBUNALS SERVICE,CORE-PINV-007980,592065,Other Professional Services
Department for Education,Core,27/10/2020,Other Goods & Services,STRATEGY SOCIAL MOBILITY OPPOTUNITY AREAS,HMCTS HM COURTS & TRIBUNALS SERVICE,CORE-PINV-007981,43995,Other Professional Services
Department for Education,Core,27/10/2020,Other Goods & Services,STRATEGY SOCIAL MOBILITY OPPOTUNITY AREAS,HMCTS HM COURTS & TRIBUNALS SERVICE,CORE-PINV-007982,39325,Other Professional Services
Department for Education,Core,05/10/2020,Grants expenditure,STRATEGY SOCIAL MOBILITY OPPOTUNITY AREAS,FRANCIS BARBER PRU,CORE-MAIN-007186,36938,Grants to educational establishments or not for profit organisations including other businesses
Department for Education,Core,02/10/2020,Professional Services Consultancy and Contingent Labour,ASSESSMENT AND CURRICULUM AND GENERAL QUALIFICATIONS,Tribal Education Limited,CORE-PINV-008562,310806.47,Costs related to temporary workers
Department for Education,Core,26/10/2020,Professional Services,ASSESSMENT AND CURRICULUM AND GENERAL QUALIFICATIONS,MATHEMATICS IN EDUCATION & INDUSTRY,CORE-PINV-009294,143279.9,EDUCATIONAL SERVICES
Department for Education,Core,13/10/2020,Consultancy,ASSESSMENT AND CURRICULUM AND GENERAL QUALIFICATIONS,THE FULL ENGLISH EDUCATION LTD,CORE-PINV-009018,28790,"Advisory services including fees, travel and expenses"
Department for Education,Core,26/10/2020,Consultancy,ASSESSMENT AND CURRICULUM AND GENERAL QUALIFICATIONS,THE FULL ENGLISH EDUCATION LTD,CORE-PINV-009687,28076,"Advisory services including fees, travel and expenses"
Department for Education,Core,30/10/2020,Grants expenditure,ASSESSMENT AND CURRICULUM AND GENERAL QUALIFICATIONS,ENTHUSE CHARITABLE TRUST,CORE-MAIN-007846,560000,Grants to educational establishments or not for profit organisations including other businesses
Department for Education,Core,02/10/2020,Learning & Development,ASSESSMENT AND CURRICULUM AND GENERAL QUALIFICATIONS,IOP INSTITUTE OF PHYSICS,CORE-PINV-008557,171157,Training & Development costs
Department for Education,Core,23/10/2020,Professional Services,ASSESSMENT AND CURRICULUM AND GENERAL QUALIFICATIONS,STEM LEARNING LTD,CORE-PINV-009614,185834,EDUCATIONAL SERVICES
Department for Education,Core,23/10/2020,Professional Services,ASSESSMENT AND CURRICULUM AND GENERAL QUALIFICATIONS,STEM LEARNING LTD,CORE-PINV-009615,24999.99,EDUCATIONAL SERVICES
Department for Education,Core,23/10/2020,Professional Services,ASSESSMENT AND CURRICULUM AND GENERAL QUALIFICATIONS,STEM LEARNING LTD,CORE-PINV-009616,35343.67,EDUCATIONAL SERVICES
Department for Education,Core,23/10/2020,Other Goods & Services,ASSESSMENT AND CURRICULUM AND GENERAL QUALIFICATIONS,STEM LEARNING LTD,CORE-PINV-009650,71895,Other Professional Services
Department for Education,Core,23/10/2020,Other Goods & Services,ASSESSMENT AND CURRICULUM AND GENERAL QUALIFICATIONS,STEM LEARNING LTD,CORE-PINV-009651,702861.26,Other Professional Services
Department for Education,Core,23/10/2020,Other Goods & Services,ASSESSMENT AND CURRICULUM AND GENERAL QUALIFICATIONS,STEM LEARNING LTD,CORE-PINV-009653,77538,Other Professional Services
Department for Education,Core,23/10/2020,Other Goods & Services,ASSESSMENT AND CURRICULUM AND GENERAL QUALIFICATIONS,STEM LEARNING LTD,CORE-PINV-009653,363987.19,Other Professional Services
Department for Education,Core,26/10/2020,Other Goods & Services,ASSESSMENT AND CURRICULUM AND GENERAL QUALIFICATIONS,STEM LEARNING LTD,CORE-PINV-009685,54609.71,Other Professional Services
Department for Education,Core,06/10/2020,Other Goods & Services,SEND AND DISADVANTAGE GROUP,THE ANNA FREUD CENTRE,CORE-PCR-000259,-200000,Research and Development
Department for Education,Core,06/10/2020,Other Goods & Services,SEND AND DISADVANTAGE GROUP,THE ANNA FREUD CENTRE,CORE-PINV-002525,200000,Research and Development
Department for Education,Core,06/10/2020,Other Goods & Services,SEND AND DISADVANTAGE GROUP,THE ANNA FREUD CENTRE,CORE-PINV-006524,195746,Research and Development
Department for Education,Core,30/10/2020,Grants expenditure,SEND AND DISADVANTAGE GROUP,Spring North,CORE-MAIN-007848,31237.03,Grants to educational establishments or not for profit organisations including other businesses
Department for Education,Core,30/10/2020,Grants expenditure,SEND AND DISADVANTAGE GROUP,COMMUNITY FOUNDATION FOR LEEDS,CORE-MAIN-007849,33803,Grants to educational establishments or not for profit organisations including other businesses
Department for Education,Core,20/10/2020,Other Goods & Services,SEND AND DISADVANTAGE GROUP,FAMILY ACTION,CORE-PINV-009378,1160467.56,Other Professional Services
Department for Education,Core,30/10/2020,Grants expenditure,SEND AND DISADVANTAGE GROUP,Altrincham Grammar School for Girls,CORE-MAIN-007852,70000,"Grants paid to organisations including agencies, arms length bodies and educational establishments"
Department for Education,Core,30/10/2020,Grants expenditure,SEND AND DISADVANTAGE GROUP,South Farnham School ,CORE-MAIN-007855,84350,"Grants paid to organisations including agencies, arms length bodies and educational establishments"
Department for Education,Core,30/10/2020,Grants expenditure,EY AND SCHOOLS STRATEGY TOTAL,PACEY,CORE-MAIN-007859,100340.67,Grants to educational establishments or not for profit organisations including other businesses
Department for Education,Core,29/10/2020,Other Goods & Services,EY AND SCHOOLS STRATEGY TOTAL,NATIONAL CENTRE FOR SOCIAL RESEARCH,CORE-PINV-009682,45000,Research and Development
Department for Education,Core,30/10/2020,Grants expenditure,ASSESSMENT AND CURRICULUM AND GENERAL QUALIFICATIONS,CHOIR SCHOOLS ASSOCIATION BURSARY TRUST LTD,CUPS0014472,6569699,Grants to educational establishments or not for profit organisations including other businesses
Department for Education,Core,30/10/2020,Grants expenditure,ASSESSMENT AND CURRICULUM AND GENERAL QUALIFICATIONS,THE HOLOCAUST EDUCATIONAL TRUST,CORE-MAIN-007861,130526,Capital grants paid to local authorities and other educational establishments
Department for Education,Core,30/10/2020,Grants expenditure,TEACHERS AND TEACHING,"Abbey College, Ramsey",CUPS0012243,26537.13,Grants to educational establishments or not for profit organisations including other businesses
Department for Education,Core,30/10/2020,Grants expenditure,TEACHERS AND TEACHING,The Academy For Character And Excellence,CUPS0012244,35935.9,Grants to educational establishments or not for profit organisations including other businesses
Department for Education,Core,30/10/2020,Grants expenditure,TEACHERS AND TEACHING,City of London Academies Trust,CUPS0012255,41350,Grants to educational establishments or not for profit organisations including other businesses
Department for Education,Core,30/10/2020,Grants expenditure,TEACHERS AND TEACHING,Heartlands High School,CUPS0012267,43695,Grants to educational establishments or not for profit organisations including other businesses
Department for Education,Core,30/10/2020,Grants expenditure,TEACHERS AND TEACHING,Academy Transformation Trust,CUPS0012270,51990.45,Grants to educational establishments or not for profit organisations including other businesses
Department for Education,Core,30/10/2020,Grants expenditure,TEACHERS AND TEACHING,KINGSFORD COMMUNITY SCHOOL,CUPS0012275,29234.95,Grants to educational establishments or not for profit organisations including other businesses
Department for Education,Core,30/10/2020,Grants expenditure,TEACHERS AND TEACHING,Marshland High School,CUPS0012277,54517.8,Grants to educational establishments or not for profit organisations including other businesses
Department for Education,Core,30/10/2020,Grants expenditure,TEACHERS AND TEACHING,Northumberland CofE Academy,CUPS0012284,25766,Grants to educational establishments or not for profit organisations including other businesses
Department for Education,Core,30/10/2020,Grants expenditure,TEACHERS AND TEACHING,PARKWOOD E ACT ACADEMY,CUPS0012293,40359.47,Grants to educational establishments or not for profit organisations including other businesses
Department for Education,Core,30/10/2020,Grants expenditure,TEACHERS AND TEACHING,Our Lady Immaculate Catholic Academies Trust,CUPS0012307,54206.11,Grants to educational establishments or not for profit organisations including other businesses
Department for Education,Core,30/10/2020,Grants expenditure,TEACHERS AND TEACHING,Acorn Education Trust,CUPS0012312,27500,Grants to educational establishments or not for profit organisations including other businesses
Department for Education,Core,30/10/2020,Grants expenditure,TEACHERS AND TEACHING,Thomas Clarkson Academy,CUPS0012318,25100,Grants to educational establishments or not for profit organisations including other businesses
Department for Education,Core,12/10/2020,Other Goods & Services,TEACHERS AND TEACHING,GOVERNMENT ACTUARYS DEPT,CORE-PINV-008963,80298.69,Other Professional Services
Department for Education,Core,14/10/2020,Other Goods & Services,TEACHERS AND TEACHING,CAPITA BUSINESS SERVICES,CORE-PINV-009173,1022387.84,Other Professional Services
Department for Education,Core,14/10/2020,Other Goods & Services,TEACHERS AND TEACHING,CAPITA BUSINESS SERVICES,CORE-PINV-009213,113598.65,Other Professional Services
Department for Education,Core,30/10/2020,Grants expenditure,EY AND SCHOOLS STRATEGY TOTAL,PACEY,CORE-MAIN-007880,65621.24,Grants to educational establishments or not for profit organisations including other businesses
Department for Education,Core,06/10/2020,"Marketing, Media and Comms",EY AND SCHOOLS STRATEGY TOTAL,OMD GROUP TA MANNING GOTTLIEB OMD LTD,CORE-PINV-008711,23.64,"Publicity, advertising, media advertising campaigns (excluding recruitment adverts)"
Department for Education,Core,06/10/2020,"Marketing, Media and Comms",EY AND SCHOOLS STRATEGY TOTAL,OMD GROUP TA MANNING GOTTLIEB OMD LTD,CORE-PINV-008711,23878.5,"Publicity, advertising, media advertising campaigns (excluding recruitment adverts)"
Department for Education,Core,30/10/2020,Grants expenditure,EY AND SCHOOLS STRATEGY TOTAL,THE EDUCATION ENDOWMENT FOUNDATION,CORE-MAIN-007882,168089,Grants to educational establishments or not for profit organisations including other businesses
Department for Education,Core,02/10/2020,Learning & Development,EY AND SCHOOLS STRATEGY TOTAL,EDUCATION DEVELOPMENT TRUST,CORE-PINV-008551,208829,Training & Development costs
Department for Education,Core,29/10/2020,Learning & Development,EY AND SCHOOLS STRATEGY TOTAL,EDUCATION DEVELOPMENT TRUST,CORE-PINV-009963,73165,Training & Development costs
Department for Education,Core,05/10/2020,Grants expenditure,EY AND SCHOOLS STRATEGY TOTAL,SHEFFIELD HALLAM UNIVERSITY,CUPS0010805,25600,Grants to educational establishments or not for profit organisations including other businesses
Department for Education,Core,07/10/2020,Other Goods & Services,TEACHING WORKFORCE TOTAL,TELEPERFORMANCE LTD,CORE-PINV-008812,71598.09,Other Professional Services
Department for Education,Core,30/10/2020,Consultancy,TEACHING WORKFORCE TOTAL,SHARPE PRITCHARD LLP,CORE-PINV-010006,22971,"Advisory services including fees, travel and expenses"
Department for Education,Core,07/10/2020,Other Goods & Services,TEACHING WORKFORCE TOTAL,TELEPERFORMANCE LTD,CORE-PINV-008813,531356.5,Other Professional Services
Department for Education,Core,23/10/2020,"Marketing, Media and Comms",TEACHING WORKFORCE TOTAL,OMD GROUP TA MANNING GOTTLIEB OMD LTD,CORE-PCR-000332,-30.42,"Publicity, advertising, media advertising campaigns (excluding recruitment adverts)"
Department for Education,Core,23/10/2020,"Marketing, Media and Comms",TEACHING WORKFORCE TOTAL,OMD GROUP TA MANNING GOTTLIEB OMD LTD,CORE-PCR-000332,-30729.49,"Publicity, advertising, media advertising campaigns (excluding recruitment adverts)"
Department for Education,Core,02/10/2020,"Marketing, Media and Comms",TEACHING WORKFORCE TOTAL,OMD GROUP TA MANNING GOTTLIEB OMD LTD,CORE-PINV-008253,53.65,"Publicity, advertising, media advertising campaigns (excluding recruitment adverts)"
Department for Education,Core,02/10/2020,"Marketing, Media and Comms",TEACHING WORKFORCE TOTAL,OMD GROUP TA MANNING GOTTLIEB OMD LTD,CORE-PINV-008253,54300.64,"Publicity, advertising, media advertising campaigns (excluding recruitment adverts)"
Department for Education,Core,01/10/2020,"Marketing, Media and Comms",TEACHING WORKFORCE TOTAL,HAVAS WORLDWIDE LONDON LTD,CORE-PINV-008279,67170.56,"Publicity, advertising, media advertising campaigns (excluding recruitment adverts)"
Department for Education,Core,01/10/2020,"Marketing, Media and Comms",TEACHING WORKFORCE TOTAL,HAVAS WORLDWIDE LONDON LTD,CORE-PINV-008282,42397.07,"Publicity, advertising, media advertising campaigns (excluding recruitment adverts)"
Department for Education,Core,07/10/2020,Other Goods & Services,TEACHING WORKFORCE TOTAL,POPULUS LTD,CORE-PINV-008748,29000,Research and Development
Department for Education,Core,09/10/2020,"Marketing, Media and Comms",TEACHING WORKFORCE TOTAL,OMD GROUP TA MANNING GOTTLIEB OMD LTD,CORE-PINV-008930,51.55,"Publicity, advertising, media advertising campaigns (excluding recruitment adverts)"
Department for Education,Core,09/10/2020,"Marketing, Media and Comms",TEACHING WORKFORCE TOTAL,OMD GROUP TA MANNING GOTTLIEB OMD LTD,CORE-PINV-008930,52066.74,"Publicity, advertising, media advertising campaigns (excluding recruitment adverts)"
Department for Education,Core,28/10/2020,"Marketing, Media and Comms",TEACHING WORKFORCE TOTAL,OMD GROUP TA MANNING GOTTLIEB OMD LTD,CORE-PINV-009275,195.98,"Publicity, advertising, media advertising campaigns (excluding recruitment adverts)"
Department for Education,Core,28/10/2020,"Marketing, Media and Comms",TEACHING WORKFORCE TOTAL,OMD GROUP TA MANNING GOTTLIEB OMD LTD,CORE-PINV-009275,197941.3,"Publicity, advertising, media advertising campaigns (excluding recruitment adverts)"
Department for Education,Core,28/10/2020,"Marketing, Media and Comms",TEACHING WORKFORCE TOTAL,OMD GROUP TA MANNING GOTTLIEB OMD LTD,CORE-PINV-009284,602.36,"Publicity, advertising, media advertising campaigns (excluding recruitment adverts)"
Department for Education,Core,28/10/2020,"Marketing, Media and Comms",TEACHING WORKFORCE TOTAL,OMD GROUP TA MANNING GOTTLIEB OMD LTD,CORE-PINV-009284,608386.1,"Publicity, advertising, media advertising campaigns (excluding recruitment adverts)"
Department for Education,Core,19/10/2020,"Marketing, Media and Comms",TEACHING WORKFORCE TOTAL,OMD GROUP TA MANNING GOTTLIEB OMD LTD,CORE-PINV-009318,37.36,"Publicity, advertising, media advertising campaigns (excluding recruitment adverts)"
Department for Education,Core,19/10/2020,"Marketing, Media and Comms",TEACHING WORKFORCE TOTAL,OMD GROUP TA MANNING GOTTLIEB OMD LTD,CORE-PINV-009318,37731.09,"Publicity, advertising, media advertising campaigns (excluding recruitment adverts)"
Department for Education,Core,19/10/2020,"Marketing, Media and Comms",TEACHING WORKFORCE TOTAL,OMD GROUP TA MANNING GOTTLIEB OMD LTD,CORE-PINV-009347,77.89,"Publicity, advertising, media advertising campaigns (excluding recruitment adverts)"
Department for Education,Core,19/10/2020,"Marketing, Media and Comms",TEACHING WORKFORCE TOTAL,OMD GROUP TA MANNING GOTTLIEB OMD LTD,CORE-PINV-009347,78671.92,"Publicity, advertising, media advertising campaigns (excluding recruitment adverts)"
Department for Education,Core,23/10/2020,"Marketing, Media and Comms",TEACHING WORKFORCE TOTAL,OMD GROUP TA MANNING GOTTLIEB OMD LTD,CORE-PINV-009664,79.28,"Publicity, advertising, media advertising campaigns (excluding recruitment adverts)"
Department for Education,Core,23/10/2020,"Marketing, Media and Comms",TEACHING WORKFORCE TOTAL,OMD GROUP TA MANNING GOTTLIEB OMD LTD,CORE-PINV-009664,80075.25,"Publicity, advertising, media advertising campaigns (excluding recruitment adverts)"
Department for Education,Core,29/10/2020,"Marketing, Media and Comms",TEACHING WORKFORCE TOTAL,HAVAS WORLDWIDE LONDON LTD,CORE-PINV-009667,25567.07,"Publicity, advertising, media advertising campaigns (excluding recruitment adverts)"
Department for Education,Core,01/10/2020,"Marketing, Media and Comms",TEACHING WORKFORCE TOTAL,Kindred Agency Limited,CORE-PINV-008498,22000,"Publicity, advertising, media advertising campaigns (excluding recruitment adverts)"
Department for Education,Core,07/10/2020,IS/IT,TEACHING WORKFORCE TOTAL,OLIVE JAR DIGITAL LTD,CORE-PINV-008821,152328,Software Development
Department for Education,Core,20/10/2020,IS/IT,TEACHING WORKFORCE TOTAL,FARSIGHT CONSULTING LIMITED,CORE-PINV-009387,28500,Software Development
Department for Education,Core,26/10/2020,IS/IT,TEACHING WORKFORCE TOTAL,FARSIGHT CONSULTING LIMITED,CORE-PINV-009134,23725,Software Development
Department for Education,Core,26/10/2020,IS/IT,TEACHING WORKFORCE TOTAL,ADROC LTD,CORE-PINV-009592,36000,Software Development
Department for Education,Core,30/10/2020,Grants expenditure,TEACHING WORKFORCE TOTAL,Notre Dame High School,CORE-MAIN-007884,31500,"Grants paid to organisations including agencies, arms length bodies and educational establishments"
Department for Education,Core,30/10/2020,Grants expenditure,TEACHING WORKFORCE TOTAL,HARTON ACADEMY,CORE-MAIN-007886,48500,"Grants paid to organisations including agencies, arms length bodies and educational establishments"
Department for Education,Core,30/10/2020,Grants expenditure,TEACHING WORKFORCE TOTAL,THE CARDINAL VAUGHAN MEMORIAL RC SCHOOL,CORE-MAIN-007887,30475,"Grants paid to organisations including agencies, arms length bodies and educational establishments"
Department for Education,Core,30/10/2020,Grants expenditure,TEACHING WORKFORCE TOTAL,George Abbot School,CORE-MAIN-007888,26180,"Grants paid to organisations including agencies, arms length bodies and educational establishments"
Department for Education,Core,30/10/2020,Grants expenditure,TEACHING WORKFORCE TOTAL,Poole Grammar School ,CORE-MAIN-007889,64735,"Grants paid to organisations including agencies, arms length bodies and educational establishments"
Department for Education,Core,30/10/2020,Grants expenditure,TEACHING WORKFORCE TOTAL,BISHOP CHALLONER CATHOLIC COLLEGE,CORE-MAIN-007890,27600,Grants to local authorities
Department for Education,Core,23/10/2020,Professional Services,TEACHING WORKFORCE TOTAL,COGNITION EDUCATION,CORE-PINV-009628,111583.81,EDUCATIONAL SERVICES
Department for Education,Core,07/10/2020,Other Goods & Services,TEACHING WORKFORCE TOTAL,TELEPERFORMANCE LTD,CORE-PINV-008811,27006.45,Other Professional Services
Department for Education,Core,08/10/2020,Other Goods & Services,TEACHING WORKFORCE TOTAL,CFBT EDUCATION TRUST,CORE-PINV-008868,304000,Other Professional Services
Department for Education,Core,30/10/2020,Professional Services,TEACHING WORKFORCE TOTAL,EDUCATION DEVELOPMENT TRUST,CORE-PINV-010008,61168.07,EDUCATIONAL SERVICES
Department for Education,Core,05/10/2020,Grants expenditure,TEACHING WORKFORCE TOTAL,E-QUALITAS PROFESSIONAL SERVICES LIMITED,CORE-MAIN-007194,128814.22,Grants to educational establishments or not for profit organisations including other businesses
Department for Education,Core,05/10/2020,Grants expenditure,TEACHING WORKFORCE TOTAL,The GORSE Academies Trust,CORE-MAIN-007195,73199.99,Grants to educational establishments or not for profit organisations including other businesses
Department for Education,Core,05/10/2020,Grants expenditure,TEACHING WORKFORCE TOTAL,ST MARY & ST PAULS CE PRIMARY SCHOOL TS ACCOUNT,CORE-MAIN-007201,60704,Grants to educational establishments or not for profit organisations including other businesses
Department for Education,Core,05/10/2020,Grants expenditure,TEACHING WORKFORCE TOTAL,SHEFFIELD HALLAM UNIVERSITY,CORE-MAIN-007203,39385.47,Grants to educational establishments or not for profit organisations including other businesses
Department for Education,Core,05/10/2020,Grants expenditure,TEACHING WORKFORCE TOTAL,HIBERNIA COLLEGE UK,CORE-MAIN-007206,201312.53,Grants to educational establishments or not for profit organisations including other businesses
Department for Education,Core,05/10/2020,Grants expenditure,TEACHING WORKFORCE TOTAL,UNIVERSITY OF SUSSEX,CORE-MAIN-007216,255346.99,Grants to educational establishments or not for profit organisations including other businesses
Department for Education,Core,05/10/2020,Grants expenditure,TEACHING WORKFORCE TOTAL,YORKSHIRE AND HUMBER TEACHER TRAINING,CORE-MAIN-007218,28628.57,Grants to educational establishments or not for profit organisations including other businesses
Department for Education,Core,02/10/2020,Other Goods & Services,TEACHING WORKFORCE TOTAL,P2P EDUCATION LTD,CORE-PINV-007950,36000,Other Professional Services
Department for Education,Core,20/10/2020,Other Goods & Services,TEACHING WORKFORCE TOTAL,PROSPERO GROUP LTD,CORE-PINV-009469,61398,Other Professional Services
Department for Education,Core,28/10/2020,Professional Services,TEACHING WORKFORCE TOTAL,TEACH FIRST,CORE-PINV-009328,863066.86,EDUCATIONAL SERVICES
Department for Education,Core,28/10/2020,Professional Services,TEACHING WORKFORCE TOTAL,TEACH FIRST,CORE-PINV-009329,971484.72,EDUCATIONAL SERVICES
Department for Education,Core,05/10/2020,Other Goods & Services,SYSTEM CAPACITY LEADERSHIP AND GOVERNANCE TOTAL,TEACH FIRST,CORE-PINV-008595,96015.68,Programme Expenditure
Department for Education,Core,05/10/2020,Other Goods & Services,SYSTEM CAPACITY LEADERSHIP AND GOVERNANCE TOTAL,UCL CONSULTANTS LTD,CORE-PINV-008604,94095.91,Programme Expenditure
Department for Education,Core,06/10/2020,Other Goods & Services,SYSTEM CAPACITY LEADERSHIP AND GOVERNANCE TOTAL,EDUCATION DEVELOPMENT TRUST,CORE-PINV-008627,59337.06,Programme Expenditure
Department for Education,Core,08/10/2020,Other Goods & Services,SYSTEM CAPACITY LEADERSHIP AND GOVERNANCE TOTAL,AMBITION INSTITUTE,CORE-PINV-008847,96698.93,Programme Expenditure
Department for Education,Core,28/10/2020,IS/IT,SYSTEM CAPACITY LEADERSHIP AND GOVERNANCE TOTAL,FARSIGHT CONSULTING LIMITED,CORE-PINV-009252,83696.25,IS/IT Services - Systems Development
Department for Education,Core,06/10/2020,Learning & Development,SEND AND DISADVANTAGE GROUP,THE ANNA FREUD CENTRE,CORE-PINV-007167,89296.96,Training & Development costs
Department for Education,Core,08/10/2020,Learning & Development,SEND AND DISADVANTAGE GROUP,THE ANNA FREUD CENTRE,CORE-PINV-008319,137669.86,Training & Development costs
Department for Education,Core,05/10/2020,Grants expenditure,ASSESSMENT AND CURRICULUM AND GENERAL QUALIFICATIONS,ARK ST ALBAN'S ACADEMY,CORE-MAIN-007231,37040,Grants to educational establishments or not for profit organisations including other businesses
Department for Education,Core,16/10/2020,Other Goods & Services,ASSESSMENT AND CURRICULUM AND GENERAL QUALIFICATIONS,UNIVERSITY OF YORK,CORE-PINV-009287,51605,Other Professional Services
Department for Education,Core,16/10/2020,Other Goods & Services,ASSESSMENT AND CURRICULUM AND GENERAL QUALIFICATIONS,UNIVERSITY OF YORK,CORE-PINV-009288,126000,Other Professional Services
Department for Education,Core,26/10/2020,Other Goods & Services,ASSESSMENT AND CURRICULUM AND GENERAL QUALIFICATIONS,CARDIFF UNIVERSITY,CORE-PINV-009695,417555.3,Research and Development
Department for Education,Core,13/10/2020,Grants expenditure,SCHOOL QUALITY AND SAFEGUARDING TOTAL,NEW SCHOOLS NETWORK,CORE-MAIN-007399,53652.73,Grants to educational establishments or not for profit organisations including other businesses
Department for Education,Core,09/10/2020,Professional Services,SCHOOL QUALITY AND SAFEGUARDING TOTAL,CONFEDERATION OF SCHOOL TRUSTS,CORE-PINV-008621,79000,EDUCATIONAL SERVICES
Department for Education,Core,09/10/2020,Professional Services,SCHOOL QUALITY AND SAFEGUARDING TOTAL,CONFEDERATION OF SCHOOL TRUSTS,CORE-PINV-008624,78500,EDUCATIONAL SERVICES
Department for Education,Core,09/10/2020,Professional Services,SCHOOL QUALITY AND SAFEGUARDING TOTAL,CONFEDERATION OF SCHOOL TRUSTS,CORE-PINV-008625,43000,EDUCATIONAL SERVICES
Department for Education,Core,20/10/2020,Other Goods & Services,SCHOOL QUALITY AND SAFEGUARDING TOTAL,EDUCATION AND EMPLOYERS TASKFORCE,CORE-PINV-009375,79167,Other Professional Services
Department for Education,Core,30/10/2020,Professional Services,SCHOOL QUALITY AND SAFEGUARDING TOTAL,NATIONAL GOVERNANCE ASSOCIATION,CORE-PINV-009559,49800,EDUCATIONAL SERVICES
Department for Education,Core,22/10/2020,Professional Services,SCHOOL QUALITY AND SAFEGUARDING TOTAL,GOVERN ED LTD,CORE-PINV-009602,40000,EDUCATIONAL SERVICES
Department for Education,Core,30/10/2020,Grants expenditure,SCHOOL QUALITY AND SAFEGUARDING TOTAL,Buckinghamshire Council,CORE-MAIN-007921,25833,Grants to local authorities
Department for Education,Core,30/10/2020,Grants expenditure,SCHOOL QUALITY AND SAFEGUARDING TOTAL,CAMBRIDGESHIRE COUNTY COUNCIL,CORE-MAIN-007924,55867,Grants to local authorities
Department for Education,Core,30/10/2020,Grants expenditure,SCHOOL QUALITY AND SAFEGUARDING TOTAL,CHESHIRE WEST & CHESTER COUNCIL,CORE-MAIN-007928,28217,Grants to local authorities
Department for Education,Core,30/10/2020,Grants expenditure,SCHOOL QUALITY AND SAFEGUARDING TOTAL,CORNWALL COUNCIL,CORE-MAIN-007929,69983,Grants to local authorities
Department for Education,Core,30/10/2020,Grants expenditure,SCHOOL QUALITY AND SAFEGUARDING TOTAL,CUMBRIA COUNTY COUNCIL,CORE-MAIN-007932,32883,Grants to local authorities
Department for Education,Core,30/10/2020,Grants expenditure,SCHOOL QUALITY AND SAFEGUARDING TOTAL,DERBYSHIRE COUNTY COUNCIL,CORE-MAIN-007935,97400,Grants to local authorities
Department for Education,Core,30/10/2020,Grants expenditure,SCHOOL QUALITY AND SAFEGUARDING TOTAL,DEVON COUNTY COUNCIL,CORE-MAIN-007936,54508,Grants to local authorities
Department for Education,Core,30/10/2020,Grants expenditure,SCHOOL QUALITY AND SAFEGUARDING TOTAL,DORSET COUNCIL,CORE-MAIN-007938,61675,Grants to local authorities
Department for Education,Core,30/10/2020,Grants expenditure,SCHOOL QUALITY AND SAFEGUARDING TOTAL,DURHAM COUNTY COUNCIL,CORE-MAIN-007940,116517,Grants to local authorities
Department for Education,Core,30/10/2020,Grants expenditure,SCHOOL QUALITY AND SAFEGUARDING TOTAL,EAST SUSSEX COUNTY COUNCIL,CORE-MAIN-007943,58375,Grants to local authorities
Department for Education,Core,30/10/2020,Grants expenditure,SCHOOL QUALITY AND SAFEGUARDING TOTAL,ESSEX COUNTY COUNCIL,CORE-MAIN-007945,78283,Grants to local authorities
Department for Education,Core,30/10/2020,Grants expenditure,SCHOOL QUALITY AND SAFEGUARDING TOTAL,Gloucestershire County Council,CORE-MAIN-007947,49500,Grants to local authorities
Department for Education,Core,30/10/2020,Grants expenditure,SCHOOL QUALITY AND SAFEGUARDING TOTAL,HAMPSHIRE COUNTY COUNCIL,CORE-MAIN-007952,52342,Grants to local authorities
Department for Education,Core,30/10/2020,Grants expenditure,SCHOOL QUALITY AND SAFEGUARDING TOTAL,KENT COUNTY COUNCIL,CORE-MAIN-007964,164083,Grants to local authorities
Department for Education,Core,30/10/2020,Grants expenditure,SCHOOL QUALITY AND SAFEGUARDING TOTAL,LANCASHIRE COUNTY COUNCIL,CORE-MAIN-007970,87617,Grants to local authorities
Department for Education,Core,30/10/2020,Grants expenditure,SCHOOL QUALITY AND SAFEGUARDING TOTAL,LEICESTERSHIRE COUNTY COUNCIL,CORE-MAIN-007973,52908,Grants to local authorities
Department for Education,Core,30/10/2020,Grants expenditure,SCHOOL QUALITY AND SAFEGUARDING TOTAL,LINCOLNSHIRE COUNTY COUNCIL,CORE-MAIN-007975,81133,Grants to local authorities
Department for Education,Core,30/10/2020,Grants expenditure,SCHOOL QUALITY AND SAFEGUARDING TOTAL,NORFOLK COUNTY COUNCIL,CORE-MAIN-007985,84092,Grants to local authorities
Department for Education,Core,30/10/2020,Grants expenditure,SCHOOL QUALITY AND SAFEGUARDING TOTAL,NORTH YORKSHIRE COUNTY COUNCIL,CORE-MAIN-007990,40967,Grants to local authorities
Department for Education,Core,30/10/2020,Grants expenditure,SCHOOL QUALITY AND SAFEGUARDING TOTAL,NORTHAMPTONSHIRE COUNTY COUNCIL,CORE-MAIN-007991,35275,Grants to local authorities
Department for Education,Core,30/10/2020,Grants expenditure,SCHOOL QUALITY AND SAFEGUARDING TOTAL,NORTHUMBERLAND COUNTY COUNCIL,CORE-MAIN-007992,28108,Grants to local authorities
Department for Education,Core,30/10/2020,Grants expenditure,SCHOOL QUALITY AND SAFEGUARDING TOTAL,NOTTINGHAMSHIRE COUNTY COUNCIL,CORE-MAIN-007994,53367,Grants to local authorities
Department for Education,Core,30/10/2020,Grants expenditure,SCHOOL QUALITY AND SAFEGUARDING TOTAL,Oxfordshire County Council,CORE-MAIN-007996,37892,Grants to local authorities
Department for Education,Core,30/10/2020,Grants expenditure,SCHOOL QUALITY AND SAFEGUARDING TOTAL,SOMERSET COUNTY COUNCIL,CORE-MAIN-008013,57233,Grants to local authorities
Department for Education,Core,30/10/2020,Grants expenditure,SCHOOL QUALITY AND SAFEGUARDING TOTAL,Staffordshire County Council,CORE-MAIN-008019,37433,Grants to local authorities
Department for Education,Core,30/10/2020,Grants expenditure,SCHOOL QUALITY AND SAFEGUARDING TOTAL,SUFFOLK COUNTY COUNCIL,CORE-MAIN-008023,61558,Grants to local authorities
Department for Education,Core,30/10/2020,Grants expenditure,SCHOOL QUALITY AND SAFEGUARDING TOTAL,Wakefield City Council,CORE-MAIN-008034,27875,Grants to local authorities
Department for Education,Core,30/10/2020,Grants expenditure,SCHOOL QUALITY AND SAFEGUARDING TOTAL,WARWICKSHIRE COUNTY COUNCIL,CORE-MAIN-008039,29242,Grants to local authorities
Department for Education,Core,30/10/2020,Grants expenditure,SCHOOL QUALITY AND SAFEGUARDING TOTAL,West Sussex County Council,CORE-MAIN-008041,40283,Grants to local authorities
Department for Education,Core,30/10/2020,Grants expenditure,SCHOOL QUALITY AND SAFEGUARDING TOTAL,WILTSHIRE COUNTY COUNCIL,CORE-MAIN-008044,36750,Grants to local authorities
Department for Education,Core,30/10/2020,Grants expenditure,SCHOOL QUALITY AND SAFEGUARDING TOTAL,WORCESTERSHIRE COUNTY COUNCIL,CORE-MAIN-008049,35733,Grants to local authorities
Department for Education,Core,02/10/2020,Grants expenditure,School Systems Group,MINISTRY FOR HOUSING COMMUNITIES & LOCAL GOVERNMENT,CORE-PINV-008535,197000,Grants paid to other Government Departments
Department for Education,Core,13/10/2020,Grants expenditure,ACADEMIES DELIVERY DIRECTORATE,Chiltern Way Academy,CORE-MAIN-007400,108135,"Grants paid to organisations including agencies, arms length bodies and educational establishments"
Department for Education,Core,30/10/2020,Grants expenditure,ACADEMIES DELIVERY DIRECTORATE,Kings Academy Trust,CORE-MAIN-008053,34500,"Grants paid to organisations including agencies, arms length bodies and educational establishments"
Department for Education,Core,30/10/2020,Grants expenditure,ACADEMIES DELIVERY DIRECTORATE,Eynsham Partnership Academy,CORE-MAIN-008054,150000,"Grants paid to organisations including agencies, arms length bodies and educational establishments"
Department for Education,Core,30/10/2020,Grants expenditure,ACADEMIES DELIVERY DIRECTORATE,The Park Federation Academy Trust,CORE-MAIN-008055,160000,"Grants paid to organisations including agencies, arms length bodies and educational establishments"
Department for Education,Core,30/10/2020,Grants expenditure,ACADEMIES DELIVERY DIRECTORATE,River Learning Trust,CORE-MAIN-008056,80000,"Grants paid to organisations including agencies, arms length bodies and educational establishments"
Department for Education,Core,13/10/2020,Grants expenditure,ACADEMIES DELIVERY DIRECTORATE,Central RSA Academies Trust,CORE-MAIN-007401,40000,Capital grants paid to a private sector organisation
Department for Education,Core,13/10/2020,Grants expenditure,ACADEMIES DELIVERY DIRECTORATE,Mercian Educational Trust,CORE-MAIN-007402,40000,Capital grants paid to a private sector organisation
Department for Education,Core,30/10/2020,Grants expenditure,ACADEMIES DELIVERY DIRECTORATE,Eynsham Partnership Academy,CORE-MAIN-008057,80000,Capital grants paid to a private sector organisation
Department for Education,Core,30/10/2020,Grants expenditure,ACADEMIES DELIVERY DIRECTORATE,Knowledge Schools Trust,CORE-MAIN-008058,40000,Capital grants paid to a private sector organisation
Department for Education,Core,30/10/2020,Grants expenditure,ACADEMIES DELIVERY DIRECTORATE,THE GOOD SHEPHERD MULTI ACADEMY,CORE-MAIN-008059,40000,Capital grants paid to a private sector organisation
Department for Education,Core,30/10/2020,Grants expenditure,ACADEMIES DELIVERY DIRECTORATE,Chiltern Way Academy,CORE-MAIN-008060,40000,Capital grants paid to a private sector organisation
Department for Education,Core,30/10/2020,Grants expenditure,ACADEMIES DELIVERY DIRECTORATE,Outwood Grange Academies Trust,CORE-MAIN-008061,80000,Capital grants paid to a private sector organisation
Department for Education,Core,30/10/2020,Grants expenditure,ACADEMIES DELIVERY DIRECTORATE,SS SIMON & JUDE MULTI ACADEMY TRUST,CORE-MAIN-008062,40000,Capital grants paid to a private sector organisation
Department for Education,Core,05/10/2020,Grants expenditure,FREE SCHOOL DIRECTORATE,Morris Education Trust,CORE-MAIN-007232,25000,"Grants paid to organisations including agencies, arms length bodies and educational establishments"
Department for Education,Core,13/10/2020,Grants expenditure,FREE SCHOOL DIRECTORATE,Birmingham Diocesan Academies Trust,CORE-MAIN-007403,52000,"Grants paid to organisations including agencies, arms length bodies and educational establishments"
Department for Education,Core,13/10/2020,Grants expenditure,FREE SCHOOL DIRECTORATE,LEARN@MAT,CORE-MAIN-007404,30000,"Grants paid to organisations including agencies, arms length bodies and educational establishments"
Department for Education,Core,13/10/2020,Grants expenditure,FREE SCHOOL DIRECTORATE,Birmingham Ormiston Academy,CORE-MAIN-007405,80000,"Grants paid to organisations including agencies, arms length bodies and educational establishments"
Department for Education,Core,13/10/2020,Grants expenditure,FREE SCHOOL DIRECTORATE,Community Inclusive Trust,CORE-MAIN-007406,30000,"Grants paid to organisations including agencies, arms length bodies and educational establishments"
Department for Education,Core,13/10/2020,Grants expenditure,FREE SCHOOL DIRECTORATE,Wave Multi Academy Trust,CORE-MAIN-007407,30000,"Grants paid to organisations including agencies, arms length bodies and educational establishments"
Department for Education,Core,13/10/2020,Grants expenditure,FREE SCHOOL DIRECTORATE,Ambitious about Autism Schools Trust,CORE-MAIN-007408,30000,"Grants paid to organisations including agencies, arms length bodies and educational establishments"
Department for Education,Core,13/10/2020,Grants expenditure,FREE SCHOOL DIRECTORATE,Learning in Harmony Multi Academy Trust,CORE-MAIN-007409,30000,"Grants paid to organisations including agencies, arms length bodies and educational establishments"
Department for Education,Core,13/10/2020,Grants expenditure,FREE SCHOOL DIRECTORATE,MAIDEN ERLEGH TRUST,CORE-MAIN-007410,30000,"Grants paid to organisations including agencies, arms length bodies and educational establishments"
Department for Education,Core,13/10/2020,Grants expenditure,FREE SCHOOL DIRECTORATE,Manor Hall Academy Trust,CORE-MAIN-007411,30000,"Grants paid to organisations including agencies, arms length bodies and educational establishments"
Department for Education,Core,13/10/2020,Grants expenditure,FREE SCHOOL DIRECTORATE,Old Ford Primary - A Paradigm Academy,CORE-MAIN-007412,30000,"Grants paid to organisations including agencies, arms length bodies and educational establishments"
Department for Education,Core,13/10/2020,Grants expenditure,FREE SCHOOL DIRECTORATE,Prosper Learning Trust,CORE-MAIN-007413,30000,"Grants paid to organisations including agencies, arms length bodies and educational establishments"
Department for Education,Core,13/10/2020,Grants expenditure,FREE SCHOOL DIRECTORATE,Reach South Academy Trust,CORE-MAIN-007414,30000,"Grants paid to organisations including agencies, arms length bodies and educational establishments"
Department for Education,Core,13/10/2020,Grants expenditure,FREE SCHOOL DIRECTORATE,Sapientia Education Trust,CORE-MAIN-007415,74263.22,"Grants paid to organisations including agencies, arms length bodies and educational establishments"
Department for Education,Core,13/10/2020,Grants expenditure,FREE SCHOOL DIRECTORATE,Beckmead School,CORE-MAIN-007416,55000,"Grants paid to organisations including agencies, arms length bodies and educational establishments"
Department for Education,Core,13/10/2020,Grants expenditure,FREE SCHOOL DIRECTORATE,The Rivers C of E Multi Academy Trust,CORE-MAIN-007417,30000,"Grants paid to organisations including agencies, arms length bodies and educational establishments"
Department for Education,Core,13/10/2020,Grants expenditure,FREE SCHOOL DIRECTORATE,The Sabden Multi Academy Trust,CORE-MAIN-007418,30000,"Grants paid to organisations including agencies, arms length bodies and educational establishments"
Department for Education,Core,13/10/2020,Grants expenditure,FREE SCHOOL DIRECTORATE,VENN ACADEMY TRUST,CORE-MAIN-007419,50000,"Grants paid to organisations including agencies, arms length bodies and educational establishments"
Department for Education,Core,13/10/2020,Grants expenditure,FREE SCHOOL DIRECTORATE,Victoria Academies Trust,CORE-MAIN-007420,30000,"Grants paid to organisations including agencies, arms length bodies and educational establishments"
Department for Education,Core,13/10/2020,Grants expenditure,FREE SCHOOL DIRECTORATE,Windsor Academy Trust,CORE-MAIN-007421,135000,"Grants paid to organisations including agencies, arms length bodies and educational establishments"
Department for Education,Core,30/10/2020,Grants expenditure,FREE SCHOOL DIRECTORATE,Morris Education Trust,CORE-MAIN-008064,25000,"Grants paid to organisations including agencies, arms length bodies and educational establishments"
Department for Education,Core,30/10/2020,Grants expenditure,FREE SCHOOL DIRECTORATE,FORWARD EDUCATION TRUST,CORE-MAIN-008065,30000,"Grants paid to organisations including agencies, arms length bodies and educational establishments"
Department for Education,Core,30/10/2020,Grants expenditure,FREE SCHOOL DIRECTORATE,VENN ACADEMY TRUST,CORE-MAIN-008066,50000,"Grants paid to organisations including agencies, arms length bodies and educational establishments"
Department for Education,Core,30/10/2020,Grants expenditure,FREE SCHOOL DIRECTORATE,Kings Academy Trust,CORE-MAIN-008067,30000,"Grants paid to organisations including agencies, arms length bodies and educational establishments"
Department for Education,Core,30/10/2020,Grants expenditure,FREE SCHOOL DIRECTORATE,The Delta Education Trust,CORE-MAIN-008068,30000,"Grants paid to organisations including agencies, arms length bodies and educational establishments"
Department for Education,Core,30/10/2020,Grants expenditure,FREE SCHOOL DIRECTORATE,THE GALLERY TRUST,CORE-MAIN-008069,30000,"Grants paid to organisations including agencies, arms length bodies and educational establishments"
Department for Education,Core,30/10/2020,Grants expenditure,FREE SCHOOL DIRECTORATE,THE SOVEREIGN TRUST,CORE-MAIN-008070,30000,"Grants paid to organisations including agencies, arms length bodies and educational establishments"
Department for Education,Core,30/10/2020,Grants expenditure,FREE SCHOOL DIRECTORATE,"Trinity Academy, Halifax",CORE-MAIN-008071,58000,"Grants paid to organisations including agencies, arms length bodies and educational establishments"
Department for Education,Core,30/10/2020,Grants expenditure,FREE SCHOOL DIRECTORATE,Wellspring Academy Trust,CORE-MAIN-008072,60000,"Grants paid to organisations including agencies, arms length bodies and educational establishments"
Department for Education,Core,05/10/2020,Grants expenditure,ACADEMIES AND REGIONAL DELIVERY TOTAL,Innovate multi academy trust,CORE-MAIN-007233,104887,"Grants paid to organisations including agencies, arms length bodies and educational establishments"
Department for Education,Core,13/10/2020,Grants expenditure,ACADEMIES AND REGIONAL DELIVERY TOTAL,OXFORD DIOCESAN SCHOOL TRUST,CORE-MAIN-007422,92450,"Grants paid to organisations including agencies, arms length bodies and educational establishments"
Department for Education,Core,30/10/2020,Grants expenditure,ACADEMIES AND REGIONAL DELIVERY TOTAL,Lydney Church of England Community School (VC),CORE-MAIN-008074,50000,"Grants paid to organisations including agencies, arms length bodies and educational establishments"
Department for Education,Core,13/10/2020,Grants expenditure,ACADEMIES AND REGIONAL DELIVERY TOTAL,Manor Park School and Nursery,CORE-MAIN-007430,25000,"Grants paid to organisations including agencies, arms length bodies and educational establishments"
Department for Education,Core,30/10/2020,Grants expenditure,ACADEMIES AND REGIONAL DELIVERY TOTAL,THE LEARNING COMMUNITY TRUST,CORE-MAIN-008085,25000,"Grants paid to organisations including agencies, arms length bodies and educational establishments"
Department for Education,Core,13/10/2020,Grants expenditure,ACADEMIES AND REGIONAL DELIVERY TOTAL,MANOR MULTI ACADEMY TRUST,CORE-MAIN-007431,110000,"Grants paid to organisations including agencies, arms length bodies and educational establishments"
Department for Education,Core,13/10/2020,Grants expenditure,ACADEMIES AND REGIONAL DELIVERY TOTAL,COMMUNITY ACADEMIES TRUST TEACHING SCHOOL,CORE-MAIN-007432,70000,"Grants paid to organisations including agencies, arms length bodies and educational establishments"
Department for Education,Core,13/10/2020,Grants expenditure,ACADEMIES AND REGIONAL DELIVERY TOTAL,Infinity Academies Trust Ltd,CORE-MAIN-007433,50000,"Grants paid to organisations including agencies, arms length bodies and educational establishments"
Department for Education,Core,30/10/2020,Grants expenditure,ACADEMIES AND REGIONAL DELIVERY TOTAL,White Hills Park Federation Trust,CORE-MAIN-008086,50000,"Grants paid to organisations including agencies, arms length bodies and educational establishments"
Department for Education,Core,30/10/2020,Grants expenditure,ACADEMIES AND REGIONAL DELIVERY TOTAL,LINCOLN ANGLICAN ACADEMY TRUST,CORE-MAIN-008087,25000,"Grants paid to organisations including agencies, arms length bodies and educational establishments"
Department for Education,Core,13/10/2020,Grants expenditure,ACADEMIES AND REGIONAL DELIVERY TOTAL,James Montgomery Academy Trust,CORE-MAIN-007434,85000,"Grants paid to organisations including agencies, arms length bodies and educational establishments"
Department for Education,Core,30/10/2020,Grants expenditure,ACADEMIES AND REGIONAL DELIVERY TOTAL,The Spencer Academies Trust,CORE-MAIN-008088,110000,"Grants paid to organisations including agencies, arms length bodies and educational establishments"
Department for Education,Core,13/10/2020,Grants expenditure,ACADEMIES AND REGIONAL DELIVERY TOTAL,ST TERESA OF CALCUTTA CATHOLIC ACADEMY TRUST,CORE-MAIN-007435,150000,"Grants paid to organisations including agencies, arms length bodies and educational establishments"
Department for Education,Core,13/10/2020,Grants expenditure,ACADEMIES AND REGIONAL DELIVERY TOTAL,The Bay Learning Trust ,CORE-MAIN-007436,70000,"Grants paid to organisations including agencies, arms length bodies and educational establishments"
Department for Education,Core,30/10/2020,Grants expenditure,ACADEMIES AND REGIONAL DELIVERY TOTAL,Endeavour Learning Trust,CORE-MAIN-008089,150000,"Grants paid to organisations including agencies, arms length bodies and educational establishments"
Department for Education,Core,30/10/2020,Grants expenditure,ACADEMIES AND REGIONAL DELIVERY TOTAL,Cidari Education Limited,CORE-MAIN-008090,70000,"Grants paid to organisations including agencies, arms length bodies and educational establishments"
Department for Education,Core,30/10/2020,Grants expenditure,ACADEMIES AND REGIONAL DELIVERY TOTAL,Elms Bank Specialist Arts College,CORE-MAIN-008091,70000,"Grants paid to organisations including agencies, arms length bodies and educational establishments"
Department for Education,Core,13/10/2020,Grants expenditure,ACADEMIES AND REGIONAL DELIVERY TOTAL,Attain Academy Partnership,CORE-MAIN-007437,25000,"Grants paid to organisations including agencies, arms length bodies and educational establishments"
Department for Education,Core,13/10/2020,Grants expenditure,ACADEMIES AND REGIONAL DELIVERY TOTAL,Cambridge Meridian Academies Trust,CORE-MAIN-007438,25000,"Grants paid to organisations including agencies, arms length bodies and educational establishments"
Department for Education,Core,13/10/2020,Grants expenditure,ACADEMIES AND REGIONAL DELIVERY TOTAL,Dickleburgh CofE Primary Academy,CORE-MAIN-007439,140000,"Grants paid to organisations including agencies, arms length bodies and educational establishments"
Department for Education,Core,13/10/2020,Grants expenditure,ACADEMIES AND REGIONAL DELIVERY TOTAL,STANLEY LEARNING PARTNERSHIP,CORE-MAIN-007440,75000,"Grants paid to organisations including agencies, arms length bodies and educational establishments"
Department for Education,Core,30/10/2020,Grants expenditure,ACADEMIES AND REGIONAL DELIVERY TOTAL,NORTHERN SAINTS CATHOLIC EDUCATION TRUST,CORE-MAIN-008092,25000,"Grants paid to organisations including agencies, arms length bodies and educational establishments"
Department for Education,Core,30/10/2020,Grants expenditure,ACADEMIES AND REGIONAL DELIVERY TOTAL,The Bishop Wheeler Catholic Academy Trust,CORE-MAIN-008093,25000,"Grants paid to organisations including agencies, arms length bodies and educational establishments"
Department for Education,Core,30/10/2020,Grants expenditure,ACADEMIES AND REGIONAL DELIVERY TOTAL,THE GOOD SHEPHERD MULTI ACADEMY,CORE-MAIN-008094,110000,"Grants paid to organisations including agencies, arms length bodies and educational establishments"
Department for Education,Core,30/10/2020,Grants expenditure,ACADEMIES AND REGIONAL DELIVERY TOTAL,Vision Academy Learning Trust,CORE-MAIN-008095,80000,"Grants paid to organisations including agencies, arms length bodies and educational establishments"
Department for Education,Core,30/10/2020,Grants expenditure,ACADEMIES AND REGIONAL DELIVERY TOTAL,Peterborough Diocese Education Trust,CORE-MAIN-008096,25000,"Grants paid to organisations including agencies, arms length bodies and educational establishments"
Department for Education,Core,30/10/2020,Grants expenditure,ACADEMIES AND REGIONAL DELIVERY TOTAL,Our Lady Immaculate Catholic Academies Trust,CORE-MAIN-008097,70000,"Grants paid to organisations including agencies, arms length bodies and educational establishments"
Department for Education,Core,30/10/2020,Grants expenditure,ACADEMIES AND REGIONAL DELIVERY TOTAL,Knowledge Schools Trust,CORE-MAIN-008098,90000,"Grants paid to organisations including agencies, arms length bodies and educational establishments"
Department for Education,Core,13/10/2020,Grants expenditure,ACADEMIES AND REGIONAL DELIVERY TOTAL,Diocese of Chichester Academy Trust,CORE-MAIN-007441,25000,"Grants paid to organisations including agencies, arms length bodies and educational establishments"
Department for Education,Core,13/10/2020,Grants expenditure,ACADEMIES AND REGIONAL DELIVERY TOTAL,Xavier Catholic Education Trust,CORE-MAIN-007442,25000,"Grants paid to organisations including agencies, arms length bodies and educational establishments"
Department for Education,Core,13/10/2020,Grants expenditure,ACADEMIES AND REGIONAL DELIVERY TOTAL,Charles Dickens Primary School,CORE-MAIN-007443,25000,"Grants paid to organisations including agencies, arms length bodies and educational establishments"
Department for Education,Core,30/10/2020,Grants expenditure,ACADEMIES AND REGIONAL DELIVERY TOTAL,The Pioneer Academy,CORE-MAIN-008099,25000,"Grants paid to organisations including agencies, arms length bodies and educational establishments"
Department for Education,Core,30/10/2020,Grants expenditure,ACADEMIES AND REGIONAL DELIVERY TOTAL,REIGATE VALLEY COLLEGE,CORE-MAIN-008100,85000,"Grants paid to organisations including agencies, arms length bodies and educational establishments"
Department for Education,Core,07/10/2020,IS/IT,FUNDING AND ANALYSIS TOTAL,OLIVE JAR DIGITAL LTD,CORE-PINV-008820,98730,Software Development
Department for Education,Core,13/10/2020,Grants expenditure,EARLY YEARS AND SCHOOLS GROUP,TEES VALLEY COMBINED AUTHORITY,CORE-MAIN-007444,91667.25,Grants to local authorities
Department for Education,Core,13/10/2020,Grants expenditure,EARLY YEARS AND SCHOOLS GROUP,North East Combined Authority,CORE-MAIN-007445,141638.98,Grants to local authorities
Department for Education,Core,13/10/2020,Grants expenditure,EARLY YEARS AND SCHOOLS GROUP,Northumberland CofE Academy,CORE-MAIN-007449,44046,"Grants paid to organisations including agencies, arms length bodies and educational establishments"
Department for Education,Core,13/10/2020,Grants expenditure,EARLY YEARS AND SCHOOLS GROUP,FREEBROUGH ACADEMY,CORE-MAIN-007453,53000,"Grants paid to organisations including agencies, arms length bodies and educational establishments"
Department for Education,Core,13/10/2020,Grants expenditure,EARLY YEARS AND SCHOOLS GROUP,Kenton School,CORE-MAIN-007454,41400,"Grants paid to organisations including agencies, arms length bodies and educational establishments"
Department for Education,Core,01/10/2020,Other Goods & Services,FUNDING AND ANALYSIS TOTAL,PLACE GROUP LTD,CORE-PINV-007977,126076,Other Professional Services
Department for Education,Core,01/10/2020,IS/IT,TEACHING WORKFORCE TOTAL,SCROLL PROJECTS LTD,CORE-PINV-007506,22712.5,Software Development
Department for Education,Core,26/10/2020,IS/IT,TEACHING WORKFORCE TOTAL,FARSIGHT CONSULTING LIMITED,CORE-PINV-009135,62875,Software Development
Department for Education,Core,27/10/2020,IS/IT,TEACHING WORKFORCE TOTAL,UCAS,CORE-PINV-009544,24500,Software Development
Department for Education,Core,26/10/2020,IS/IT,TEACHING WORKFORCE TOTAL,ADROC LTD,CORE-PINV-009591,29160,Software Development
Department for Education,Core,26/10/2020,IS/IT,TEACHING WORKFORCE TOTAL,ADROC LTD,CORE-PINV-009599,29280,Software Development
Department for Education,Core,09/10/2020,Other Goods & Services,EY AND SCHOOLS STRATEGY TOTAL,PHS GROUP PLC,CORE-PINV-008950,77136.55,Other Professional Services
Department for Education,Core,09/10/2020,Other Goods & Services,EY AND SCHOOLS STRATEGY TOTAL,PHS GROUP PLC,CORE-PINV-008950,9271.1,Other Professional Services
Department for Education,Core,09/10/2020,Other Goods & Services,EY AND SCHOOLS STRATEGY TOTAL,PHS GROUP PLC,CORE-PINV-008951,55469.07,Other Professional Services
Department for Education,Core,09/10/2020,Other Goods & Services,EY AND SCHOOLS STRATEGY TOTAL,PHS GROUP PLC,CORE-PINV-008951,15565.2,Other Professional Services
Department for Education,Core,09/10/2020,Other Goods & Services,EY AND SCHOOLS STRATEGY TOTAL,PHS GROUP PLC,CORE-PINV-008954,58681.64,Other Professional Services
Department for Education,Core,09/10/2020,Other Goods & Services,EY AND SCHOOLS STRATEGY TOTAL,PHS GROUP PLC,CORE-PINV-008954,3662.4,Other Professional Services
Department for Education,Core,12/10/2020,Office Costs,EY AND SCHOOLS STRATEGY TOTAL,PHS GROUP PLC,CORE-PINV-008967,96565.02,Document Storage
Department for Education,Core,12/10/2020,Office Costs,EY AND SCHOOLS STRATEGY TOTAL,PHS GROUP PLC,CORE-PINV-008970,78595.69,Document Storage
Department for Education,Core,05/10/2020,Grants expenditure,EARLY YEARS AND SCHOOLS GROUP,NEW SCHOOLS NETWORK,CORE-MAIN-007234,97107.45,Grants to educational establishments or not for profit organisations including other businesses
Department for Education,Core,05/10/2020,Grants expenditure,TEACHING WORKFORCE TOTAL,UNIVERSITY OF NORTHUMBRIA AT NEWCASTLE,CUPS0010598,60391.09,Grants to educational establishments or not for profit organisations including other businesses
Department for Education,Core,05/10/2020,Grants expenditure,TEACHING WORKFORCE TOTAL,Alpha Trust,CUPS0010599,92380.67,Grants to educational establishments or not for profit organisations including other businesses
Department for Education,Core,05/10/2020,Grants expenditure,TEACHING WORKFORCE TOTAL,NOTTINGHAM TRENT UNIVERSITY,CUPS0010601,190001.5,Grants to educational establishments or not for profit organisations including other businesses
Department for Education,Core,05/10/2020,Grants expenditure,TEACHING WORKFORCE TOTAL,UNIVERSITY OF BRISTOL,CUPS0010602,272238,Grants to educational establishments or not for profit organisations including other businesses
Department for Education,Core,05/10/2020,Grants expenditure,TEACHING WORKFORCE TOTAL,UNIVERSITY OF EAST LONDON,CUPS0010603,415038,Grants to educational establishments or not for profit organisations including other businesses
Department for Education,Core,05/10/2020,Grants expenditure,TEACHING WORKFORCE TOTAL,UNIVERSITY OF HERTFORDSHIRE,CUPS0010604,234115.5,Grants to educational establishments or not for profit organisations including other businesses
Department for Education,Core,05/10/2020,Grants expenditure,TEACHING WORKFORCE TOTAL,THE UNIVERSITY OF MANCHESTER,CUPS0010605,433576.5,Grants to educational establishments or not for profit organisations including other businesses
Department for Education,Core,05/10/2020,Grants expenditure,TEACHING WORKFORCE TOTAL,York St John University,CUPS0010606,100648.5,Grants to educational establishments or not for profit organisations including other businesses
Department for Education,Core,05/10/2020,Grants expenditure,TEACHING WORKFORCE TOTAL,MIDDLESEX UNIVERSITY,CUPS0010607,131733,Grants to educational establishments or not for profit organisations including other businesses
Department for Education,Core,05/10/2020,Grants expenditure,TEACHING WORKFORCE TOTAL,NORTH ESSEX TEACHER TRAINING,CUPS0010610,49137,Grants to educational establishments or not for profit organisations including other businesses
Department for Education,Core,05/10/2020,Grants expenditure,TEACHING WORKFORCE TOTAL,WEST MIDLANDS CONSORTIUM,CUPS0010611,25449,Grants to educational establishments or not for profit organisations including other businesses
Department for Education,Core,05/10/2020,Grants expenditure,TEACHING WORKFORCE TOTAL,LEARNING INSTITUTE SOUTH WEST SCITT,CUPS0010612,34017,Grants to educational establishments or not for profit organisations including other businesses
Department for Education,Core,05/10/2020,Grants expenditure,TEACHING WORKFORCE TOTAL,THE ARTHUR TERRY SCHOOL SCITT,CUPS0010614,68365.5,Grants to educational establishments or not for profit organisations including other businesses
Department for Education,Core,05/10/2020,Grants expenditure,TEACHING WORKFORCE TOTAL,LEICESTERSHIRE SECONDARY SCITT,CUPS0010615,122401,Grants to educational establishments or not for profit organisations including other businesses
Department for Education,Core,05/10/2020,Grants expenditure,TEACHING WORKFORCE TOTAL,EDUCATION MANAGEMENT DIRECT LTD,CUPS0010616,33787.5,Grants to educational establishments or not for profit organisations including other businesses
Department for Education,Core,05/10/2020,Grants expenditure,TEACHING WORKFORCE TOTAL,THE HAVERING TEACHER TRAINING PARTNERSHIP,CUPS0010617,41963.5,Grants to educational establishments or not for profit organisations including other businesses
Department for Education,Core,05/10/2020,Grants expenditure,TEACHING WORKFORCE TOTAL,POOLE SECONDARY SCHOOLS,CUPS0010618,35164.5,Grants to educational establishments or not for profit organisations including other businesses
Department for Education,Core,05/10/2020,Grants expenditure,TEACHING WORKFORCE TOTAL,MID SOMERSET CONSORTIUM FOR TEACHER TRAINING,CUPS0010619,61658,Grants to educational establishments or not for profit organisations including other businesses
Department for Education,Core,05/10/2020,Grants expenditure,TEACHING WORKFORCE TOTAL,Summit Learning Trust,CUPS0010620,31849.5,Grants to educational establishments or not for profit organisations including other businesses
Department for Education,Core,05/10/2020,Grants expenditure,TEACHING WORKFORCE TOTAL,Dove House School,CUPS0010621,36694.5,Grants to educational establishments or not for profit organisations including other businesses
Department for Education,Core,05/10/2020,Grants expenditure,TEACHING WORKFORCE TOTAL,ARK Schools,CUPS0010622,169804.5,Grants to educational establishments or not for profit organisations including other businesses
Department for Education,Core,05/10/2020,Grants expenditure,TEACHING WORKFORCE TOTAL,THORNDEN SCHOOL,CUPS0010623,35803.5,Grants to educational establishments or not for profit organisations including other businesses
Department for Education,Core,05/10/2020,Grants expenditure,TEACHING WORKFORCE TOTAL,DENBIGH ALLIANCE,CUPS0010624,36388.5,Grants to educational establishments or not for profit organisations including other businesses
Department for Education,Core,05/10/2020,Grants expenditure,TEACHING WORKFORCE TOTAL,TRAIN TO TEACH AT SURREY & HANTS,CUPS0010625,72012,Grants to educational establishments or not for profit organisations including other businesses
Department for Education,Core,05/10/2020,Grants expenditure,TEACHING WORKFORCE TOTAL,BRADFORD BIRTH TO 19 SCITT,CUPS0010626,32869.5,Grants to educational establishments or not for profit organisations including other businesses
Department for Education,Core,05/10/2020,Grants expenditure,TEACHING WORKFORCE TOTAL,SUTTON PARK SCITT,CUPS0010627,102995.5,Grants to educational establishments or not for profit organisations including other businesses
Department for Education,Core,05/10/2020,Grants expenditure,TEACHING WORKFORCE TOTAL,LINCOLNSHIRE TEACHING SCHOOL ALLIANCE,CUPS0010628,75021,Grants to educational establishments or not for profit organisations including other businesses
Department for Education,Core,05/10/2020,Grants expenditure,TEACHING WORKFORCE TOTAL,Star Academies,CUPS0010630,61098,Grants to educational establishments or not for profit organisations including other businesses
Department for Education,Core,05/10/2020,Grants expenditure,TEACHING WORKFORCE TOTAL,AA TEAMWORKS WEST YORKSHIRE SCITT,CUPS0010631,31227,Grants to educational establishments or not for profit organisations including other businesses
Department for Education,Core,05/10/2020,Grants expenditure,TEACHING WORKFORCE TOTAL,HAYBRIDGE ALLIANCE SCITT,CUPS0010632,66478.5,Grants to educational establishments or not for profit organisations including other businesses
Department for Education,Core,05/10/2020,Grants expenditure,TEACHING WORKFORCE TOTAL,SACRED HEART NEWCASTLE SCITT,CUPS0010633,71476.5,Grants to educational establishments or not for profit organisations including other businesses
Department for Education,Core,05/10/2020,Grants expenditure,TEACHING WORKFORCE TOTAL,BATH SPA UNIVERSITY,CUPS0010635,303114.5,Grants to educational establishments or not for profit organisations including other businesses
Department for Education,Core,05/10/2020,Grants expenditure,TEACHING WORKFORCE TOTAL,BISHOP GROSSETESTE UNIVERSITY,CUPS0010636,190669.5,Grants to educational establishments or not for profit organisations including other businesses
Department for Education,Core,05/10/2020,Grants expenditure,TEACHING WORKFORCE TOTAL,UNIVERSITY OF ST MARK & ST JOHN,CUPS0010637,156312,Grants to educational establishments or not for profit organisations including other businesses
Department for Education,Core,05/10/2020,Grants expenditure,TEACHING WORKFORCE TOTAL,GOLDSMITH COLLEGE,CUPS0010638,321707,Grants to educational establishments or not for profit organisations including other businesses
Department for Education,Core,05/10/2020,Grants expenditure,TEACHING WORKFORCE TOTAL,THE UNIVERSITY OF WINCHESTER,CUPS0010639,144220,Grants to educational establishments or not for profit organisations including other businesses
Department for Education,Core,05/10/2020,Grants expenditure,TEACHING WORKFORCE TOTAL,KINGS COLLEGE GUILDFORD,CUPS0010640,359909,Grants to educational establishments or not for profit organisations including other businesses
Department for Education,Core,05/10/2020,Grants expenditure,TEACHING WORKFORCE TOTAL,Kingston University Higher Education Corporation,CUPS0010641,79351.17,Grants to educational establishments or not for profit organisations including other businesses
Department for Education,Core,05/10/2020,Grants expenditure,TEACHING WORKFORCE TOTAL,LEEDS BECKETT UNIVERSITY,CUPS0010642,89935,Grants to educational establishments or not for profit organisations including other businesses
Department for Education,Core,05/10/2020,Grants expenditure,TEACHING WORKFORCE TOTAL,LIVERPOOL JOHN MOORES UNIVERSITY,CUPS0010643,333970,Grants to educational establishments or not for profit organisations including other businesses
Department for Education,Core,05/10/2020,Grants expenditure,TEACHING WORKFORCE TOTAL,MANCHESTER METRO UNIVERSITY,CUPS0010644,691267.5,Grants to educational establishments or not for profit organisations including other businesses
Department for Education,Core,05/10/2020,Grants expenditure,TEACHING WORKFORCE TOTAL,OXFORD BROOKES UNIVERSITY,CUPS0010645,46449.5,Grants to educational establishments or not for profit organisations including other businesses
Department for Education,Core,05/10/2020,Grants expenditure,TEACHING WORKFORCE TOTAL,SHEFFIELD HALLAM UNIVERSITY,CUPS0010646,531639.5,Grants to educational establishments or not for profit organisations including other businesses
Department for Education,Core,05/10/2020,Grants expenditure,TEACHING WORKFORCE TOTAL,THE UNIVERSITY OF CUMBRIA,CUPS0010647,320248,Grants to educational establishments or not for profit organisations including other businesses
Department for Education,Core,05/10/2020,Grants expenditure,TEACHING WORKFORCE TOTAL,THE UNIVERSITY OF CHICHESTER,CUPS0010648,118592.5,Grants to educational establishments or not for profit organisations including other businesses
Department for Education,Core,05/10/2020,Grants expenditure,TEACHING WORKFORCE TOTAL,UNIVERSITY OF EAST ANGLIA,CUPS0010650,207482,Grants to educational establishments or not for profit organisations including other businesses
Department for Education,Core,05/10/2020,Grants expenditure,TEACHING WORKFORCE TOTAL,UNIVERSITY OF EXETER,CUPS0010651,338810.5,Grants to educational establishments or not for profit organisations including other businesses
Department for Education,Core,05/10/2020,Grants expenditure,TEACHING WORKFORCE TOTAL,UNIVERSITY OF GLOUCESTERSHIRE,CUPS0010652,69312.5,Grants to educational establishments or not for profit organisations including other businesses
Department for Education,Core,05/10/2020,Grants expenditure,TEACHING WORKFORCE TOTAL,UNIVERSITY OF GREENWICH,CUPS0010653,159388,Grants to educational establishments or not for profit organisations including other businesses
Department for Education,Core,05/10/2020,Grants expenditure,TEACHING WORKFORCE TOTAL,UNIVERSITY OF HUDDERSFIELD,CUPS0010654,202064.5,Grants to educational establishments or not for profit organisations including other businesses
Department for Education,Core,05/10/2020,Grants expenditure,TEACHING WORKFORCE TOTAL,UNIVERSITY OF HULL,CUPS0010655,129605,Grants to educational establishments or not for profit organisations including other businesses
Department for Education,Core,05/10/2020,Grants expenditure,TEACHING WORKFORCE TOTAL,UNIVERSITY OF LEICESTER,CUPS0010656,144384.5,Grants to educational establishments or not for profit organisations including other businesses
Department for Education,Core,05/10/2020,Grants expenditure,TEACHING WORKFORCE TOTAL,The University of Nottingham,CUPS0010657,294546,Grants to educational establishments or not for profit organisations including other businesses
Department for Education,Core,05/10/2020,Grants expenditure,TEACHING WORKFORCE TOTAL,UNIVERSITY OF OXFORD,CUPS0010658,305706,Grants to educational establishments or not for profit organisations including other businesses
Department for Education,Core,05/10/2020,Grants expenditure,TEACHING WORKFORCE TOTAL,UNIVERSITY OF PLYMOUTH,CUPS0010659,123568,Grants to educational establishments or not for profit organisations including other businesses
Department for Education,Core,05/10/2020,Grants expenditure,TEACHING WORKFORCE TOTAL,UNIVERSITY OF PORTSMOUTH,CUPS0010660,210952.5,Grants to educational establishments or not for profit organisations including other businesses
Department for Education,Core,05/10/2020,Grants expenditure,TEACHING WORKFORCE TOTAL,University of Reading,CUPS0010661,414131.5,Grants to educational establishments or not for profit organisations including other businesses
Department for Education,Core,05/10/2020,Grants expenditure,TEACHING WORKFORCE TOTAL,University of Sheffield,CUPS0010662,211375,Grants to educational establishments or not for profit organisations including other businesses
Department for Education,Core,05/10/2020,Grants expenditure,TEACHING WORKFORCE TOTAL,UNIVERSITY OF SUNDERLAND,CUPS0010663,318284.5,Grants to educational establishments or not for profit organisations including other businesses
Department for Education,Core,05/10/2020,Grants expenditure,TEACHING WORKFORCE TOTAL,UNIVERSITY OF ROEHAMPTON,CUPS0010664,295022.5,Grants to educational establishments or not for profit organisations including other businesses
Department for Education,Core,05/10/2020,Grants expenditure,TEACHING WORKFORCE TOTAL,UNIVERSITY OF SUSSEX,CUPS0010665,315660,Grants to educational establishments or not for profit organisations including other businesses
Department for Education,Core,05/10/2020,Grants expenditure,TEACHING WORKFORCE TOTAL,University of Warwick,CUPS0010666,360265,Grants to educational establishments or not for profit organisations including other businesses
Department for Education,Core,05/10/2020,Grants expenditure,TEACHING WORKFORCE TOTAL,UNIVERSITY OF WOLVERHAMPTON,CUPS0010667,266255,Grants to educational establishments or not for profit organisations including other businesses
Department for Education,Core,05/10/2020,Grants expenditure,TEACHING WORKFORCE TOTAL,UNIVERSITY OF YORK,CUPS0010668,252151,Grants to educational establishments or not for profit organisations including other businesses
Department for Education,Core,05/10/2020,Grants expenditure,TEACHING WORKFORCE TOTAL,UNIVERSITY OF NEWCASTLE UPON TYNE,CUPS0010669,188346.5,Grants to educational establishments or not for profit organisations including other businesses
Department for Education,Core,05/10/2020,Grants expenditure,TEACHING WORKFORCE TOTAL,University of Bedfordshire,CUPS0010670,179199.5,Grants to educational establishments or not for profit organisations including other businesses
Department for Education,Core,05/10/2020,Grants expenditure,TEACHING WORKFORCE TOTAL,BROMLEY SCHOOLS COLLEGIATE,CUPS0010672,48657.5,Grants to educational establishments or not for profit organisations including other businesses
Department for Education,Core,05/10/2020,Grants expenditure,TEACHING WORKFORCE TOTAL,CHILTERN TRAINING GROUP,CUPS0010673,82707,Grants to educational establishments or not for profit organisations including other businesses
Department for Education,Core,05/10/2020,Grants expenditure,TEACHING WORKFORCE TOTAL,GLOUCESTERSHIRE INITIAL TEACHER EDUCATION PARTNERSHIP,CUPS0010674,108098,Grants to educational establishments or not for profit organisations including other businesses
Department for Education,Core,05/10/2020,Grants expenditure,TEACHING WORKFORCE TOTAL,Kent & Medway Training,CUPS0010675,192210,Grants to educational establishments or not for profit organisations including other businesses
Department for Education,Core,05/10/2020,Grants expenditure,TEACHING WORKFORCE TOTAL,MID ESSEX INITIAL TEACHER TRAINING,CUPS0010677,70960.5,Grants to educational establishments or not for profit organisations including other businesses
Department for Education,Core,05/10/2020,Grants expenditure,TEACHING WORKFORCE TOTAL,SOUTH WEST TEACHER TRAINING,CUPS0010680,47529,Grants to educational establishments or not for profit organisations including other businesses
Department for Education,Core,05/10/2020,Grants expenditure,TEACHING WORKFORCE TOTAL,THAMES PRIMARY CONSORTIUM,CUPS0010681,29303,Grants to educational establishments or not for profit organisations including other businesses
Department for Education,Core,05/10/2020,Grants expenditure,TEACHING WORKFORCE TOTAL,DURHAM SECONDARY APPLIED SCITT,CUPS0010684,97215.5,Grants to educational establishments or not for profit organisations including other businesses
Department for Education,Core,05/10/2020,Grants expenditure,TEACHING WORKFORCE TOTAL,BOURNEMOUTH POOLE & DORSET EAST SECONDARY,CUPS0010685,62657,Grants to educational establishments or not for profit organisations including other businesses
Department for Education,Core,05/10/2020,Grants expenditure,TEACHING WORKFORCE TOTAL,DONCASTER METRO BOROUGH COUNCIL,CUPS0010686,27467,Grants to educational establishments or not for profit organisations including other businesses
Department for Education,Core,05/10/2020,Grants expenditure,TEACHING WORKFORCE TOTAL,PENNINE LANCASHIRE SCITT,CUPS0010690,25837,Grants to educational establishments or not for profit organisations including other businesses
Department for Education,Core,05/10/2020,Grants expenditure,TEACHING WORKFORCE TOTAL,NORWICH CITY COLLEGE OF FURTHER & HE,CUPS0010692,48967,Grants to educational establishments or not for profit organisations including other businesses
Department for Education,Core,05/10/2020,Grants expenditure,TEACHING WORKFORCE TOTAL,ROYAL BOROUGH OF WINDSOR & MAIDENHEAD,CUPS0010693,27008,Grants to educational establishments or not for profit organisations including other businesses
Department for Education,Core,05/10/2020,Grants expenditure,TEACHING WORKFORCE TOTAL,Comberton Village College ,CUPS0010694,117285,Grants to educational establishments or not for profit organisations including other businesses
Department for Education,Core,05/10/2020,Grants expenditure,TEACHING WORKFORCE TOTAL,Arthur Mellows Village College,CUPS0010695,40242.5,Grants to educational establishments or not for profit organisations including other businesses
Department for Education,Core,05/10/2020,Grants expenditure,TEACHING WORKFORCE TOTAL,Skipton Girls' High School ,CUPS0010698,26198,Grants to educational establishments or not for profit organisations including other businesses
Department for Education,Core,05/10/2020,Grants expenditure,TEACHING WORKFORCE TOTAL,The Morley Academy,CUPS0010699,228130,Grants to educational establishments or not for profit organisations including other businesses
Department for Education,Core,05/10/2020,Grants expenditure,TEACHING WORKFORCE TOTAL,THE JOHN TAYLOR SCITT,CUPS0010700,50776,Grants to educational establishments or not for profit organisations including other businesses
Department for Education,Core,05/10/2020,Grants expenditure,TEACHING WORKFORCE TOTAL,THE CHERWELL SCHOOL TS ACCOUNT,CUPS0010701,75279.5,Grants to educational establishments or not for profit organisations including other businesses
Department for Education,Core,05/10/2020,Grants expenditure,TEACHING WORKFORCE TOTAL,Cabot Learning Federation,CUPS0010702,82484.5,Grants to educational establishments or not for profit organisations including other businesses
Department for Education,Core,05/10/2020,Grants expenditure,TEACHING WORKFORCE TOTAL,PARTNERSHIP LONDON SCITT,CUPS0010703,53557,Grants to educational establishments or not for profit organisations including other businesses
Department for Education,Core,05/10/2020,Grants expenditure,TEACHING WORKFORCE TOTAL,YORKSHIRE AND HUMBER TEACHER TRAINING,CUPS0010704,78649,Grants to educational establishments or not for profit organisations including other businesses
Department for Education,Core,05/10/2020,Grants expenditure,TEACHING WORKFORCE TOTAL,RED KITE TEACHER TRAINING,CUPS0010705,112688,Grants to educational establishments or not for profit organisations including other businesses
Department for Education,Core,05/10/2020,Grants expenditure,TEACHING WORKFORCE TOTAL,HIBERNIA COLLEGE UK,CUPS0010706,216039.5,Grants to educational establishments or not for profit organisations including other businesses
Department for Education,Core,05/10/2020,Grants expenditure,TEACHING WORKFORCE TOTAL,BRUNEL UNIVERSITY,CUPS0010707,144304.5,Grants to educational establishments or not for profit organisations including other businesses
Department for Education,Core,05/10/2020,Grants expenditure,TEACHING WORKFORCE TOTAL,CANTERBURY CHRIST CHURCH UNIVERSITY,CUPS0010708,398319,Grants to educational establishments or not for profit organisations including other businesses
Department for Education,Core,05/10/2020,Grants expenditure,TEACHING WORKFORCE TOTAL,UNIVERSITY OF CHESTER,CUPS0010709,382908,Grants to educational establishments or not for profit organisations including other businesses
Department for Education,Core,05/10/2020,Grants expenditure,TEACHING WORKFORCE TOTAL,EDGE HILL UNIVERSITY,CUPS0010710,356694,Grants to educational establishments or not for profit organisations including other businesses
Department for Education,Core,05/10/2020,Grants expenditure,TEACHING WORKFORCE TOTAL,LIVERPOOL HOPE UNIVERSITY,CUPS0010711,333310.5,Grants to educational establishments or not for profit organisations including other businesses
Department for Education,Core,05/10/2020,Grants expenditure,TEACHING WORKFORCE TOTAL,LONDON METRO UNIVERSITY,CUPS0010712,154963.5,Grants to educational establishments or not for profit organisations including other businesses
Department for Education,Core,05/10/2020,Grants expenditure,TEACHING WORKFORCE TOTAL,LOUGHBOROUGH UNIVERSITY,CUPS0010713,38278.5,Grants to educational establishments or not for profit organisations including other businesses
Department for Education,Core,05/10/2020,Grants expenditure,TEACHING WORKFORCE TOTAL,NEWMAN COLLEGE,CUPS0010714,164322,Grants to educational establishments or not for profit organisations including other businesses
Department for Education,Core,05/10/2020,Grants expenditure,TEACHING WORKFORCE TOTAL,ST MARYS UNIVERSITY COLLEGE,CUPS0010715,374739,Grants to educational establishments or not for profit organisations including other businesses
Department for Education,Core,05/10/2020,Grants expenditure,TEACHING WORKFORCE TOTAL,STAFFORDSHIRE UNIVERSITY,CUPS0010716,75276,Grants to educational establishments or not for profit organisations including other businesses
Department for Education,Core,05/10/2020,Grants expenditure,TEACHING WORKFORCE TOTAL,LEEDS TRINITY UNIVERSITY COLLEGE,CUPS0010717,288787.5,Grants to educational establishments or not for profit organisations including other businesses
Department for Education,Core,05/10/2020,Grants expenditure,TEACHING WORKFORCE TOTAL,UNIVERSITY OF WORCESTER,CUPS0010718,271881,Grants to educational establishments or not for profit organisations including other businesses
Department for Education,Core,05/10/2020,Grants expenditure,TEACHING WORKFORCE TOTAL,UNIVERSITY OF BIRMINGHAM,CUPS0010719,322983,Grants to educational establishments or not for profit organisations including other businesses
Department for Education,Core,05/10/2020,Grants expenditure,TEACHING WORKFORCE TOTAL,UNIVERSITY OF BRIGHTON,CUPS0010720,244463.5,Grants to educational establishments or not for profit organisations including other businesses
Department for Education,Core,05/10/2020,Grants expenditure,TEACHING WORKFORCE TOTAL,UNIVERSITY OF CAMBRIDGE,CUPS0010721,313251,Grants to educational establishments or not for profit organisations including other businesses
Department for Education,Core,05/10/2020,Grants expenditure,TEACHING WORKFORCE TOTAL,Birmingham City University,CUPS0010722,559870,Grants to educational establishments or not for profit organisations including other businesses
Department for Education,Core,05/10/2020,Grants expenditure,TEACHING WORKFORCE TOTAL,UNIVERSITY OF DERBY,CUPS0010723,121405.5,Grants to educational establishments or not for profit organisations including other businesses
Department for Education,Core,05/10/2020,Grants expenditure,TEACHING WORKFORCE TOTAL,UNIVERSITY OF DURHAM,CUPS0010724,208054.5,Grants to educational establishments or not for profit organisations including other businesses
Department for Education,Core,05/10/2020,Grants expenditure,TEACHING WORKFORCE TOTAL,University of Southampton,CUPS0010725,230647.5,Grants to educational establishments or not for profit organisations including other businesses
Department for Education,Core,05/10/2020,Grants expenditure,TEACHING WORKFORCE TOTAL,UNIVERSITY OF THE WEST OF ENGLAND BRISTOL,CUPS0010726,193239,Grants to educational establishments or not for profit organisations including other businesses
Department for Education,Core,05/10/2020,Grants expenditure,TEACHING WORKFORCE TOTAL,UCL INSTITUTE OF EDUCATION,CUPS0010727,895839,Grants to educational establishments or not for profit organisations including other businesses
Department for Education,Core,05/10/2020,Grants expenditure,TEACHING WORKFORCE TOTAL,Compass Education Trust Ltd,CUPS0010728,51637.5,Grants to educational establishments or not for profit organisations including other businesses
Department for Education,Core,05/10/2020,Grants expenditure,TEACHING WORKFORCE TOTAL,CORNWALL SCITT,CUPS0010729,79636.5,Grants to educational establishments or not for profit organisations including other businesses
Department for Education,Core,05/10/2020,Grants expenditure,TEACHING WORKFORCE TOTAL,GRAND UNION TRAINING PARTNERSHIP,CUPS0010731,51943.5,Grants to educational establishments or not for profit organisations including other businesses
Department for Education,Core,05/10/2020,Grants expenditure,TEACHING WORKFORCE TOTAL,NORTH BEDS SCITT CONSORTIUM,CUPS0010732,49342.5,Grants to educational establishments or not for profit organisations including other businesses
Department for Education,Core,05/10/2020,Grants expenditure,TEACHING WORKFORCE TOTAL,NORTHAMPTON TEACHER TRAINING,CUPS0010733,25933.5,Grants to educational establishments or not for profit organisations including other businesses
Department for Education,Core,05/10/2020,Grants expenditure,TEACHING WORKFORCE TOTAL,PILGRIM SCITT,CUPS0010734,30906,Grants to educational establishments or not for profit organisations including other businesses
Department for Education,Core,05/10/2020,Grants expenditure,TEACHING WORKFORCE TOTAL,SUFFOLK COUNTY COUNCIL#DCSF,CUPS0010735,77341.5,Grants to educational establishments or not for profit organisations including other businesses
Department for Education,Core,05/10/2020,Grants expenditure,TEACHING WORKFORCE TOTAL,TITAN PARTNERSHIP LTD,CUPS0010736,38581.5,Grants to educational establishments or not for profit organisations including other businesses
Department for Education,Core,05/10/2020,Grants expenditure,TEACHING WORKFORCE TOTAL,BRADFORD COLLEGE,CUPS0010737,96568.5,Grants to educational establishments or not for profit organisations including other businesses
Department for Education,Core,05/10/2020,Grants expenditure,TEACHING WORKFORCE TOTAL,LEEDS CITY COUNCIL#DCSF,CUPS0010738,55309.5,Grants to educational establishments or not for profit organisations including other businesses
Department for Education,Core,05/10/2020,Grants expenditure,TEACHING WORKFORCE TOTAL,The Kemnal Academies Trust,CUPS0010739,63954,Grants to educational establishments or not for profit organisations including other businesses
Department for Education,Core,05/10/2020,Grants expenditure,TEACHING WORKFORCE TOTAL,GEORGE ABBOT ACADEMY,CUPS0010740,49419,Grants to educational establishments or not for profit organisations including other businesses
Department for Education,Core,05/10/2020,Grants expenditure,TEACHING WORKFORCE TOTAL,CARMEL TEACHER TRAINING PARTNERSHIP,CUPS0010741,71680.5,Grants to educational establishments or not for profit organisations including other businesses
Department for Education,Core,05/10/2020,Grants expenditure,TEACHING WORKFORCE TOTAL,Thamesmead School,CUPS0010744,34425,Grants to educational establishments or not for profit organisations including other businesses
Department for Education,Core,05/10/2020,Grants expenditure,TEACHING WORKFORCE TOTAL,KING EDWARD VI ACADEMY TRUST BIRMINGHAM,CUPS0010746,43987.5,Grants to educational establishments or not for profit organisations including other businesses
Department for Education,Core,05/10/2020,Grants expenditure,TEACHING WORKFORCE TOTAL,ESSEX COUNTY COUNCIL,CUPS0010747,51937,Grants to educational establishments or not for profit organisations including other businesses
Department for Education,Core,05/10/2020,Grants expenditure,TEACHING WORKFORCE TOTAL,THE CAMBRIDGE PARTNERSHIP,CUPS0010749,59058,Grants to educational establishments or not for profit organisations including other businesses
Department for Education,Core,05/10/2020,Grants expenditure,TEACHING WORKFORCE TOTAL,STOCKTON ON TEES BOROUGH COUNCIL,CUPS0010750,32691,Grants to educational establishments or not for profit organisations including other businesses
Department for Education,Core,05/10/2020,Grants expenditure,TEACHING WORKFORCE TOTAL,St Joseph's College,CUPS0010751,31441.5,Grants to educational establishments or not for profit organisations including other businesses
Department for Education,Core,05/10/2020,Grants expenditure,TEACHING WORKFORCE TOTAL,SHOTTON HALL SCITT,CUPS0010752,96619.5,Grants to educational establishments or not for profit organisations including other businesses
Department for Education,Core,05/10/2020,Grants expenditure,TEACHING WORKFORCE TOTAL,THE KIRKLEES PARTNERSHIP,CUPS0010753,31671,Grants to educational establishments or not for profit organisations including other businesses
Department for Education,Core,05/10/2020,Grants expenditure,TEACHING WORKFORCE TOTAL,CFBT THE DEEPINGS SCITT,CUPS0010754,28917,Grants to educational establishments or not for profit organisations including other businesses
Department for Education,Core,05/10/2020,Grants expenditure,TEACHING WORKFORCE TOTAL,EAST MIDLANDS TEACHER TRAINING PARTNERSHIP,CUPS0010755,30447,Grants to educational establishments or not for profit organisations including other businesses
Department for Education,Core,05/10/2020,Grants expenditure,TEACHING WORKFORCE TOTAL,Tarleton Academy,CUPS0010757,43436,Grants to educational establishments or not for profit organisations including other businesses
Department for Education,Core,05/10/2020,Grants expenditure,TEACHING WORKFORCE TOTAL,Royal Latin School,CUPS0010758,42381,Grants to educational establishments or not for profit organisations including other businesses
Department for Education,Core,05/10/2020,Grants expenditure,TEACHING WORKFORCE TOTAL,HARRIS CITY ACADEMY,CUPS0010759,154989,Grants to educational establishments or not for profit organisations including other businesses
Department for Education,Core,05/10/2020,Grants expenditure,TEACHING WORKFORCE TOTAL,Wildern School,CUPS0010760,40851,Grants to educational establishments or not for profit organisations including other businesses
Department for Education,Core,05/10/2020,Grants expenditure,TEACHING WORKFORCE TOTAL,Pimlico Academy,CUPS0010761,34119,Grants to educational establishments or not for profit organisations including other businesses
Department for Education,Core,05/10/2020,Grants expenditure,TEACHING WORKFORCE TOTAL,ST GEORGES ACADEMY SCITT,CUPS0010763,32436,Grants to educational establishments or not for profit organisations including other businesses
Department for Education,Core,05/10/2020,Grants expenditure,TEACHING WORKFORCE TOTAL,ASHTON-ON-MERSEY SCHOOL,CUPS0010764,35572.5,Grants to educational establishments or not for profit organisations including other businesses
Department for Education,Core,05/10/2020,Grants expenditure,TEACHING WORKFORCE TOTAL,The Compton School,CUPS0010765,29070,Grants to educational establishments or not for profit organisations including other businesses
Department for Education,Core,05/10/2020,Grants expenditure,TEACHING WORKFORCE TOTAL,The Bluecoat Academy,CUPS0010766,43758,Grants to educational establishments or not for profit organisations including other businesses
Department for Education,Core,05/10/2020,Grants expenditure,TEACHING WORKFORCE TOTAL,Notre Dame High School,CUPS0010767,68391,Grants to educational establishments or not for profit organisations including other businesses
Department for Education,Core,05/10/2020,Grants expenditure,TEACHING WORKFORCE TOTAL,RIPLEY ST THOMAS CE HIGH SCHOOL,CUPS0010768,44140.5,Grants to educational establishments or not for profit organisations including other businesses
Department for Education,Core,05/10/2020,Grants expenditure,TEACHING WORKFORCE TOTAL,THE GREATER MANCHESTER BRIGHT FUTURES TRUST,CUPS0010769,42916.5,Grants to educational establishments or not for profit organisations including other businesses
Department for Education,Core,05/10/2020,Grants expenditure,TEACHING WORKFORCE TOTAL,LANDAU FORTE COLLEGE DERBY SCITT,CUPS0010770,38250,Grants to educational establishments or not for profit organisations including other businesses
Department for Education,Core,05/10/2020,Grants expenditure,TEACHING WORKFORCE TOTAL,SUTTON SCITT,CUPS0010771,71776,Grants to educational establishments or not for profit organisations including other businesses
Department for Education,Core,05/10/2020,Grants expenditure,TEACHING WORKFORCE TOTAL,THE OAKS SCITT,CUPS0010772,98684,Grants to educational establishments or not for profit organisations including other businesses
Department for Education,Core,05/10/2020,Grants expenditure,TEACHING WORKFORCE TOTAL,ROYAL WOOTTON BASSETT ACADEMY,CUPS0010773,25551,Grants to educational establishments or not for profit organisations including other businesses
Department for Education,Core,05/10/2020,Grants expenditure,TEACHING WORKFORCE TOTAL,Cheadle Hulme High School,CUPS0010775,48348,Grants to educational establishments or not for profit organisations including other businesses
Department for Education,Core,05/10/2020,Grants expenditure,TEACHING WORKFORCE TOTAL,FYLDE COAST TEACHING SCHOOL,CUPS0010776,37408.5,Grants to educational establishments or not for profit organisations including other businesses
Department for Education,Core,05/10/2020,Grants expenditure,TEACHING WORKFORCE TOTAL,NOTTINGHAMSHIRE TORCH SCITT,CUPS0010777,59440.5,Grants to educational establishments or not for profit organisations including other businesses
Department for Education,Core,05/10/2020,Grants expenditure,TEACHING WORKFORCE TOTAL,AMP SCITT,CUPS0010778,76551,Grants to educational establishments or not for profit organisations including other businesses
Department for Education,Core,05/10/2020,Grants expenditure,TEACHING WORKFORCE TOTAL,Paddington Academy,CUPS0010779,112761,Grants to educational establishments or not for profit organisations including other businesses
Department for Education,Core,05/10/2020,Grants expenditure,TEACHING WORKFORCE TOTAL,CHESHIRE EAST SCITT,CUPS0010781,64181,Grants to educational establishments or not for profit organisations including other businesses
Department for Education,Core,05/10/2020,Grants expenditure,TEACHING WORKFORCE TOTAL,HULL SCITT,CUPS0010782,33966,Grants to educational establishments or not for profit organisations including other businesses
Department for Education,Core,05/10/2020,Grants expenditure,TEACHING WORKFORCE TOTAL,CATALYST TEACHING SCHOOL ALLIANCE,CUPS0010783,25638.5,Grants to educational establishments or not for profit organisations including other businesses
Department for Education,Core,05/10/2020,Grants expenditure,TEACHING WORKFORCE TOTAL,ASTRA SCITT,CUPS0010784,69385.5,Grants to educational establishments or not for profit organisations including other businesses
Department for Education,Core,05/10/2020,Grants expenditure,TEACHING WORKFORCE TOTAL,BARR BEACON SCITT,CUPS0010786,50413.5,Grants to educational establishments or not for profit organisations including other businesses
Department for Education,Core,05/10/2020,Grants expenditure,TEACHING WORKFORCE TOTAL,LAMPTON LWA SCITT,CUPS0010787,48651.5,Grants to educational establishments or not for profit organisations including other businesses
Department for Education,Core,05/10/2020,Grants expenditure,TEACHING WORKFORCE TOTAL,GLYN SURREY SCITT,CUPS0010789,47124,Grants to educational establishments or not for profit organisations including other businesses
Department for Education,Core,05/10/2020,Grants expenditure,TEACHING WORKFORCE TOTAL,HILLINGDON SCITT,CUPS0010790,38337.5,Grants to educational establishments or not for profit organisations including other businesses
Department for Education,Core,05/10/2020,Grants expenditure,TEACHING WORKFORCE TOTAL,TEACH SOUTHEAST,CUPS0010791,89658,Grants to educational establishments or not for profit organisations including other businesses
Department for Education,Core,05/10/2020,Grants expenditure,TEACHING WORKFORCE TOTAL,MANCHESTER NEXUS SCITT,CUPS0010792,49801.5,Grants to educational establishments or not for profit organisations including other businesses
Department for Education,Core,05/10/2020,Grants expenditure,TEACHING WORKFORCE TOTAL,Prince Henry's High school,CUPS0010793,28458,Grants to educational establishments or not for profit organisations including other businesses
Department for Education,Core,05/10/2020,Grants expenditure,TEACHING WORKFORCE TOTAL,YORKSHIRE WOLDS TEACHER TRAINING,CUPS0010794,41712.5,Grants to educational establishments or not for profit organisations including other businesses
Department for Education,Core,05/10/2020,Grants expenditure,TEACHING WORKFORCE TOTAL,TEACH KENT & SUSSEX,CUPS0010796,49081.5,Grants to educational establishments or not for profit organisations including other businesses
Department for Education,Core,05/10/2020,Grants expenditure,TEACHING WORKFORCE TOTAL,THE NATIONAL MODERN LANGUAGES SCITT,CUPS0010797,119340,Grants to educational establishments or not for profit organisations including other businesses
Department for Education,Core,05/10/2020,Grants expenditure,TEACHING WORKFORCE TOTAL,THE THETFORD ACADEMY,CUPS0010798,32359.5,Grants to educational establishments or not for profit organisations including other businesses
Department for Education,Core,05/10/2020,Grants expenditure,TEACHING WORKFORCE TOTAL,Wycombe High School,CUPS0010799,113373,Grants to educational establishments or not for profit organisations including other businesses
Department for Education,Core,05/10/2020,Grants expenditure,TEACHING WORKFORCE TOTAL,ALBAN FEDERATION,CUPS0010868,43069.5,Grants to educational establishments or not for profit organisations including other businesses
Department for Education,Core,05/10/2020,Grants expenditure,TEACHING WORKFORCE TOTAL,Buile Hill Visual Arts College,CUPS0010869,30829.5,Grants to educational establishments or not for profit organisations including other businesses
Department for Education,Core,05/10/2020,Grants expenditure,TEACHING WORKFORCE TOTAL,COVENTRY UNIVERSITY,CUPS0010870,114903,Grants to educational establishments or not for profit organisations including other businesses
Department for Education,Core,05/10/2020,Grants expenditure,TEACHING WORKFORCE TOTAL,UNIVERSITY OF BOLTON,CUPS0010873,194922,Grants to educational establishments or not for profit organisations including other businesses
Department for Education,Core,05/10/2020,Grants expenditure,TEACHING WORKFORCE TOTAL,Paddington Academy,CUPS0011599,87120,Grants to educational establishments or not for profit organisations including other businesses
Department for Education,Core,05/10/2020,Grants expenditure,TEACHING WORKFORCE TOTAL,ENFIELD LONDON BOROUGH COUNCIL,CUPS0011602,25920,Grants to educational establishments or not for profit organisations including other businesses
Department for Education,Core,05/10/2020,Grants expenditure,TEACHING WORKFORCE TOTAL,Harris Primary Academy Crystal Palace ,CUPS0011613,70020,Grants to educational establishments or not for profit organisations including other businesses
Department for Education,Core,05/10/2020,Grants expenditure,TEACHING WORKFORCE TOTAL,ARK Academy ,CUPS0011615,57060,Grants to educational establishments or not for profit organisations including other businesses
Department for Education,Core,05/10/2020,Grants expenditure,TEACHING WORKFORCE TOTAL,Rainham School for Girls,CUPS0011642,32940,Grants to educational establishments or not for profit organisations including other businesses
Department for Education,Core,05/10/2020,Grants expenditure,TEACHING WORKFORCE TOTAL,Springwood High School,CUPS0011649,27377.5,Grants to educational establishments or not for profit organisations including other businesses
Department for Education,Core,05/10/2020,Grants expenditure,TEACHING WORKFORCE TOTAL,Glyn School,CUPS0011652,36000,Grants to educational establishments or not for profit organisations including other businesses
Department for Education,Core,05/10/2020,Grants expenditure,TEACHING WORKFORCE TOTAL,South Farnham School ,CUPS0011677,39690,Grants to educational establishments or not for profit organisations including other businesses
Department for Education,Core,05/10/2020,Grants expenditure,TEACHING WORKFORCE TOTAL,St Joseph's Catholic Primary School,CUPS0011703,32400,Grants to educational establishments or not for profit organisations including other businesses
Department for Education,Core,05/10/2020,Grants expenditure,TEACHING WORKFORCE TOTAL,The Cherwell School ,CUPS0011728,34920,Grants to educational establishments or not for profit organisations including other businesses
Department for Education,Core,05/10/2020,Grants expenditure,TEACHING WORKFORCE TOTAL,ST GEORGE'S CATHOLIC SCHOOL,CUPS0011766,25200,Grants to educational establishments or not for profit organisations including other businesses
Department for Education,Core,16/10/2020,Grants expenditure,TEACHING WORKFORCE TOTAL,CANTIUM BUSINESS SOLUTIONS,CUPS0012221,1249741.96,Grants to educational establishments or not for profit organisations including other businesses
Department for Education,Core,05/10/2020,IS/IT,TEACHING WORKFORCE TOTAL,SCROLL PROJECTS LTD,CORE-PINV-007435,27141.3,Software Development
Department for Education,Core,29/10/2020,IS/IT,TEACHING WORKFORCE TOTAL,SCROLL PROJECTS LTD,CORE-PINV-009012,32523,Software Development
Department for Education,Core,12/10/2020,Grants expenditure,GET HELP WITH TECH,COMPUTACENTER PLC,CORE-PINV-008036,37514.74,Capital grants paid to a private sector organisation
Department for Education,Core,15/10/2020,Grants expenditure,GET HELP WITH TECH,XMA Ltd,CORE-PINV-009258,1014000,Capital grants paid to third sector / not for profit organisation
Department for Education,Core,20/10/2020,Grants expenditure,GET HELP WITH TECH,COMPUTACENTER PLC,CORE-PINV-009381,236000,Capital grants paid to a private sector organisation
Department for Education,Core,22/10/2020,Grants expenditure,GET HELP WITH TECH,COMPUTACENTER PLC,CORE-PINV-009382,2072150.11,Capital grants paid to a private sector organisation
Department for Education,Core,21/10/2020,Grants expenditure,GET HELP WITH TECH,COMPUTACENTER PLC,CORE-PINV-009383,3364325.82,Capital grants paid to third sector / not for profit organisation
Department for Education,Core,26/10/2020,Grants expenditure,GET HELP WITH TECH,XMA Ltd,CORE-PINV-009703,402192,Capital grants paid to third sector / not for profit organisation
Department for Education,Core,29/10/2020,"Marketing, Media and Comms",Get into Teaching,HAVAS WORLDWIDE LONDON LTD,CORE-PCR-000324,-30349.29,"Publicity, advertising, media advertising campaigns (excluding recruitment adverts)"
Department for Education,Core,29/10/2020,"Marketing, Media and Comms",Get into Teaching,HAVAS WORLDWIDE LONDON LTD,CORE-PCR-000335,-30349.29,"Publicity, advertising, media advertising campaigns (excluding recruitment adverts)"
Department for Education,Core,30/10/2020,"Marketing, Media and Comms",Get into Teaching,HAVAS WORLDWIDE LONDON LTD,CORE-PINV-007052,30349.29,"Publicity, advertising, media advertising campaigns (excluding recruitment adverts)"
Department for Education,Core,30/10/2020,"Marketing, Media and Comms",Get into Teaching,HAVAS WORLDWIDE LONDON LTD,CORE-PINV-008315,30349.29,"Publicity, advertising, media advertising campaigns (excluding recruitment adverts)"
Department for Education,Core,29/10/2020,"Marketing, Media and Comms",Get into Teaching,HAVAS WORLDWIDE LONDON LTD,CORE-PINV-008890,30349.2,"Publicity, advertising, media advertising campaigns (excluding recruitment adverts)"
Department for Education,Core,15/10/2020,"Marketing, Media and Comms",Get into Teaching,DODS GROUP PLC,CORE-PINV-009249,73197.5,"Publicity, advertising, media advertising campaigns (excluding recruitment adverts)"
Department for Education,Core,29/10/2020,"Marketing, Media and Comms",Get into Teaching,HAVAS WORLDWIDE LONDON LTD,CORE-PINV-009669,20885.79,"Publicity, advertising, media advertising campaigns (excluding recruitment adverts)"
Department for Education,Core,30/10/2020,Grants expenditure,TEACHING WORKFORCE TOTAL,Education support partnership,CORE-MAIN-008103,35500,Capital grants paid to a private sector organisation
Department for Education,Core,27/10/2020,Other Goods & Services,ASSESSMENT AND CURRICULUM AND GENERAL QUALIFICATIONS,TEACH FIRST,CORE-PINV-009384,942213,Other Professional Services
Department for Education,Core,19/10/2020,Other Goods & Services,GET HELP WITH TECH,FARSIGHT CONSULTING LIMITED,CORE-PINV-008247,41676,Other Professional Services
Department for Education,Core,19/10/2020,Other Goods & Services,GET HELP WITH TECH,FARSIGHT CONSULTING LIMITED,CORE-PINV-008248,114984,Other Professional Services
Department for Education,Core,26/10/2020,Other Goods & Services,GET HELP WITH TECH,FUTUREGOV LTD,CORE-PINV-008885,37740,Other Professional Services
Department for Education,Core,28/10/2020,Other Goods & Services,GET HELP WITH TECH,FARSIGHT CONSULTING LIMITED,CORE-PINV-009141,84420,Other Professional Services
Department for Education,Core,13/10/2020,Grants expenditure,CURRICULUM STRATEGY DIVISION,The Reach Foundation,CORE-MAIN-007455,276422.21,Grants to educational establishments or not for profit organisations including other businesses
Department for Education,Core,05/10/2020,Grants expenditure,Developing Teachers & Leaders,St Thomas Aquinas Catholic Multi Academy Trust,CORE-MAIN-007235,79842,Grants to educational establishments or not for profit organisations including other businesses
Department for Education,Core,05/10/2020,Grants expenditure,Developing Teachers & Leaders,Star Academies,CORE-MAIN-007236,83912,Grants to educational establishments or not for profit organisations including other businesses
Department for Education,Core,23/10/2020,Grants expenditure,"Early Years, Quality Outcomes and Providers",THE EDUCATION ENDOWMENT FOUNDATION,CUPS0012639,4644471,Grants to educational establishments or not for profit organisations including other businesses
Department for Education,Core,20/10/2020,Other Goods & Services,TECHNOLOGY DIRECTORATE TOTAL,Cabinet Office,CORE-PINV-009399,177222,Other Professional Services
Department for Education,Core,01/10/2020,IS/IT,TECHNOLOGY DIRECTORATE TOTAL,Bae Systems Applied Intelligence Ltd,CORE-PINV-008513,48185.5,IS/IT Services - Systems Development
Department for Education,Core,28/10/2020,Professional Services Consultancy and Contingent Labour,TECHNOLOGY DIRECTORATE TOTAL,SMART SOURCING PLC,CORE-PINV-009281,49134,Costs related to temporary workers
Department for Education,Core,26/10/2020,IS/IT,TECHNOLOGY DIRECTORATE TOTAL,Bae Systems Applied Intelligence Ltd,CORE-PINV-009693,46682.36,IS/IT Services - Systems Development
Department for Education,Core,06/10/2020,IS/IT,TECHNOLOGY DIRECTORATE TOTAL,Bytes Software Services Ltd,CORE-PCR-000321,-1035356.05,IS/IT Services - Systems Development
Department for Education,Core,01/10/2020,IS/IT,TECHNOLOGY DIRECTORATE TOTAL,SOL-TEC LIMITED,CORE-PINV-008337,28625.43,IS/IT Services - Systems Development
Department for Education,Core,01/10/2020,IS/IT,TECHNOLOGY DIRECTORATE TOTAL,Bae Systems Applied Intelligence Ltd,CORE-PINV-008512,76195,IS/IT Services - Systems Development
Department for Education,Core,01/10/2020,IS/IT,TECHNOLOGY DIRECTORATE TOTAL,Bae Systems Applied Intelligence Ltd,CORE-PINV-008514,70882.5,IS/IT Services - Systems Development
Department for Education,Core,06/10/2020,IS/IT,TECHNOLOGY DIRECTORATE TOTAL,Bytes Software Services Ltd,CORE-PINV-008672,1124679.57,IS/IT Services - Systems Development
Department for Education,Core,07/10/2020,IS/IT,TECHNOLOGY DIRECTORATE TOTAL,SOL-TEC LIMITED,CORE-PINV-008795,28601.47,IS/IT Services - Systems Development
Department for Education,Core,07/10/2020,IS/IT,TECHNOLOGY DIRECTORATE TOTAL,SOL-TEC LIMITED,CORE-PINV-008797,44214.96,IS/IT Services - Systems Development
Department for Education,Core,07/10/2020,IS/IT,TECHNOLOGY DIRECTORATE TOTAL,SOL-TEC LIMITED,CORE-PINV-008798,32883.38,IS/IT Services - Systems Development
Department for Education,Core,08/10/2020,IS/IT,TECHNOLOGY DIRECTORATE TOTAL,Nimbus Digital & Technology Innovations,CORE-PINV-008896,58958.55,IS/IT Services - Systems Development
Department for Education,Core,12/10/2020,IS/IT,TECHNOLOGY DIRECTORATE TOTAL,Bytes Software Services Ltd,CORE-PINV-008952,1037128.25,IS/IT Services - Systems Development
Department for Education,Core,14/10/2020,Professional Services Consultancy and Contingent Labour,TECHNOLOGY DIRECTORATE TOTAL,QA CONSULTING SERVICES LTD,CORE-PINV-009177,38592,Costs related to temporary workers
Department for Education,Core,19/10/2020,IS/IT,TECHNOLOGY DIRECTORATE TOTAL,SOL-TEC LIMITED,CORE-PINV-009337,22986.73,IS/IT Services - Systems Development
Department for Education,Core,22/10/2020,IS/IT,TECHNOLOGY DIRECTORATE TOTAL,SOL-TEC LIMITED,CORE-PINV-009341,23681.89,IS/IT Services - Systems Development
Department for Education,Core,22/10/2020,IS/IT,TECHNOLOGY DIRECTORATE TOTAL,SOL-TEC LIMITED,CORE-PINV-009342,35324.67,IS/IT Services - Systems Development
Department for Education,Core,26/10/2020,IS/IT,TECHNOLOGY DIRECTORATE TOTAL,Bae Systems Applied Intelligence Ltd,CORE-PINV-009691,96907,IS/IT Services - Systems Development
Department for Education,Core,26/10/2020,IS/IT,TECHNOLOGY DIRECTORATE TOTAL,Bae Systems Applied Intelligence Ltd,CORE-PINV-009692,70652.5,IS/IT Services - Systems Development
Department for Education,Core,27/10/2020,IS/IT,TECHNOLOGY DIRECTORATE TOTAL,SOL-TEC LIMITED,CORE-PINV-009739,25449.74,IS/IT Services - Systems Development
Department for Education,Core,13/10/2020,Professional Services Consultancy and Contingent Labour,TECHNOLOGY DIRECTORATE TOTAL,Methods Business and Digital Technology Ltd,CORE-PINV-009006,42636,Costs related to temporary workers
Department for Education,Core,21/10/2020,Professional Services Consultancy and Contingent Labour,TECHNOLOGY DIRECTORATE TOTAL,Methods Business and Digital Technology Ltd,CORE-PINV-009556,33345,Costs related to temporary workers
Department for Education,Core,01/10/2020,IS/IT,TECHNOLOGY DIRECTORATE TOTAL,Complete University Guide Limited ,CORE-PINV-008348,22268.68,IS/IT Systems Operations
Department for Education,Core,01/10/2020,IS/IT,TECHNOLOGY DIRECTORATE TOTAL,Bytes Software Services Ltd,CORE-PINV-008506,89355.97,IS/IT Services - End user Hardware & Software
Department for Education,Core,06/10/2020,IS/IT,TECHNOLOGY DIRECTORATE TOTAL,Bytes Software Services Ltd,CORE-PINV-008511,132529.77,IS/IT Services - End user Hardware & Software
Department for Education,Core,08/10/2020,IS/IT,TECHNOLOGY DIRECTORATE TOTAL,CAPGEMINI UK PLC,CORE-PINV-008840,118049.28,IS/IT Services
Department for Education,Core,28/10/2020,IS/IT,TECHNOLOGY DIRECTORATE TOTAL,Complete University Guide Limited ,CORE-PINV-008943,22268.68,IS/IT Systems Operations
Department for Education,Core,15/10/2020,IS/IT,TECHNOLOGY DIRECTORATE TOTAL,VODAFONE CORPORATE LTD,CORE-PINV-009171,49726.44,Telecoms facilities and services
Department for Education,Core,26/10/2020,IS/IT,TECHNOLOGY DIRECTORATE TOTAL,Bae Systems Applied Intelligence Ltd,CORE-PINV-009396,48257.22,IS/IT Systems Operations
Department for Education,Core,27/10/2020,IS/IT,TECHNOLOGY DIRECTORATE TOTAL,Bytes Software Services Ltd,CORE-PINV-009752,83923.2,IS/IT Services - End user Hardware & Software
Department for Education,Core,28/10/2020,IS/IT,TECHNOLOGY DIRECTORATE TOTAL,Bytes Software Services Ltd,CORE-PINV-009920,84407.3,IS/IT Services - End user Hardware & Software
Department for Education,Core,21/10/2020,IS/IT,TECHNOLOGY DIRECTORATE TOTAL,Methods Business and Digital Technology Ltd,CORE-PINV-009551,79000,IS/IT Systems Operations
Department for Education,Core,21/10/2020,IS/IT,TECHNOLOGY DIRECTORATE TOTAL,Methods Business and Digital Technology Ltd,CORE-PINV-009555,82925,IS/IT Systems Operations
Department for Education,Core,09/10/2020,ICT,TECHNOLOGY CAPITAL,Probrand Limited,CORE-PINV-008666,88195.2,IT hardware
Department for Education,Core,08/10/2020,IS/IT,Commercial,PAPER DESIGN STUDIO LTD,CORE-PINV-008657,83875,Software Development
Department for Education,Core,12/10/2020,Consultancy,Commercial,JOYLAB LONDON,CORE-PINV-008957,88957.5,Professional Services - IT Related
Department for Education,Core,26/10/2020,IS/IT,Commercial,2BUY2.COM LTD,CORE-PINV-009688,167857,Shared corporate purchase / procurement services
Department for Education,Core,28/10/2020,IS/IT,Commercial,2BUY2.COM LTD,CORE-PINV-009935,97982.94,Shared corporate purchase / procurement services
Department for Education,Core,02/10/2020,Other Goods & Services,OPERATIONAL AND STRATEGIC FINANCE TOTAL,CABINET OFFICE RM SHARED SERVICES,CORE-PINV-008548,57452,Other Professional Services
Department for Education,Core,20/10/2020,IS/IT,OPERATIONAL AND STRATEGIC FINANCE TOTAL,BRAVOSOLUTION UK LTD,CORE-PINV-009397,25800,IS/IT Software
Department for Education,Core,28/10/2020,Legal,OPERATIONAL AND STRATEGIC FINANCE TOTAL,THE GOVERNMENT LEGAL DEPARTMENT,CORE-PINV-009918,285000,Legal advisory services from the Government Legal Department including the provision of external specialist advice and opinion
Department for Education,Core,28/10/2020,Other Goods & Services,OPERATIONAL AND STRATEGIC FINANCE TOTAL,GOVERNMENT ACTUARYS DEPT,CORE-PINV-008226,47644.1,Other Professional Services
Department for Education,Core,21/10/2020,Other Goods & Services,OPERATIONAL AND STRATEGIC FINANCE TOTAL,TOPMARK CLAIMS MANAGEMENT LTD,CORE-PINV-009546,77192.74,Other Professional Services
Department for Education,Core,16/10/2020,Learning & Development,OPERATIONAL AND STRATEGIC FINANCE TOTAL,Cabinet Office,CORE-PINV-007176,152768,Training & Development costs
Department for Education,Core,29/10/2020,IS/IT,OPERATIONAL AND STRATEGIC FINANCE TOTAL,LAND TECHNOLOGIES LTD,CORE-PINV-009938,30600,IS/IT Additions
Department for Education,Core,07/10/2020,IS/IT,OPERATIONAL AND STRATEGIC FINANCE TOTAL,Agile Management Solutions Limited,CORE-PINV-008824,39722,IS/IT Services - Systems Development
Department for Education,Core,07/10/2020,IS/IT,OPERATIONAL AND STRATEGIC FINANCE DIRECTORATE,Agile Management Solutions Limited,CORE-PINV-008825,158888,IS/IT Services - Systems Development
Department for Education,Core,13/10/2020,IS/IT,OPERATIONAL AND STRATEGIC FINANCE DIRECTORATE,Total Enterprise Solutions,CORE-PINV-009027,26626.25,IS/IT Services - Systems Development
Department for Education,Core,12/10/2020,IS/IT,TECHNOLOGY DIRECTORATE TOTAL,Total Enterprise Solutions,CORE-PINV-001355,28192.5,IS/IT Services - Systems Development
Department for Education,Core,13/10/2020,IS/IT,TECHNOLOGY DIRECTORATE TOTAL,Total Enterprise Solutions,CORE-PINV-009029,43631.25,Software Development
Department for Education,Core,09/10/2020,Contracted Service Provision,OPERATIONS GROUP,SHARED SERVICES CONNECTED LTD,CORE-PCR-000249,-34939.01,Shared corporate accounting services
Department for Education,Core,09/10/2020,Contracted Service Provision,OPERATIONS GROUP,SHARED SERVICES CONNECTED LTD,CORE-PCR-000250,-34939.01,Shared corporate accounting services
Department for Education,Core,09/10/2020,IS/IT,OPERATIONS GROUP,SHARED SERVICES CONNECTED LTD,CORE-PINV-006522,3988.21,IS/IT Systems Operations
Department for Education,Core,09/10/2020,IS/IT,OPERATIONS GROUP,SHARED SERVICES CONNECTED LTD,CORE-PINV-006522,250000,IS/IT Systems Operations
Department for Education,Core,09/10/2020,IS/IT,OPERATIONS GROUP,EGRESS SOFTWARE TECHNOLOGIES LTD,CORE-PINV-008913,22615,IS/IT Services
Department for Education,Core,12/10/2020,IS/IT,OPERATIONS GROUP,SHARED SERVICES CONNECTED LTD,CORE-PINV-008948,183772.51,IS/IT Systems Operations
Department for Education,Core,22/10/2020,IS/IT,OPERATIONS GROUP,SHARED SERVICES CONNECTED LTD,CORE-PINV-009582,59693.46,IS/IT Systems Operations
Department for Education,Core,02/10/2020,Accommodation & Estates - rent & rates,Property Asset Management Group,Government Property Agency,CORE-PINV-008523,452103.3,Rent
Department for Education,Core,02/10/2020,Accommodation & Estates - fuel & utilities,Property Asset Management Group,Government Property Agency,CORE-PINV-008545,37401.43,Other Energy/Utilitlies/Waste Costs
Department for Education,Core,05/10/2020,Accommodation & Estates - maintenance,Property Asset Management Group,MINISTRY OF JUSTICE,CORE-PINV-008555,68663.83,Property management
Department for Education,Core,14/10/2020,Accommodation & Estates - rent & rates,Property Asset Management Group,Government Property Agency,CORE-PINV-009162,205403.77,Rent
Department for Education,Core,14/10/2020,Accommodation & Estates - rent & rates,Property Asset Management Group,Government Property Agency,CORE-PINV-009182,53639.43,Rent
Department for Education,Core,14/10/2020,Accommodation & Estates - rent & rates,Property Asset Management Group,Government Property Agency,CORE-PINV-009183,67251.31,Rent
Department for Education,Core,21/10/2020,Accommodation & Estates - rent & rates,Property Asset Management Group,Government Property Agency,CORE-PINV-009512,36681.56,Rent
Department for Education,Core,26/10/2020,Accommodation & Estates - rent & rates,Property Asset Management Group,Government Property Agency,CORE-PINV-009513,36681.56,Rent
Department for Education,Core,21/10/2020,Accommodation & Estates - maintenance,Property Asset Management Group,Government Property Agency,CORE-PINV-009516,26871.1,Property management
Department for Education,Core,29/10/2020,Accommodation & Estates - rent & rates,Property Asset Management Group,Government Property Agency,CORE-PINV-009980,717410.38,Business rates
Department for Education,Core,30/10/2020,Accommodation & Estates - rent & rates,Property Asset Management Group,Government Property Agency,CORE-PINV-009985,32365.88,Rent
Department for Education,Core,30/10/2020,Accommodation & Estates - rent & rates,Property Asset Management Group,Government Property Agency,CORE-PINV-009986,25480.69,Rent
Department for Education,Core,30/10/2020,Accommodation & Estates - rent & rates,Property Asset Management Group,Government Property Agency,CORE-PINV-009987,32270.45,Rent
Department for Education,Core,16/10/2020,Facilities,Property Asset Management Group,Mace Ltd,CORE-PINV-008414,265298.26,Professional Fees
Department for Education,Core,23/10/2020,Facilities,Property Asset Management Group,Mace Ltd,CORE-PINV-009389,390541.91,Professional Fees
Department for Education,Core,01/10/2020,Facilities,Property Asset Management Group,Mace Ltd,CORE-PINV-005891,143018.4,Project and Programme Management
Department for Education,Core,20/10/2020,Facilities,Property Asset Management Group,WILLMOTT DIXON INTERIORS LTD,CORE-PINV-009360,123109.8,Fit out works
Department for Education,Core,23/10/2020,Facilities,Property Asset Management Group,Mace Ltd,CORE-PINV-009652,72266.4,Project and Programme Management
Department for Education,Core,26/10/2020,Professional Services Consultancy and Contingent Labour,HR DIRECTORATE,Cabinet Office,CORE-PINV-007028,45144,Costs related to temporary workers
Department for Education,Core,21/10/2020,Staff - Other,HR DIRECTORATE,Cabinet Office,CORE-PINV-009568,50000,Workplace Adjustments Team
Department for Education,Core,07/10/2020,Learning & Development,HR DIRECTORATE,Cabinet Office,CORE-PINV-008816,401478,Training & Development costs
Department for Education,Core,05/10/2020,Other Goods & Services,STRATEGIC ANALYSIS AND RESEARCH,EDUCATION DEVELOPMENT TRUST,CORE-PINV-008408,40000,Research and Development
Department for Education,Core,09/10/2020,Other Goods & Services,STRATEGIC ANALYSIS AND RESEARCH,IFF RESEARCH LTD,CORE-PINV-008856,31933,Research and Development
Department for Education,Core,27/10/2020,Other Goods & Services,STRATEGIC ANALYSIS AND RESEARCH,NATIONAL CENTRE FOR SOCIAL RESEARCH,CORE-PINV-008987,25000,Research and Development
Department for Education,Core,26/10/2020,Other Goods & Services,STRATEGIC ANALYSIS AND RESEARCH,NFER TRADING LIMITED INV T,CORE-PINV-009259,258000,Research and Development
Department for Education,Core,23/10/2020,Other Goods & Services,STRATEGIC ANALYSIS AND RESEARCH,QUALTRICS LLC,CORE-PINV-009403,36395,Research and Development
Department for Education,Core,09/10/2020,IS/IT,SYSTEMS AND ACCOUNTABILITY,AGILE SOLUTIONS GB LTD,CORE-PINV-008937,106866,IS/IT Services
Department for Education,Core,08/10/2020,IS/IT,SYSTEMS AND ACCOUNTABILITY,CADENCE INNOVA,CORE-PINV-008831,330680,IS/IT Systems Operations
Department for Education,Core,23/10/2020,IS/IT,SYSTEMS AND ACCOUNTABILITY,CDW LTD,CORE-PINV-009573,138073.85,IS/IT Services
Department for Education,Core,06/10/2020,IS/IT,SYSTEMS AND ACCOUNTABILITY,Mangrove Data Limited,CORE-PINV-008687,22800,IS/IT Services - Systems Development
Department for Education,Core,08/10/2020,IS/IT,SYSTEMS AND ACCOUNTABILITY,CADENCE INNOVA,CORE-PINV-008832,54800,IS/IT Services - Systems Development
Department for Education,Core,09/10/2020,IS/IT,SYSTEMS AND ACCOUNTABILITY,OLIVE JAR DIGITAL LTD,CORE-PINV-008931,184527.89,IS/IT Services
Department for Education,Core,23/10/2020,IS/IT,SYSTEMS AND ACCOUNTABILITY,CAPGEMINI UK PLC,CORE-PINV-009160,32020,IS/IT Services - Systems Development
Department for Education,Core,23/10/2020,IS/IT,SYSTEMS AND ACCOUNTABILITY,Engine Partners UK LLP - Engine Transformation,CORE-PINV-009395,35892,IS/IT Services
Department for Education,Core,23/10/2020,IS/IT,SYSTEMS AND ACCOUNTABILITY,CAPGEMINI UK PLC,CORE-PINV-009161,65880,IS/IT Services
Department for Education,Core,26/10/2020,IS/IT,SYSTEMS AND ACCOUNTABILITY,RM EDUCATION PLC,CORE-PINV-009676,388200,IS/IT Systems Operations
Department for Education,Core,12/10/2020,IS/IT,SYSTEMS AND ACCOUNTABILITY,HIVE IT LIMITED,CORE-PINV-008862,38764.5,IS/IT Systems Operations
Department for Education,Core,23/10/2020,IS/IT,SYSTEMS AND ACCOUNTABILITY,HIVE IT LIMITED,CORE-PINV-009595,37056,IS/IT Systems Operations
Department for Education,Core,28/10/2020,Legal,LEGAL ADVISERS OFFICE,THE GOVERNMENT LEGAL DEPARTMENT,CORE-PINV-009919,1751750,Legal services provided by Treasury Solicitor 
Department for Education,Core,28/10/2020,Other Goods & Services,STUDENT FINANCE DELIVERY,GOVERNMENT ACTUARYS DEPT,CORE-PINV-002312,22743.56,Other Professional Services
Department for Education,Core,01/10/2020,Other costs,STUDENT FINANCE DELIVERY,STUDENT LOANS CO LTD INVEST TO SAVE,CUPS0012190,27474435.48,Current grants paid to organisations including arms length bodies and educational establishments
Department for Education,Core,01/10/2020,Other costs,STUDENT FINANCE DELIVERY,STUDENT LOANS CO LTD INVEST TO SAVE,CUPS0012191,88938.81,Current grants paid to organisations including arms length bodies and educational establishments
Department for Education,Core,15/10/2020,Other costs,Higher Education Strategy and Policy Group,THE OFFICE FOR STUDENTS,CUPS0012236,6000000,Current grants paid to organisations including arms length bodies and educational establishments
Department for Education,Core,27/10/2020,Grants expenditure,STUDENT FINANCE DELIVERY,DEFENCE BUSINESS SERVICES/UKSV/MOD,CUPS0012671,27602,"Capital grants paid to organisations including agencies, arms length bodies and educational establishments "
Department for Education,Core,12/10/2020,Provisions,STUDENT FINANCE DELIVERY,FINANCE FOR HIGHER EDUCATION,CUPS0012212,668601.46,Provisions Expense - Other
Department for Education,Core,12/10/2020,Provisions,STUDENT FINANCE DELIVERY,HONOURS TRUSTEES LTD,CUPS0012213,834567.99,Provisions Expense - Other
Department for Education,Core,15/10/2020,Grants expenditure,STUDENT FINANCE DELIVERY,STUDENT LOANS COMPANY LTD,CUPS0012224,28582063,Grants to educational establishments or not for profit organisations including other businesses
Department for Education,Core,15/10/2020,Student Payments,STUDENT FINANCE DELIVERY,STUDENT LOANS COMPANY LTD,CUPS0012225,-48459,Payments for new student loans
Department for Education,Core,15/10/2020,Student Payments,STUDENT FINANCE DELIVERY,STUDENT LOANS COMPANY LTD,CUPS0012226,4414207923,Payments for new student loans
Department for Education,Core,15/10/2020,Student Payments,STUDENT FINANCE DELIVERY,STUDENT LOANS COMPANY LTD,CUPS0012227,122915731,Payments for new student loans
Department for Education,Core,15/10/2020,Student Payments,STUDENT FINANCE DELIVERY,STUDENT LOANS COMPANY LTD,CUPS0012228,25281765,Payments for new student loans
Department for Education,Core,15/10/2020,Student Payments,STUDENT FINANCE DELIVERY,STUDENT LOANS COMPANY LTD,CUPS0012229,1922242,Payments for new student loans
Department for Education,Core,22/10/2020,Grants expenditure,STUDENT FINANCE DELIVERY,DEPARTMENT FOR THE ECONOMY,CUPS0012338,7775861,Grants paid to other Government Departments
Department for Education,Core,22/10/2020,Grants expenditure,STUDENT FINANCE DELIVERY,STUDENT AWARDS AGENCY FOR SCOTLAND SAAS,CUPS0012426,12753266,Grants paid to other Government Departments
Department for Education,Core,22/10/2020,Grants expenditure,STUDENT FINANCE DELIVERY,NATIONAL ASSEMBLY FOR WALES,CUPS0012427,8929422,Grants paid to other Government Departments
Department for Education,Core,20/10/2020,Other Goods & Services,STUDENT FINANCE DELIVERY,CSR/HMRC,CORE-PINV-007365,1909018.59,Other Professional Services
Department for Education,Core,05/10/2020,Grants expenditure,HIGHER AND FURTHER EDUCATION TOTAL,US UK FULBRIGHT EDUCATIONAL COMMISSION,CORE-MAIN-007237,231999.99,Grants to educational establishments or not for profit organisations including other businesses
Department for Education,Core,30/10/2020,Grants expenditure,HIGHER AND FURTHER EDUCATION TOTAL,US UK FULBRIGHT EDUCATIONAL COMMISSION,CORE-MAIN-008104,77333,Grants to educational establishments or not for profit organisations including other businesses
Department for Education,Core,22/10/2020,Other Goods & Services,HIGHER AND FURTHER EDUCATION TOTAL,BRITISH COUNCIL,CORE-PINV-009584,1074659,Other Professional Services
Department for Education,Core,13/10/2020,Grants expenditure,FURTHER EDUCATION TOTAL,CORNWALL COUNCIL,CORE-MAIN-007456,50000,Grants to local authorities
Department for Education,Core,09/10/2020,Learning & Development,FURTHER EDUCATION TOTAL,Education and Training Foundation,CORE-PINV-008910,50000,Training & Development costs
Department for Education,Core,09/10/2020,Learning & Development,FURTHER EDUCATION TOTAL,Education and Training Foundation,CORE-PINV-008911,80000,Training & Development costs
Department for Education,Core,09/10/2020,Learning & Development,FURTHER EDUCATION TOTAL,Education and Training Foundation,CORE-PINV-008912,232081,Training & Development costs
Department for Education,Core,05/10/2020,Grants expenditure,HIGHER AND FURTHER EDUCATION TOTAL,BRITISH COUNCIL,CORE-MAIN-007238,203196.18,Grants to educational establishments or not for profit organisations including other businesses
Department for Education,Core,07/10/2020,Other Goods & Services,FE REFORMING PROVISION DIRECTORATE,GOOD THINGS FOUNDATION,CORE-PINV-007661,116666.67,Professional Services IT related
Department for Education,Core,29/10/2020,Other Goods & Services,FE REFORMING PROVISION DIRECTORATE,GOOD THINGS FOUNDATION,CORE-PINV-008903,138873.35,Professional Services IT related
Department for Education,Core,05/10/2020,Grants expenditure,FE SKILLS FUNDING DELIVERY DIRECTORATE,Trades Union Congress,CORE-MAIN-007239,886761,Capital grants paid to a private sector organisation
Department for Education,Core,15/10/2020,Student Payments,FE STRATERGY AND TECHNICAL DIRECTORATE,STUDENT LOANS COMPANY LTD,CUPS0012220,18146804,Payments for new student loans
Department for Education,Core,27/10/2020,Other costs,FE SKILLS POLICY ANALYSIS,University of Warwick,CORE-PINV-009734,99678,Research and Development
Department for Education,Core,30/10/2020,Grants expenditure,CAREERS AND FE FUNDING,THE CAREERS & ENTERPRISE COMPANY,CORE-MAIN-008106,600000,Grants to educational establishments or not for profit organisations including other businesses
Department for Education,Core,05/10/2020,Grants expenditure,FE SKILLS FUNDING DELIVERY DIRECTORATE,UNIVERSITY OF BOLTON,CUPS0010835,124987.5,Grants to educational establishments or not for profit organisations including other businesses
Department for Education,Core,05/10/2020,Grants expenditure,FE SKILLS FUNDING DELIVERY DIRECTORATE,UNIVERSITY OF SUNDERLAND,CUPS0010836,81828,Grants to educational establishments or not for profit organisations including other businesses
Department for Education,Core,05/10/2020,Grants expenditure,FE SKILLS FUNDING DELIVERY DIRECTORATE,LIVERPOOL HOPE UNIVERSITY,CUPS0010837,28179,Grants to educational establishments or not for profit organisations including other businesses
Department for Education,Core,05/10/2020,Grants expenditure,FE SKILLS FUNDING DELIVERY DIRECTORATE,EDGE HILL UNIVERSITY,CUPS0010841,27997.2,Grants to educational establishments or not for profit organisations including other businesses
Department for Education,Core,05/10/2020,Grants expenditure,FE SKILLS FUNDING DELIVERY DIRECTORATE,COVET LTD,CUPS0010844,31087.2,Grants to educational establishments or not for profit organisations including other businesses
Department for Education,Core,05/10/2020,Grants expenditure,FE SKILLS FUNDING DELIVERY DIRECTORATE,TEESIDE UNIVERSITY,CUPS0010861,40268.7,Grants to educational establishments or not for profit organisations including other businesses
Department for Education,Core,05/10/2020,Grants expenditure,FE SKILLS FUNDING DELIVERY DIRECTORATE,NEWCASTLE COLLEGE GROUP,CUPS0010862,35178.3,Grants to educational establishments or not for profit organisations including other businesses
Department for Education,Core,14/10/2020,Learning & Development,Further Education Group,Education and Training Foundation,CORE-PINV-009125,1987474.31,Training & Development costs
Department for Education,Core,13/10/2020,Grants expenditure,HIGHER AND FURTHER EDUCATION TOTAL,London Grid for Learning Trust,CORE-MAIN-007457,1038429,Grants to educational establishments or not for profit organisations including other businesses
Department for Education,Core,20/10/2020,Other Goods & Services,HIGHER AND FURTHER EDUCATION TOTAL,London Grid for Learning Trust,CORE-PINV-009379,219658.8,Other Professional Services
Department for Education,STA,14/10/2020,Professional Services,TEST DEVELOPMENT DIVISION,SCOTTISH QUALIFICATIONS AUTHORITY,STA-PINV-000301,184972.02,Provision of services re delivery of Educational Assessments
Department for Education,STA,26/10/2020,Professional Services,TEST DEVELOPMENT DIVISION,SCOTTISH QUALIFICATIONS AUTHORITY,STA-PINV-000302,34986.8,Provision of services re delivery of Educational Assessments
Department for Education,STA,07/10/2020,IS/IT,TEST OPERATIONS DIVISION,OLIVE JAR DIGITAL LTD,STA-PINV-000287,39650,Software Development
Department for Education,STA,26/10/2020,IS/IT,TEST DEVELOPMENT DIVISION,HIPPO DIGITAL LTD,STA-PINV-000304,76475,Software Development
Department for Education,STA,26/10/2020,IS/IT,TEST DEVELOPMENT DIVISION,HIPPO DIGITAL LTD,STA-PINV-000303,85650,Software Development
Department for Education,DEPARTMENT FOR EDUCATION,22/10/2020,Miscellaneous Expenditure,Finance and Commercial Group,N/A - Risk Protection Arrangement (RPA) member,344290/DFE/RPA/0211,25000,Employers Liability claim paid out to an academy trust by TopMark on behalf of the Department as part of the Department's Risk Protection Arrangement (RPA).
Department for Education,DEPARTMENT FOR EDUCATION,28/10/2020,Miscellaneous Expenditure,Finance and Commercial Group,N/A - Risk Protection Arrangement (RPA) member,348488/DFE/RPA/0607,100000,Employers Liability claim paid out to an academy trust by TopMark on behalf of the Department as part of the Department's Risk Protection Arrangement (RPA).
Department for Education,DEPARTMENT FOR EDUCATION,29/10/2020,Miscellaneous Expenditure,Finance and Commercial Group,N/A - Risk Protection Arrangement (RPA) member,355541/DFE/RPA/1343,44610.51,Property claim paid out to an academy trust by TopMark on behalf of the Department as part of the Department's Risk Protection Arrangement (RPA).
Department for Education,DEPARTMENT FOR EDUCATION,16/10/2020,Miscellaneous Expenditure,Finance and Commercial Group,N/A - Risk Protection Arrangement (RPA) member,366010/DFE/RPA/2619,26082.45,Property claim paid out to an academy trust by TopMark on behalf of the Department as part of the Department's Risk Protection Arrangement (RPA).
Department for Education,DEPARTMENT FOR EDUCATION,16/10/2020,Miscellaneous Expenditure,Finance and Commercial Group,N/A - Risk Protection Arrangement (RPA) member,377305/DFE/RPA/4086,79815,Property claim paid out to an academy trust by TopMark on behalf of the Department as part of the Department's Risk Protection Arrangement (RPA).
Department for Education,DEPARTMENT FOR EDUCATION,21/10/2020,Miscellaneous Expenditure,Finance and Commercial Group,N/A - Risk Protection Arrangement (RPA) member,380154/DFE/RPA/4498,168130.83,Property claim paid out to an academy trust by TopMark on behalf of the Department as part of the Department's Risk Protection Arrangement (RPA).
Department for Education,DEPARTMENT FOR EDUCATION,09/10/2020,Miscellaneous Expenditure,Finance and Commercial Group,N/A - Risk Protection Arrangement (RPA) member,380942/DFE/RPA/4615,26641.24,Property claim paid out to an academy trust by TopMark on behalf of the Department as part of the Department's Risk Protection Arrangement (RPA).
Department for Education,DEPARTMENT FOR EDUCATION,08/10/2020,Miscellaneous Expenditure,Finance and Commercial Group,N/A - Risk Protection Arrangement (RPA) member,381948/DFE/RPA/4748,28753.58,Property claim paid out to an academy trust by TopMark on behalf of the Department as part of the Department's Risk Protection Arrangement (RPA).
Department for Education,DEPARTMENT FOR EDUCATION,22/10/2020,Miscellaneous Expenditure,Finance and Commercial Group,N/A - Risk Protection Arrangement (RPA) member,387107/RPA/PR19/5321,90782,Property claim paid out to an academy trust by TopMark on behalf of the Department as part of the Department's Risk Protection Arrangement (RPA).
Department for Education,DEPARTMENT FOR EDUCATION,08/10/2020,Miscellaneous Expenditure,Finance and Commercial Group,N/A - Risk Protection Arrangement (RPA) member,388079/RPA/PR19/5513,38206,Property claim paid out to an academy trust by TopMark on behalf of the Department as part of the Department's Risk Protection Arrangement (RPA).
Department for Education,DEPARTMENT FOR EDUCATION,16/10/2020,Miscellaneous Expenditure,Finance and Commercial Group,N/A - Risk Protection Arrangement (RPA) member,388150/RPA/PR19/5534,49780.06,Property claim paid out to an academy trust by TopMark on behalf of the Department as part of the Department's Risk Protection Arrangement (RPA).
Department for Education,DEPARTMENT FOR EDUCATION,21/10/2020,Miscellaneous Expenditure,Finance and Commercial Group,N/A - Risk Protection Arrangement (RPA) member,388350/RPA/PR19/5577,45000,Property claim paid out to an academy trust by TopMark on behalf of the Department as part of the Department's Risk Protection Arrangement (RPA).
Department for Education,DEPARTMENT FOR EDUCATION,27/10/2020,Miscellaneous Expenditure,Finance and Commercial Group,N/A - Risk Protection Arrangement (RPA) member,389276/RPA/PR19/5744,29086.25,Property claim paid out to an academy trust by TopMark on behalf of the Department as part of the Department's Risk Protection Arrangement (RPA).
Department for Education,DEPARTMENT FOR EDUCATION,27/10/2020,Miscellaneous Expenditure,Finance and Commercial Group,N/A - Risk Protection Arrangement (RPA) member,389527/RPA/PR19/5784,33501.65,Property claim paid out to an academy trust by TopMark on behalf of the Department as part of the Department's Risk Protection Arrangement (RPA).
Department for Education,DEPARTMENT FOR EDUCATION,15/10/2020,Miscellaneous Expenditure,Finance and Commercial Group,N/A - Risk Protection Arrangement (RPA) member,392004/005921-002432-GB-01 ,28968,Public Liability claim paid out to an academy trust by TopMark on behalf of the Department as part of the Department's Risk Protection Arrangement (RPA).
Department for Education,DEPARTMENT FOR EDUCATION,22/10/2020,Miscellaneous Expenditure,Finance and Commercial Group,N/A - Risk Protection Arrangement (RPA) member,392028/005921-002785-EL-01 ,37500,Employers Liability claim paid out to an academy trust by TopMark on behalf of the Department as part of the Department's Risk Protection Arrangement (RPA).
Department for Education,DEPARTMENT FOR EDUCATION,22/10/2020,Miscellaneous Expenditure,Finance and Commercial Group,N/A - Risk Protection Arrangement (RPA) member,392106/005921-003695-EL-01 ,45354.06,Employers Liability claim paid out to an academy trust by TopMark on behalf of the Department as part of the Department's Risk Protection Arrangement (RPA).
Department for Education,DEPARTMENT FOR EDUCATION,15/10/2020,Miscellaneous Expenditure,Finance and Commercial Group,N/A - Risk Protection Arrangement (RPA) member,392278/005921-004843-RB-01 ,25002.4,Property claim paid out to an academy trust by TopMark on behalf of the Department as part of the Department's Risk Protection Arrangement (RPA).
Department for Education,DEPARTMENT FOR EDUCATION,20/10/2020,Miscellaneous Expenditure,Finance and Commercial Group,N/A - Risk Protection Arrangement (RPA) member,392917/RPA/PR19/6752,32541.74,Property claim paid out to an academy trust by TopMark on behalf of the Department as part of the Department's Risk Protection Arrangement (RPA).
Department for Education,DEPARTMENT FOR EDUCATION,22/10/2020,Miscellaneous Expenditure,Finance and Commercial Group,N/A - Risk Protection Arrangement (RPA) member,397168/RPA/PR19/8755,114706.53,Property claim paid out to an academy trust by TopMark on behalf of the Department as part of the Department's Risk Protection Arrangement (RPA).
Department for Education,DEPARTMENT FOR EDUCATION,30/10/2020,Miscellaneous Expenditure,Finance and Commercial Group,N/A - Risk Protection Arrangement (RPA) member,399351/RPA/TV19/9762,43915,Overseas Travel claim paid out to an academy trust by TopMark on behalf of the Department as part of the Department's Risk Protection Arrangement (RPA).
Department for Education,DEPARTMENT FOR EDUCATION,28/10/2020,Miscellaneous Expenditure,Finance and Commercial Group,N/A - Risk Protection Arrangement (RPA) member,400210/RPA/PR19/10163,63252.54,Property claim paid out to an academy trust by TopMark on behalf of the Department as part of the Department's Risk Protection Arrangement (RPA).
Department for Education,DEPARTMENT FOR EDUCATION,21/10/2020,Miscellaneous Expenditure,Finance and Commercial Group,N/A - Risk Protection Arrangement (RPA) member,400377/RPA/PR19/0257,25328.57,Property claim paid out to an academy trust by TopMark on behalf of the Department as part of the Department's Risk Protection Arrangement (RPA).
Department for Education,DEPARTMENT FOR EDUCATION,22/10/2020,Miscellaneous Expenditure,Finance and Commercial Group,N/A - Risk Protection Arrangement (RPA) member,400382/RPA/PR19/10259,34980.29,Property claim paid out to an academy trust by TopMark on behalf of the Department as part of the Department's Risk Protection Arrangement (RPA).
Department for Education,DEPARTMENT FOR EDUCATION,16/10/2020,Miscellaneous Expenditure,Finance and Commercial Group,N/A - Risk Protection Arrangement (RPA) member,400536/RPA/PR19/10336,62799.76,Property claim paid out to an academy trust by TopMark on behalf of the Department as part of the Department's Risk Protection Arrangement (RPA).
Department for Education,DEPARTMENT FOR EDUCATION,16/10/2020,Miscellaneous Expenditure,Finance and Commercial Group,N/A - Risk Protection Arrangement (RPA) member,400839/RPA/PL19/10464,56975,Employers Liability claim paid out to an academy trust by TopMark on behalf of the Department as part of the Department's Risk Protection Arrangement (RPA).
Department for Education,DEPARTMENT FOR EDUCATION,28/10/2020,Miscellaneous Expenditure,Finance and Commercial Group,N/A - Risk Protection Arrangement (RPA) member,401457/RPA/RP19/10699,200000,Property claim paid out to an academy trust by TopMark on behalf of the Department as part of the Department's Risk Protection Arrangement (RPA).
Department for Education,DEPARTMENT FOR EDUCATION,28/10/2020,Miscellaneous Expenditure,Finance and Commercial Group,N/A - Risk Protection Arrangement (RPA) member,401457/RPA/RP19/10699,200000,Property claim paid out to an academy trust by TopMark on behalf of the Department as part of the Department's Risk Protection Arrangement (RPA).
Department for Education,DEPARTMENT FOR EDUCATION,28/10/2020,Miscellaneous Expenditure,Finance and Commercial Group,N/A - Risk Protection Arrangement (RPA) member,401457/RPA/RP19/10699,68503.51,Property claim paid out to an academy trust by TopMark on behalf of the Department as part of the Department's Risk Protection Arrangement (RPA).
Department for Education,DEPARTMENT FOR EDUCATION,29/10/2020,Miscellaneous Expenditure,Finance and Commercial Group,N/A - Risk Protection Arrangement (RPA) member,401960/RPA/PR19/10875,103214.76,Property claim paid out to an academy trust by TopMark on behalf of the Department as part of the Department's Risk Protection Arrangement (RPA).
Department for Education,DEPARTMENT FOR EDUCATION,22/10/2020,Miscellaneous Expenditure,Finance and Commercial Group,N/A - Risk Protection Arrangement (RPA) member,403455/RPA/TV20/11469,34104,Overseas Travel claim paid out to an academy trust by TopMark on behalf of the Department as part of the Department's Risk Protection Arrangement (RPA).
Department for Education,DEPARTMENT FOR EDUCATION,29/10/2020,Miscellaneous Expenditure,Finance and Commercial Group,N/A - Risk Protection Arrangement (RPA) member,403591/RPA/PR19/11528,29882.51,Property claim paid out to an academy trust by TopMark on behalf of the Department as part of the Department's Risk Protection Arrangement (RPA).
Department for Education,DEPARTMENT FOR EDUCATION,23/10/2020,Miscellaneous Expenditure,Finance and Commercial Group,N/A - Risk Protection Arrangement (RPA) member,403973/LAMS/PR20/0065,93305.71,Property claim paid out to an academy trust by TopMark on behalf of the Department as part of the Department's Risk Protection Arrangement (RPA).
Department for Education,DEPARTMENT FOR EDUCATION,30/10/2020,Miscellaneous Expenditure,Finance and Commercial Group,N/A - Risk Protection Arrangement (RPA) member,404911/RPA/PR19/11836,38892.19,Property claim paid out to an academy trust by TopMark on behalf of the Department as part of the Department's Risk Protection Arrangement (RPA).
Department for Education,DEPARTMENT FOR EDUCATION,23/10/2020,Miscellaneous Expenditure,Finance and Commercial Group,N/A - Risk Protection Arrangement (RPA) member,405108/RPA/PR19/11864,100000,Property claim paid out to an academy trust by TopMark on behalf of the Department as part of the Department's Risk Protection Arrangement (RPA).
Department for Education,DEPARTMENT FOR EDUCATION,15/10/2020,Miscellaneous Expenditure,Finance and Commercial Group,N/A - Risk Protection Arrangement (RPA) member,405331/RPA/PR19/11902,36198.78,Property claim paid out to an academy trust by TopMark on behalf of the Department as part of the Department's Risk Protection Arrangement (RPA).
Department for Education,DEPARTMENT FOR EDUCATION,15/10/2020,Miscellaneous Expenditure,Finance and Commercial Group,N/A - Risk Protection Arrangement (RPA) member,405331/RPA/PR19/11902,50000,Property claim paid out to an academy trust by TopMark on behalf of the Department as part of the Department's Risk Protection Arrangement (RPA).
Department for Education,DEPARTMENT FOR EDUCATION,15/10/2020,Miscellaneous Expenditure,Finance and Commercial Group,N/A - Risk Protection Arrangement (RPA) member,405331/RPA/PR19/11902,26559.1,Property claim paid out to an academy trust by TopMark on behalf of the Department as part of the Department's Risk Protection Arrangement (RPA).
Department for Education,DEPARTMENT FOR EDUCATION,20/10/2020,Miscellaneous Expenditure,Finance and Commercial Group,N/A - Risk Protection Arrangement (RPA) member,405876/RPA/PR19/12015,200000,Property claim paid out to an academy trust by TopMark on behalf of the Department as part of the Department's Risk Protection Arrangement (RPA).
Department for Education,DEPARTMENT FOR EDUCATION,20/10/2020,Miscellaneous Expenditure,Finance and Commercial Group,N/A - Risk Protection Arrangement (RPA) member,405876/RPA/PR19/12015,200000,Property claim paid out to an academy trust by TopMark on behalf of the Department as part of the Department's Risk Protection Arrangement (RPA).
Department for Education,DEPARTMENT FOR EDUCATION,20/10/2020,Miscellaneous Expenditure,Finance and Commercial Group,N/A - Risk Protection Arrangement (RPA) member,405876/RPA/PR19/12015,200000,Property claim paid out to an academy trust by TopMark on behalf of the Department as part of the Department's Risk Protection Arrangement (RPA).
Department for Education,DEPARTMENT FOR EDUCATION,20/10/2020,Miscellaneous Expenditure,Finance and Commercial Group,N/A - Risk Protection Arrangement (RPA) member,405876/RPA/PR19/12015,50000,Property claim paid out to an academy trust by TopMark on behalf of the Department as part of the Department's Risk Protection Arrangement (RPA).
Department for Education,DEPARTMENT FOR EDUCATION,15/10/2020,Miscellaneous Expenditure,Finance and Commercial Group,N/A - Risk Protection Arrangement (RPA) member,407589/RPA/TV20/12354,32933.7,Overseas Travel claim paid out to an academy trust by TopMark on behalf of the Department as part of the Department's Risk Protection Arrangement (RPA).
Department for Education,DEPARTMENT FOR EDUCATION,20/10/2020,Miscellaneous Expenditure,Finance and Commercial Group,N/A - Risk Protection Arrangement (RPA) member,408623/RPA/TV20/12601,26280,Overseas Travel claim paid out to an academy trust by TopMark on behalf of the Department as part of the Department's Risk Protection Arrangement (RPA).
Department for Education,DEPARTMENT FOR EDUCATION,08/10/2020,Miscellaneous Expenditure,Finance and Commercial Group,N/A - Risk Protection Arrangement (RPA) member,408626/RPA/TV20/12603,27400,Overseas Travel claim paid out to an academy trust by TopMark on behalf of the Department as part of the Department's Risk Protection Arrangement (RPA).
Department for Education,Education and Skills Funding Agency,12/10/2020,Grants expenditure,Apprenticeships Group,DIMENSIONS TRAINING SOLUTIONS LTD,7083284,-50000,Grants to educational establishments or not for profit organisations including other businesses
Department for Education,Education and Skills Funding Agency,01/10/2020,Grants expenditure,IFD EDUCATION FUNDING GROUP,Emmanuel College (CTC),8365128,639061.79,"Grants paid to organisations including agencies, arms length bodies and educational establishments"
Department for Education,Education and Skills Funding Agency,01/10/2020,Grants expenditure,IFD EDUCATION FUNDING GROUP,Thomas Telford School (CTC),8365156,740968.52,"Grants paid to organisations including agencies, arms length bodies and educational establishments"
Department for Education,Education and Skills Funding Agency,01/10/2020,Grants expenditure,IFD EDUCATION FUNDING GROUP,Greater Peterborough UTC,8372409,-32500,"Grants paid to organisations including agencies, arms length bodies and educational establishments"
Department for Education,Education and Skills Funding Agency,01/10/2020,Grants expenditure,IFD EDUCATION FUNDING GROUP,Sedgehill Academy,8507275,-54375,"Grants paid to organisations including agencies, arms length bodies and educational establishments"
Department for Education,Education and Skills Funding Agency,01/10/2020,Grants expenditure,IFD EDUCATION FUNDING GROUP,Walbottle Academy,8507277,-122025,"Grants paid to organisations including agencies, arms length bodies and educational establishments"
Department for Education,Education and Skills Funding Agency,01/10/2020,Grants expenditure,IFD EDUCATION FUNDING GROUP,Bluebell Primary School,8507279,-25000,"Grants paid to organisations including agencies, arms length bodies and educational establishments"
Department for Education,Education and Skills Funding Agency,01/10/2020,Grants expenditure,IFD FREE SCHOOL GROUP,Harris Academy Clapham,8507303,-48750,"Grants paid to organisations including agencies, arms length bodies and educational establishments"
Department for Education,Education and Skills Funding Agency,01/10/2020,Grants expenditure,IFD FREE SCHOOL GROUP,Outwood Academy Riverside,8507305,-37500,"Grants paid to organisations including agencies, arms length bodies and educational establishments"
Department for Education,Education and Skills Funding Agency,01/10/2020,Grants expenditure,IFD FREE SCHOOL GROUP,Orsett Heath Academy,8507307,-30000,"Grants paid to organisations including agencies, arms length bodies and educational establishments"
Department for Education,Education and Skills Funding Agency,01/10/2020,Grants expenditure,IFD FREE SCHOOL GROUP,Thames Park Secondary School,8507313,-30000,"Grants paid to organisations including agencies, arms length bodies and educational establishments"
Department for Education,Education and Skills Funding Agency,01/10/2020,Grants expenditure,IFD FREE SCHOOL GROUP,Ark Blake Academy,8507315,-45000,"Grants paid to organisations including agencies, arms length bodies and educational establishments"
Department for Education,Education and Skills Funding Agency,01/10/2020,Grants expenditure,IFD FREE SCHOOL GROUP,North Brent School,8507319,-30000,"Grants paid to organisations including agencies, arms length bodies and educational establishments"
Department for Education,Education and Skills Funding Agency,01/10/2020,Grants expenditure,IFD FREE SCHOOL GROUP,"School of Science and Technology, Maidstone",8507321,-48000,"Grants paid to organisations including agencies, arms length bodies and educational establishments"
Department for Education,Education and Skills Funding Agency,01/10/2020,Grants expenditure,IFD FREE SCHOOL GROUP,Wren Academy Enfield,8507323,-44250,"Grants paid to organisations including agencies, arms length bodies and educational establishments"
Department for Education,Education and Skills Funding Agency,01/10/2020,Grants expenditure,IFD FREE SCHOOL GROUP,Doncaster UTC,8507333,-63750,"Grants paid to organisations including agencies, arms length bodies and educational establishments"
Department for Education,Education and Skills Funding Agency,01/10/2020,Grants expenditure,IFD FREE SCHOOL GROUP,Beauchamp City Sixth Form,8507363,-87500,"Grants paid to organisations including agencies, arms length bodies and educational establishments"
Department for Education,Education and Skills Funding Agency,01/10/2020,Grants expenditure,IFD FREE SCHOOL GROUP,Doncaster UTC,8507405,-78750,"Grants paid to organisations including agencies, arms length bodies and educational establishments"
Department for Education,Education and Skills Funding Agency,01/10/2020,Grants expenditure,Academies Bursary Funding,Beauchamp City Sixth Form,8507441,-31528.03,"Grants paid to organisations including agencies, arms length bodies and educational establishments"
Department for Education,Education and Skills Funding Agency,01/10/2020,Grants expenditure,IFD EDUCATION FUNDING GROUP,Sedgehill Academy,8507445,-386416.37,"Grants paid to organisations including agencies, arms length bodies and educational establishments"
Department for Education,Education and Skills Funding Agency,01/10/2020,Grants expenditure,IFD EDUCATION FUNDING GROUP,Walbottle Academy,8507447,-659845.68,"Grants paid to organisations including agencies, arms length bodies and educational establishments"
Department for Education,Education and Skills Funding Agency,01/10/2020,Grants expenditure,IFD EDUCATION FUNDING GROUP,Wolsingham School,8507449,-257063.55,"Grants paid to organisations including agencies, arms length bodies and educational establishments"
Department for Education,Education and Skills Funding Agency,01/10/2020,Grants expenditure,IFD EDUCATION FUNDING GROUP,Whitelands Academy,8507451,-48098.23,"Grants paid to organisations including agencies, arms length bodies and educational establishments"
Department for Education,Education and Skills Funding Agency,01/10/2020,Grants expenditure,IFD EDUCATION FUNDING GROUP,GEMS Wantage Primary Academy,8507463,-48098.23,"Grants paid to organisations including agencies, arms length bodies and educational establishments"
Department for Education,Education and Skills Funding Agency,01/10/2020,Grants expenditure,IFD EDUCATION FUNDING GROUP,Harris Academy Clapham,8507465,-118791.19,"Grants paid to organisations including agencies, arms length bodies and educational establishments"
Department for Education,Education and Skills Funding Agency,01/10/2020,Grants expenditure,IFD EDUCATION FUNDING GROUP,Cherry Fields Primary School,8507469,-48098.23,"Grants paid to organisations including agencies, arms length bodies and educational establishments"
Department for Education,Education and Skills Funding Agency,01/10/2020,Grants expenditure,IFD EDUCATION FUNDING GROUP,Outwood Academy Riverside,8507471,-69796.54,"Grants paid to organisations including agencies, arms length bodies and educational establishments"
Department for Education,Education and Skills Funding Agency,01/10/2020,Grants expenditure,IFD EDUCATION FUNDING GROUP,Orsett Heath Academy,8507473,-49950.7,"Grants paid to organisations including agencies, arms length bodies and educational establishments"
Department for Education,Education and Skills Funding Agency,01/10/2020,Grants expenditure,IFD EDUCATION FUNDING GROUP,Watling Academy ,8507479,-75370.71,"Grants paid to organisations including agencies, arms length bodies and educational establishments"
Department for Education,Education and Skills Funding Agency,01/10/2020,Grants expenditure,IFD EDUCATION FUNDING GROUP,Thames Park Secondary School,8507481,-49950.7,"Grants paid to organisations including agencies, arms length bodies and educational establishments"
Department for Education,Education and Skills Funding Agency,01/10/2020,Grants expenditure,IFD EDUCATION FUNDING GROUP,Ark Blake Academy,8507483,-81997.51,"Grants paid to organisations including agencies, arms length bodies and educational establishments"
Department for Education,Education and Skills Funding Agency,01/10/2020,Grants expenditure,IFD EDUCATION FUNDING GROUP,Springhead Park Primary School ,8507485,-25570.1,"Grants paid to organisations including agencies, arms length bodies and educational establishments"
Department for Education,Education and Skills Funding Agency,01/10/2020,Grants expenditure,IFD EDUCATION FUNDING GROUP,North Brent School,8507487,-58449.34,"Grants paid to organisations including agencies, arms length bodies and educational establishments"
Department for Education,Education and Skills Funding Agency,01/10/2020,Grants expenditure,IFD EDUCATION FUNDING GROUP,"School of Science and Technology, Maidstone",8507493,-74810.21,"Grants paid to organisations including agencies, arms length bodies and educational establishments"
Department for Education,Education and Skills Funding Agency,01/10/2020,Grants expenditure,IFD EDUCATION FUNDING GROUP,Wren Academy Enfield,8507495,-83497.08,"Grants paid to organisations including agencies, arms length bodies and educational establishments"
Department for Education,Education and Skills Funding Agency,01/10/2020,Grants expenditure,IFD EDUCATION FUNDING GROUP,Ebbsfleet Green Primary School,8507499,-25570.1,"Grants paid to organisations including agencies, arms length bodies and educational establishments"
Department for Education,Education and Skills Funding Agency,01/10/2020,Grants expenditure,IFD EDUCATION FUNDING GROUP,Waverley Junior Academy,8507507,-72464.26,"Grants paid to organisations including agencies, arms length bodies and educational establishments"
Department for Education,Education and Skills Funding Agency,01/10/2020,Grants expenditure,IFD EDUCATION FUNDING GROUP,Rosecliffe Spencer Academy,8507515,-39893.92,"Grants paid to organisations including agencies, arms length bodies and educational establishments"
Department for Education,Education and Skills Funding Agency,01/10/2020,Grants expenditure,IFD EDUCATION FUNDING GROUP,Doncaster UTC,8507517,-82230.04,"Grants paid to organisations including agencies, arms length bodies and educational establishments"
Department for Education,Education and Skills Funding Agency,01/10/2020,Grants expenditure,IFD EDUCATION FUNDING GROUP,Brixham Church of England Primary School,8507519,-61769.3,"Grants paid to organisations including agencies, arms length bodies and educational establishments"
Department for Education,Education and Skills Funding Agency,01/10/2020,Grants expenditure,IFD EDUCATION FUNDING GROUP,Southtown Primary School,8507521,-70027.91,"Grants paid to organisations including agencies, arms length bodies and educational establishments"
Department for Education,Education and Skills Funding Agency,01/10/2020,Grants expenditure,IFD EDUCATION FUNDING GROUP,Lister Primary,8507523,-107063.88,"Grants paid to organisations including agencies, arms length bodies and educational establishments"
Department for Education,Education and Skills Funding Agency,01/10/2020,Grants expenditure,IFD EDUCATION FUNDING GROUP,Bishop Pursglove C of E Primary School,8507525,-25500.44,"Grants paid to organisations including agencies, arms length bodies and educational establishments"
Department for Education,Education and Skills Funding Agency,01/10/2020,Grants expenditure,IFD EDUCATION FUNDING GROUP,Eastchurch  CE Primary School,8507529,-130226.86,"Grants paid to organisations including agencies, arms length bodies and educational establishments"
Department for Education,Education and Skills Funding Agency,01/10/2020,Grants expenditure,IFD EDUCATION FUNDING GROUP,Alsager Highfields Community Primary School,8507531,-74898.66,"Grants paid to organisations including agencies, arms length bodies and educational establishments"
Department for Education,Education and Skills Funding Agency,01/10/2020,Grants expenditure,IFD EDUCATION FUNDING GROUP,Linchfield Community Primary School,8507533,-100606.8,"Grants paid to organisations including agencies, arms length bodies and educational establishments"
Department for Education,Education and Skills Funding Agency,01/10/2020,Grants expenditure,IFD EDUCATION FUNDING GROUP,Escrick Church of England Primary School,8507535,-41707.3,"Grants paid to organisations including agencies, arms length bodies and educational establishments"
Department for Education,Education and Skills Funding Agency,01/10/2020,Grants expenditure,IFD EDUCATION FUNDING GROUP,Polehampton CE Junior School,8507537,-65949.12,"Grants paid to organisations including agencies, arms length bodies and educational establishments"
Department for Education,Education and Skills Funding Agency,01/10/2020,Grants expenditure,IFD EDUCATION FUNDING GROUP,Ashbrook Junior School,8507539,-52953.73,"Grants paid to organisations including agencies, arms length bodies and educational establishments"
Department for Education,Education and Skills Funding Agency,01/10/2020,Grants expenditure,IFD EDUCATION FUNDING GROUP,Polehampton CE Infant School,8507541,-46297.22,"Grants paid to organisations including agencies, arms length bodies and educational establishments"
Department for Education,Education and Skills Funding Agency,01/10/2020,Grants expenditure,IFD EDUCATION FUNDING GROUP,Beckers Green Primary ,8507543,-94671.5,"Grants paid to organisations including agencies, arms length bodies and educational establishments"
Department for Education,Education and Skills Funding Agency,01/10/2020,Grants expenditure,IFD EDUCATION FUNDING GROUP,Marden Primary Academy,8507545,-79167.81,"Grants paid to organisations including agencies, arms length bodies and educational establishments"
Department for Education,Education and Skills Funding Agency,01/10/2020,Grants expenditure,IFD EDUCATION FUNDING GROUP,Girton Glebe Primary School,8507547,-49192.2,"Grants paid to organisations including agencies, arms length bodies and educational establishments"
Department for Education,Education and Skills Funding Agency,01/10/2020,Grants expenditure,IFD EDUCATION FUNDING GROUP,"Holy Family Catholic Primary School, Witham",8507549,-60675.97,"Grants paid to organisations including agencies, arms length bodies and educational establishments"
Department for Education,Education and Skills Funding Agency,01/10/2020,Grants expenditure,IFD EDUCATION FUNDING GROUP,Newtown Primary School,8507551,-38395.72,"Grants paid to organisations including agencies, arms length bodies and educational establishments"
Department for Education,Education and Skills Funding Agency,01/10/2020,Grants expenditure,IFD EDUCATION FUNDING GROUP,de Vere Primary School,8507553,-47650.8,"Grants paid to organisations including agencies, arms length bodies and educational establishments"
Department for Education,Education and Skills Funding Agency,01/10/2020,Grants expenditure,IFD EDUCATION FUNDING GROUP,Oaklands School,8507555,-126692.28,"Grants paid to organisations including agencies, arms length bodies and educational establishments"
Department for Education,Education and Skills Funding Agency,01/10/2020,Grants expenditure,IFD EDUCATION FUNDING GROUP,Pondhu Primary School,8507557,-86613.38,"Grants paid to organisations including agencies, arms length bodies and educational establishments"
Department for Education,Education and Skills Funding Agency,01/10/2020,Grants expenditure,IFD EDUCATION FUNDING GROUP,Greenfield Primary Academy,8507559,-90932.12,"Grants paid to organisations including agencies, arms length bodies and educational establishments"
Department for Education,Education and Skills Funding Agency,01/10/2020,Grants expenditure,IFD EDUCATION FUNDING GROUP,Redscope Primary School,8507561,-118712.55,"Grants paid to organisations including agencies, arms length bodies and educational establishments"
Department for Education,Education and Skills Funding Agency,01/10/2020,Grants expenditure,IFD EDUCATION FUNDING GROUP,Lady Katherine Leveson Church of England Primary School,8507563,-41094.39,"Grants paid to organisations including agencies, arms length bodies and educational establishments"
Department for Education,Education and Skills Funding Agency,01/10/2020,Grants expenditure,IFD EDUCATION FUNDING GROUP,Bluebell Primary School,8507565,-75016.79,"Grants paid to organisations including agencies, arms length bodies and educational establishments"
Department for Education,Education and Skills Funding Agency,01/10/2020,Grants expenditure,IFD EDUCATION FUNDING GROUP,Wheatfields Junior Mixed School,8507567,-92547.1,"Grants paid to organisations including agencies, arms length bodies and educational establishments"
Department for Education,Education and Skills Funding Agency,01/10/2020,Grants expenditure,IFD EDUCATION FUNDING GROUP,Hill View Academy,8507569,-92684.1,"Grants paid to organisations including agencies, arms length bodies and educational establishments"
Department for Education,Education and Skills Funding Agency,01/10/2020,Grants expenditure,IFD EDUCATION FUNDING GROUP,West Wycombe School,8507571,-38405.89,"Grants paid to organisations including agencies, arms length bodies and educational establishments"
Department for Education,Education and Skills Funding Agency,01/10/2020,Grants expenditure,IFD EDUCATION FUNDING GROUP,Trinity Academy St Peter's,8507573,-50194.33,"Grants paid to organisations including agencies, arms length bodies and educational establishments"
Department for Education,Education and Skills Funding Agency,01/10/2020,Grants expenditure,IFD EDUCATION FUNDING GROUP,Saxon Shore Academy,8507575,-243260.85,"Grants paid to organisations including agencies, arms length bodies and educational establishments"
Department for Education,Education and Skills Funding Agency,01/10/2020,Grants expenditure,IFD EDUCATION FUNDING GROUP,Feckenham CofE First School,8507577,-25745.16,"Grants paid to organisations including agencies, arms length bodies and educational establishments"
Department for Education,Education and Skills Funding Agency,01/10/2020,Grants expenditure,IFD EDUCATION FUNDING GROUP,Wheatfields Infants' and Nursery School,8507579,-69022.45,"Grants paid to organisations including agencies, arms length bodies and educational establishments"
Department for Education,Education and Skills Funding Agency,01/10/2020,Grants expenditure,IFD EDUCATION FUNDING GROUP,Broadwater School,8507581,-252936.01,"Grants paid to organisations including agencies, arms length bodies and educational establishments"
Department for Education,Education and Skills Funding Agency,01/10/2020,Grants expenditure,IFD EDUCATION FUNDING GROUP,Seaham High School ,8507583,-509636.89,"Grants paid to organisations including agencies, arms length bodies and educational establishments"
Department for Education,Education and Skills Funding Agency,01/10/2020,Grants expenditure,IFD EDUCATION FUNDING GROUP,The Florence Nightingale Academy,8507585,-117080.8,"Grants paid to organisations including agencies, arms length bodies and educational establishments"
Department for Education,Education and Skills Funding Agency,01/10/2020,Grants expenditure,IFD EDUCATION FUNDING GROUP,Thorpe Hesley Primary School,8507587,-133377.12,"Grants paid to organisations including agencies, arms length bodies and educational establishments"
Department for Education,Education and Skills Funding Agency,01/10/2020,Grants expenditure,IFD EDUCATION FUNDING GROUP,"St Joseph's Catholic Primary School, Harwich",8507589,-32876.22,"Grants paid to organisations including agencies, arms length bodies and educational establishments"
Department for Education,Education and Skills Funding Agency,01/10/2020,Grants expenditure,IFD EDUCATION FUNDING GROUP,Hucknall National CofE Primary School,8507591,-124128.07,"Grants paid to organisations including agencies, arms length bodies and educational establishments"
Department for Education,Education and Skills Funding Agency,01/10/2020,Grants expenditure,IFD EDUCATION FUNDING GROUP,Milton Mount Primary School,8507593,-161176.31,"Grants paid to organisations including agencies, arms length bodies and educational establishments"
Department for Education,Education and Skills Funding Agency,01/10/2020,Grants expenditure,IFD EDUCATION FUNDING GROUP,NCEA Warkworth Primary School,8507597,-30395.93,"Grants paid to organisations including agencies, arms length bodies and educational establishments"
Department for Education,Education and Skills Funding Agency,01/10/2020,Grants expenditure,IFD EDUCATION FUNDING GROUP,Blackwell Primary School,8507599,-96497.58,"Grants paid to organisations including agencies, arms length bodies and educational establishments"
Department for Education,Education and Skills Funding Agency,01/10/2020,Grants expenditure,IFD EDUCATION FUNDING GROUP,St Antony's Catholic Primary School,8507601,-148106.61,"Grants paid to organisations including agencies, arms length bodies and educational establishments"
Department for Education,Education and Skills Funding Agency,01/10/2020,Grants expenditure,IFD EDUCATION FUNDING GROUP,Greatwood Community Primary School,8507603,-62403.83,"Grants paid to organisations including agencies, arms length bodies and educational establishments"
Department for Education,Education and Skills Funding Agency,01/10/2020,Grants expenditure,IFD EDUCATION FUNDING GROUP,St Anthony's Catholic School,8507605,-96276.2,"Grants paid to organisations including agencies, arms length bodies and educational establishments"
Department for Education,Education and Skills Funding Agency,01/10/2020,Grants expenditure,IFD EDUCATION FUNDING GROUP,Northstowe Secondary College,8507609,-87228.1,"Grants paid to organisations including agencies, arms length bodies and educational establishments"
Department for Education,Education and Skills Funding Agency,01/10/2020,Grants expenditure,IFD EDUCATION FUNDING GROUP,Two Village CofE Primary School,8507611,-46591.24,"Grants paid to organisations including agencies, arms length bodies and educational establishments"
Department for Education,Education and Skills Funding Agency,01/10/2020,Grants expenditure,IFD EDUCATION FUNDING GROUP,Tredington Primary School,8507613,-31299.76,"Grants paid to organisations including agencies, arms length bodies and educational establishments"
Department for Education,Education and Skills Funding Agency,01/10/2020,Grants expenditure,IFD EDUCATION FUNDING GROUP,St John's Catholic Primary School,8507615,-62395.07,"Grants paid to organisations including agencies, arms length bodies and educational establishments"
Department for Education,Education and Skills Funding Agency,01/10/2020,Grants expenditure,IFD EDUCATION FUNDING GROUP,St Joseph's Catholic Primary School,8507617,-113553.13,"Grants paid to organisations including agencies, arms length bodies and educational establishments"
Department for Education,Education and Skills Funding Agency,01/10/2020,Grants expenditure,IFD EDUCATION FUNDING GROUP,Sedgehill Academy,8507619,-80289.65,"Grants paid to organisations including agencies, arms length bodies and educational establishments"
Department for Education,Education and Skills Funding Agency,01/10/2020,Grants expenditure,IFD EDUCATION FUNDING GROUP,Walbottle Academy,8507621,-31988.04,"Grants paid to organisations including agencies, arms length bodies and educational establishments"
Department for Education,Education and Skills Funding Agency,01/10/2020,Grants expenditure,IFD EDUCATION FUNDING GROUP,Two Village CofE Primary School,8507785,-32310,"Grants paid to organisations including agencies, arms length bodies and educational establishments"
Department for Education,Education and Skills Funding Agency,01/10/2020,Grants expenditure,IFD EDUCATION FUNDING GROUP,The Axis Academy,8507835,-26666.67,"Grants paid to organisations including agencies, arms length bodies and educational establishments"
Department for Education,Education and Skills Funding Agency,01/10/2020,Grants expenditure,IFD EDUCATION FUNDING GROUP,Bader Special Academy,8507837,-68333.33,"Grants paid to organisations including agencies, arms length bodies and educational establishments"
Department for Education,Education and Skills Funding Agency,01/10/2020,Grants expenditure,IFD EDUCATION FUNDING GROUP,Aspire School,8507845,-26666.67,"Grants paid to organisations including agencies, arms length bodies and educational establishments"
Department for Education,Education and Skills Funding Agency,01/10/2020,Grants expenditure,IFD EDUCATION FUNDING GROUP,The Workplace,8507851,-61666.67,"Grants paid to organisations including agencies, arms length bodies and educational establishments"
Department for Education,Education and Skills Funding Agency,01/10/2020,Grants expenditure,IFD EDUCATION FUNDING GROUP,Snowfields Academy,8507853,-50000,"Grants paid to organisations including agencies, arms length bodies and educational establishments"
Department for Education,Education and Skills Funding Agency,01/10/2020,Grants expenditure,IFD EDUCATION FUNDING GROUP,Ropemakers' Academy,8507855,-61666.67,"Grants paid to organisations including agencies, arms length bodies and educational establishments"
Department for Education,Education and Skills Funding Agency,01/10/2020,Grants expenditure,IFD EDUCATION FUNDING GROUP,Sir Bobby Robson School,8507857,-25000,"Grants paid to organisations including agencies, arms length bodies and educational establishments"
Department for Education,Education and Skills Funding Agency,01/10/2020,Grants expenditure,IFD EDUCATION FUNDING GROUP,Spa School Camberwell,8507859,-35000,"Grants paid to organisations including agencies, arms length bodies and educational establishments"
Department for Education,Education and Skills Funding Agency,01/10/2020,Grants expenditure,IFD EDUCATION FUNDING GROUP,Harry Watts Academy,8507863,-27500,"Grants paid to organisations including agencies, arms length bodies and educational establishments"
Department for Education,Education and Skills Funding Agency,01/10/2020,Grants expenditure,IFD EDUCATION FUNDING GROUP,Glendinning House Special School,8507865,-45000,"Grants paid to organisations including agencies, arms length bodies and educational establishments"
Department for Education,Education and Skills Funding Agency,01/10/2020,Grants expenditure,IFD EDUCATION FUNDING GROUP,Queensbury School,8507867,-182500,"Grants paid to organisations including agencies, arms length bodies and educational establishments"
Department for Education,Education and Skills Funding Agency,01/10/2020,Grants expenditure,IFD EDUCATION FUNDING GROUP,North West Kent Alternative Provision Service,8507871,-150833.33,"Grants paid to organisations including agencies, arms length bodies and educational establishments"
Department for Education,Education and Skills Funding Agency,01/10/2020,Grants expenditure,ACADEMY AND FREE SCHOOLS SIXTH FORMS,Walbottle Academy,8507877,-83022.86,"Grants paid to organisations including agencies, arms length bodies and educational establishments"
Department for Education,Education and Skills Funding Agency,01/10/2020,Grants expenditure,ACADEMY AND FREE SCHOOLS SIXTH FORMS,Doncaster UTC,8507879,-39924.06,"Grants paid to organisations including agencies, arms length bodies and educational establishments"
Department for Education,Education and Skills Funding Agency,01/10/2020,Grants expenditure,ACADEMY AND FREE SCHOOLS SIXTH FORMS,Beauchamp City Sixth Form,8507881,-144794.68,"Grants paid to organisations including agencies, arms length bodies and educational establishments"
Department for Education,Education and Skills Funding Agency,01/10/2020,Grants expenditure,ACADEMY AND FREE SCHOOLS SIXTH FORMS,University of Liverpool Maths School,8507891,-29166.67,"Grants paid to organisations including agencies, arms length bodies and educational establishments"
Department for Education,Education and Skills Funding Agency,01/10/2020,Grants expenditure,CAREERS AND FE FUNDING,NEW COLLEGE SWINDON,8519439,-171788.42,Grants to educational establishments or not for profit organisations including other businesses
Department for Education,Education and Skills Funding Agency,01/10/2020,Grants expenditure,IFD EDUCATION FUNDING GROUP,NEW COLLEGE SWINDON,8519443,-70800,Grants to educational establishments or not for profit organisations including other businesses
Department for Education,Education and Skills Funding Agency,01/10/2020,Grants expenditure,Funding and Programme Team,NEW COLLEGE SWINDON,8519447,-567564.22,Grants to educational establishments or not for profit organisations including other businesses
Department for Education,Education and Skills Funding Agency,01/10/2020,Grants expenditure,CAREERS AND FE FUNDING,NORTH KENT COLLEGE,8519459,-392610.78,Grants to educational establishments or not for profit organisations including other businesses
Department for Education,Education and Skills Funding Agency,01/10/2020,Grants expenditure,IFD EDUCATION FUNDING GROUP,NORTH KENT COLLEGE,8519463,-107616,Grants to educational establishments or not for profit organisations including other businesses
Department for Education,Education and Skills Funding Agency,01/10/2020,Grants expenditure,Funding and Programme Team,NORTH KENT COLLEGE,8519467,-949603.6,Grants to educational establishments or not for profit organisations including other businesses
Department for Education,Education and Skills Funding Agency,01/10/2020,Grants expenditure,LEARNER SUPPORT PROGRAMMES,NORTH KENT COLLEGE,8519479,-236245.4,Grants to educational establishments or not for profit organisations including other businesses
Department for Education,Education and Skills Funding Agency,01/10/2020,Grants expenditure,LA MAINTAINED SIXTH FORMS,HERTFORDSHIRE COUNTY COUNCIL,8519483,47790.07,"Current grants to schools, colleges and other educational establishments"
Department for Education,Education and Skills Funding Agency,01/10/2020,Grants expenditure,IFD EDUCATION FUNDING GROUP,St Andrews College,8548494,-597260,Grants to educational establishments or not for profit organisations including other businesses
Department for Education,Education and Skills Funding Agency,01/10/2020,Grants expenditure,IFD EDUCATION FUNDING GROUP,St Benedict's Catholic High School,8550792,170000,"Grants paid to organisations including agencies, arms length bodies and educational establishments"
Department for Education,Education and Skills Funding Agency,01/10/2020,Grants expenditure,IFD EDUCATION FUNDING GROUP,Callywith College,8551409,45312,"Grants paid to organisations including agencies, arms length bodies and educational establishments"
Department for Education,Education and Skills Funding Agency,01/10/2020,Grants expenditure,IFD EDUCATION FUNDING GROUP,Fernwood School,8551417,29184,"Grants paid to organisations including agencies, arms length bodies and educational establishments"
Department for Education,Education and Skills Funding Agency,01/10/2020,Grants expenditure,IFD EDUCATION FUNDING GROUP,Avonbourne Boy's Academy,8551419,25036.42,"Grants paid to organisations including agencies, arms length bodies and educational establishments"
Department for Education,Education and Skills Funding Agency,01/10/2020,Grants expenditure,IFD EDUCATION FUNDING GROUP,Ark St Alban's Academy,8551435,27910.67,"Grants paid to organisations including agencies, arms length bodies and educational establishments"
Department for Education,Education and Skills Funding Agency,01/10/2020,Grants expenditure,IFD EDUCATION FUNDING GROUP,The Windsor Boys' School,8551443,30720,"Grants paid to organisations including agencies, arms length bodies and educational establishments"
Department for Education,Education and Skills Funding Agency,01/10/2020,Grants expenditure,IFD EDUCATION FUNDING GROUP,Winton Arts and Media College,8551453,26541.74,"Grants paid to organisations including agencies, arms length bodies and educational establishments"
Department for Education,Education and Skills Funding Agency,01/10/2020,Grants expenditure,IFD EDUCATION FUNDING GROUP,The Bishops' Blue Coat Church of England High Scho,8551459,26880,"Grants paid to organisations including agencies, arms length bodies and educational establishments"
Department for Education,Education and Skills Funding Agency,01/10/2020,Grants expenditure,IFD EDUCATION FUNDING GROUP,Hanham Woods Academy ,8551479,32000,"Grants paid to organisations including agencies, arms length bodies and educational establishments"
Department for Education,Education and Skills Funding Agency,01/10/2020,Grants expenditure,IFD EDUCATION FUNDING GROUP,John Cabot Academy,8551481,42496,"Grants paid to organisations including agencies, arms length bodies and educational establishments"
Department for Education,Education and Skills Funding Agency,01/10/2020,Grants expenditure,IFD EDUCATION FUNDING GROUP,King's Oak Academy,8551491,38400,"Grants paid to organisations including agencies, arms length bodies and educational establishments"
Department for Education,Education and Skills Funding Agency,01/10/2020,Grants expenditure,IFD EDUCATION FUNDING GROUP,The Trinity Catholic School A Voluntary Academy,8551501,29388.8,"Grants paid to organisations including agencies, arms length bodies and educational establishments"
Department for Education,Education and Skills Funding Agency,01/10/2020,Grants expenditure,IFD EDUCATION FUNDING GROUP,Walthamstow Academy,8551503,44725.63,"Grants paid to organisations including agencies, arms length bodies and educational establishments"
Department for Education,Education and Skills Funding Agency,01/10/2020,Grants expenditure,IFD EDUCATION FUNDING GROUP,Painsley Catholic College,8551507,32563.2,"Grants paid to organisations including agencies, arms length bodies and educational establishments"
Department for Education,Education and Skills Funding Agency,01/10/2020,Grants expenditure,IFD EDUCATION FUNDING GROUP,SAINT MICHAEL'S CATHOLIC HIGH SCHOOL,8551521,28160,"Grants paid to organisations including agencies, arms length bodies and educational establishments"
Department for Education,Education and Skills Funding Agency,01/10/2020,Grants expenditure,IFD EDUCATION FUNDING GROUP,Noel Baker Academy,8551549,27904,"Grants paid to organisations including agencies, arms length bodies and educational establishments"
